Workbook

Sheet Главная
A1: Общая сумма заказа: | D1: =SUM(B2,G2,M2) ->  | F1: Общий вес заказа: | H1: =CONCATENATE(P1," кг") ->  | M1: 2021-06-15 | P1: =SUM(Номенклатура!P3,#REF!,РЕЗЕРВ!O2) -> 
A2: ИТОГО по продукции А БАЙ: | B2: =Номенклатура!D2 -> 3771 | C2: ИТОГО по продукции ГА | Тельм М. Л.: | G2: =#REF! ->  | H2: РЕЗЕРВ | M2: =РЕЗЕРВ!C4 -> 0
N3: 2 | P3: =ROUND(T9,1) -> 0 | V3: вниз
H5: Быстрый переход
H6: НОВИНКИ | N6: =#REF!-#REF! -> 
H7: АБАЙ | S7: Сумма от 7000\10000 | U7: t8
S8: Сумма от 15000\20000
H9: ○ ВЕСОВЫЕ НАПИТКИ ЧАЙНЫЕ ИЗ ДИКОРАСТУЩИХ ТРАВ, 100 гр. | S9: Сумма веса заказа
H10: ○ НАПИТКИ ЧАЙНЫЕ ИЗ ДИКОРАСТУЩИХ ТРАВ в крафт. упаковке, 50 гр.
H11: ○ НАПИТКИ ЧАЙНЫЕ ИЗ ДИКОРАСТУЩИХ ТРАВ в крафт. упаковке, 100 гр.
H12: ○ ПОДАРОЧНЫЕ НАБОРЫ в крафтовом мешочке
H13: ○ НАТУРАЛЬНОЕ МЫЛО РУЧНОЙ РАБОТЫ без упаковки, 80 гр.
H14: ○ НАТУРАЛЬНОЕ МЫЛО РУЧНОЙ РАБОТЫ, 80 гр.
H15: ○ ЭФИРНЫЕ МАСЛА. Серия "ТАЙНА ТАЙГИ", 20 мл. (спрей)
H16: ○ ЛЬНЯНЫЕ МОЧАЛКИ С ОРГАНИЧЕСКИМ МЫЛОМ, 130 гр.
H17: ○ МОЧАЛКИ ДЛЯ УМЫВАНИЯ. Серия "ТАЕЖНАЯ КОСМЕТИКА", 60 гр.
H18: ○ ФИТОЗАПАРКИ для бань, ванн и фитобочек, 30 гр.
H19: ○ ЭКО-БАЛЬЗАМЫ. Серия "ТАЙНА ТАЙГИ", 50 мл.
H20: ○ НАТУРАЛЬНЫЕ КРЕМА РУЧНОЙ РАБОТЫ. Серия "ТАЁЖНАЯ КОСМЕТИКА", 50 мл.
H21: ○ ЛОСЬОНЫ АНТИСЕПТИЧЕСКИЕ. Серия "ТАЙНА ТАЙГИ", 100 мл.
H22: ГА
H24: ○ БАЛЬЗАМЫ безалкогольные, 250 мл.
H25: ТЕЛЬМ М. Л.
H27: ○ МАЗИ, РАСТИРКИ, СВАРОКИ
M28: =B28*I28 -> 0 | AK28: https://greenberi.ru/product/napitok-chajnyj-iz-dikorastushhih-trav-batyr-dlja-zdorovja-muzhchin/
M29: 0 | AK29: https://greenberi.ru/product/napitok-chajnyj-iz-dikorastushhih-trav-gornye-reki-serdechno-sosudistyj/
M30: 0 | AK30: https://greenberi.ru/product/napitok-chajnyj-iz-dikorastushhih-trav-gracija-dlja-pohudenija/
M31: 0 | AK31: https://greenberi.ru/product/napitok-chajnyj-iz-dikorastushhih-trav-dobroe-utro-immunnyj/
M32: 0 | AK32: https://greenberi.ru/product/chajnyj-napitok-dushevnyj-vecher-uspokaivajushhij-100gr-list-maliny-labaznik-kurilskij-chaj-zizifora-mjata-lavanda-cvet-cheremuhi/
M33: 0 | AK33: https://greenberi.ru/product/napitok-chajnyj-iz-dikorastushhih-trav-zolotaja-luna-dlja-zdorovja-zhenshhin/
M34: 0 | AK34: https://greenberi.ru/product/napitok-chajnyj-iz-dikorastushhih-trav-letnjaja-noch-obshheukrepljajushhij/
M35: 0 | AK35: https://greenberi.ru/product/napitok-chajnyj-iz-dikorastushhih-trav-rodnikovyj-dlja-pochek/
M36: 0 | AK36: https://greenberi.ru/product/napitok-chajnyj-iz-dikorastushhih-trav-svobodnoe-dyhanie-protivoprostudnyj/
M37: 0 | AK37: https://greenberi.ru/product/napitok-chajnyj-iz-dikorastushhih-trav-snezhnye-vershiny-zheludochno-kishechnyj/
M38: 0 | AK38: https://greenberi.ru/product/napitok-chajnyj-iz-dikorastushhih-trav-solnechnyj-dlja-pecheni/
AK39: https://greenberi.ru/product/chajnyj-napitok-jagodka-vitaminnyj-100gr-badan-kurilskij-chaj-chabrec-list-maliny-list-smorodiny-jagoda-shipovnika-jagoda-maliny/
M69: ○ НАПИТКИ ЧАЙНЫЕ ИЗ ДИКОРАСТУЩИХ ТРАВ в крафт. упаковке, 100 гр.

Sheet Номенклатура
A1: Общая сумма заказа: | D1: =Главная!D1 ->  | F1: Общий вес заказа: | H1: =CONCATENATE(Главная!P1," кг") -> 
A2: ИТОГО по продукции АЛТЫН БАЙ: | D2: =SUM(J3:J13) -> 3771 | F2: До следующей скидки по продукции АЛТЫН БАЙ осталось: | K2: =IF(T4>12000,"Макс. скидка!", IF(AND(T6<12000,T5>4000),12000-T5,4000-T4)) -> 4000
A3: Артикул | B3: Наименование | C3: До 4000 р. | D3: От 4000 р. до 12000 р. | E3: От 12000 р. | F3: срок годности, мес. | G3: =CONCATENATE("Вес: ",P3," кг") -> Вес: 3 кг | H3: Шт./гр. в коробке/упаковке | I3: заказ | J3: Сумма, руб. | K3: Ссылка на карточку товара | L3: Вес, Брутто кг. | N3: 2 | P3: =ROUND(T10,1) -> 3 | V3: вниз
G4: Фото товара
A5: ВЕСОВЫЕ НАПИТКИ ЧАЙНЫЕ ИЗ ДИКОРАСТУЩИХ ТРАВ, 1000 гр. (пакет зип-лок. +10 наклеек чая, +5(10) крафт пакетиков) | M5: Вернуться в оглавление
A6: 4603727335019В | B6: БАТЫР (мужской сбор) | C6: =V13 -> 1424.6 | D6: =V12 -> 1257 | E6: =V11 -> 1173.2 | F6: 24 мес. | H6: 4 кг. | I6: 2 | J6: =IF($T$9>12000,E6*I6,IF(AND($T$7>4000,$T$8<12000),D6*I6,C6*I6)) -> 2514 | L6: 1.01 | M6: =C6*I6 -> 2849.2 | N6: =D6*I6 -> 2514 | O6: =E6*I6 -> 2346.4 | P6: =I6*L6 -> 2.02 | V6: =IF(T8>4000,IF(T9>12000,3,2),1) -> 1 | W6: Алтын Бай | X6: =IF(I6>0,(COUNT($X$1:X5)+1),"") -> 1
A7: 4603727335088В | B7: ГОРНЫЕ РЕКИ (сердечно-сосудистый) | C7: =C6 -> 1424.6 | D7: =D6 -> 1257 | E7: =E6 -> 1173.2 | F7: 24 мес. | H7: 4 кг. | J7: =IF($T$9>12000,E7*I7,IF(AND($T$7>4000,$T$8<12000),D7*I7,C7*I7)) -> 0 | L7: 1.01 | M7: 0 | O7: 0 | P7: =I7*L7 -> 0 | S7: колонка 1 | T7: =SUM(M6:M13) -> 4273.8 | W7: Алтын Бай | X7: =IF(I7>0,(COUNT($X$1:X6)+1),"") -> 
A8: 4603727335026В | B8: ГРАЦИЯ (обменный) | C8: =C6 -> 1424.6 | D8: =D6 -> 1257 | E8: =E6 -> 1173.2 | F8: 24 мес. | H8: 4 кг. | J8: =IF($T$9>12000,E8*I8,IF(AND($T$7>4000,$T$8<12000),D8*I8,C8*I8)) -> 0 | L8: 1.01 | M8: 0 | N8: 0 | O8: 0 | P8: 0 | S8: колонка 2 | T8: =SUM(N6:N15) -> 3771 | U8: t8 | W8: Алтын Бай | X8: =IF(I8>0,(COUNT($X$1:X7)+1),"") -> 
A9: 4603727335002В | B9: ДОБРОЕ УТРО (иммунный) | C9: =C6 -> 1424.6 | D9: =D6 -> 1257 | E9: =E6 -> 1173.2 | F9: 24 мес. | H9: 4 кг. | I9: 1 | J9: =IF($T$9>12000,E9*I9,IF(AND($T$7>4000,$T$8<12000),D9*I9,C9*I9)) -> 1257 | L9: 1.01 | M9: 1424.6 | N9: 1257 | O9: 1173.2 | P9: 1.01 | S9: колонка 3 | T9: =SUM(O6:O15) -> 3519.6 | W9: Алтын Бай | X9: =IF(I9>0,(COUNT($X$1:X8)+1),"") -> 2
A10: 4603727335385В | B10: ДУШЕВНЫЙ ВЕЧЕР (успокаивающий) | C10: =C6 -> 1424.6 | D10: =D6 -> 1257 | E10: =E6 -> 1173.2 | F10: 24 мес. | H10: 4 кг. | J10: =IF($T$9>12000,E10*I10,IF(AND($T$7>4000,$T$8<12000),D10*I10,C10*I10)) -> 0 | L10: 1.01 | M10: 0 | N10: 0 | O10: 0 | P10: 0 | S10: Сумма веса заказа | T10: =SUM(P6:P15) -> 3.03 | W10: Алтын Бай | X10: =IF(I10>0,(COUNT($X$1:X9)+1),"") -> 
A11: 4603727335033В | B11: ЗОЛОТАЯ ЛУНА (женский сбор) | C11: =C6 -> 1424.6 | D11: =D6 -> 1257 | E11: =E6 -> 1173.2 | F11: 24 мес. | H11: 4 кг. | J11: =IF($T$9>12000,E11*I11,IF(AND($T$7>4000,$T$8<12000),D11*I11,C11*I11)) -> 0 | L11: 1.01 | M11: 0 | N11: 0 | O11: 0 | P11: 0 | U11: FALSE | V11: =IF(U11,1122.8,1173.2) -> 1173.2 | W11: Алтын Бай | X11: =IF(I11>0,(COUNT($X$1:X10)+1),"") -> 
A12: 4603727335460В | B12: КЛАССИЧЕСКИЙ (ароматный) | C12: =C6 -> 1424.6 | D12: =D6 -> 1257 | E12: =E6 -> 1173.2 | F12: 24 мес. | H12: 4 кг. | J12: =IF($T$9>12000,E12*I12,IF(AND($T$7>4000,$T$8<12000),D12*I12,C12*I12)) -> 0 | L12: 1.01 | M12: 0 | N12: 0 | O12: 0 | P12: 0 | V12: =IF(U11,1203,1257) -> 1257 | W12: Алтын Бай | X12: =IF(I12>0,(COUNT($X$1:X11)+1),"") -> 
A13: 4603727335095В | B13: ЛЕТНЯЯ НОЧЬ (общеукрепляющий) | C13: =C6 -> 1424.6 | D13: =D6 -> 1257 | E13: =E6 -> 1173.2 | F13: 24 мес. | H13: 4 кг. | J13: =IF($T$9>12000,E13*I13,IF(AND($T$7>4000,$T$8<12000),D13*I13,C13*I13)) -> 0 | L13: 1.01 | M13: 0 | N13: 0 | O13: 0 | P13: 0 | V13: =IF(U11,1363.4,1424.6) -> 1424.6 | W13: Алтын Бай | X13: =IF(I13>0,(COUNT($X$1:X12)+1),"") -> 
AK14: https://greenberi.ru/product/mochalka-lnjanaja-s-organicheskim-mylom-s-mumijo/
AK15: https://greenberi.ru/product/mylo-kedrovoe/
AK18: https://greenberi.ru/product/napitok-chajnyj-iz-dikorastushhih-trav-batyr-dlja-zdorovja-muzhchin/
AK19: https://greenberi.ru/product/napitok-chajnyj-iz-dikorastushhih-trav-gornye-reki-serdechno-sosudistyj/
AK20: https://greenberi.ru/product/napitok-chajnyj-iz-dikorastushhih-trav-gracija-dlja-pohudenija/
AK21: https://greenberi.ru/product/napitok-chajnyj-iz-dikorastushhih-trav-dobroe-utro-immunnyj/
AK22: https://greenberi.ru/product/chajnyj-napitok-dushevnyj-vecher-uspokaivajushhij-100gr-list-maliny-labaznik-kurilskij-chaj-zizifora-mjata-lavanda-cvet-cheremuhi/
AK23: https://greenberi.ru/product/napitok-chajnyj-iz-dikorastushhih-trav-zolotaja-luna-dlja-zdorovja-zhenshhin/
AK24: https://greenberi.ru/product/napitok-chajnyj-iz-dikorastushhih-trav-letnjaja-noch-obshheukrepljajushhij/
AK25: https://greenberi.ru/product/napitok-chajnyj-iz-dikorastushhih-trav-rodnikovyj-dlja-pochek/
AK26: https://greenberi.ru/product/napitok-chajnyj-iz-dikorastushhih-trav-svobodnoe-dyhanie-protivoprostudnyj/
AK27: https://greenberi.ru/product/napitok-chajnyj-iz-dikorastushhih-trav-snezhnye-vershiny-zheludochno-kishechnyj/
AK28: https://greenberi.ru/product/napitok-chajnyj-iz-dikorastushhih-trav-solnechnyj-dlja-pecheni/
AK29: https://greenberi.ru/product/chajnyj-napitok-jagodka-vitaminnyj-100gr-badan-kurilskij-chaj-chabrec-list-maliny-list-smorodiny-jagoda-shipovnika-jagoda-maliny/

Sheet РЕЗЕРВ (hidden)
A1: Общая сумма заказа: | C1: =Главная!D1 ->  | E1: Общий вес заказа: | G1: =CONCATENATE(Главная!P1," кг") -> 
A2: Наименование | B2: До 4000 р. | C2: От 4000 р. до 12000 р. | D2: От 12000 р. | E2: срок годности, мес. | F2: =CONCATENATE("Общий Вес: ",O2," кг") -> Общий Вес: 0 кг | G2: Шт./гр. в коробке/упаковке | H2: заказ | I2: Сумма, руб. | J2: Ссылка на карточку товара | K2: Вес, Брутто кг. | M2: 2 | O2: =ROUND(S10,1) -> 0 | U2: вниз
F3: Фото товара
A4: ИТОГО по товарам для здоровья: | C4: =SUM(I6:I97) -> 0 | E4: До следующей скидки по товарам для здоровья осталось: | J4: =IF(S7>12000,"Максимальная скидка!", IF(AND(S9<12000,S8>4000),12000-S8,4000-S7)) -> 4000 | L4: =S5-C4 -> 0
A5: В какие бы жестокие игры ни играли с нами природа и цивилизация, мы сможем выстоять, доказательство тому – огромное количество товаров для красоты и здоровья, имеющихся в нашем распоряжении. Так что заряжаемся энергией, отбиваемся от заразы, и вперёд, к новым свершениям!
A6: МАСКИ ТКАНЕВЫЕ МНОГОРАЗОВЫЕ ДВУХСЛОЙНЫЕ НЕМЕДИЦИНСКИЕ | L6: Вернуться в оглавление | M6: =C7*H7 -> 0 | N6: =D7*H7 -> 0 | O6: =H7*K7 -> 0
A7: МАСКА ТКАНЕВАЯ МНОГОРАЗОВАЯ ДВУХСЛОЙНАЯ НЕМЕДИЦИНСКАЯ ЧЕРНАЯ Внешний слой масок изготавливается из смесовых тканей с примесью хлопка, плотность 260 г./кв.м., внутренний слой из 100% гипоаллергенного хлопка, плотность 125-140 г./кв.м., регулируемые мягкие резинки, каждая маска пропаривается перед упаковкой, индивидуальная вакуумная упаковка, плотное прилегание к лицу, приятно лицу, гигиенично, многоразовое использование. | B7: 70 | C7: 66 | D7: 64 | I7: =IF($S$9>12000,D7*H7,IF(AND($S$7>4000,$S$8<12000),C7*H7,B7*H7)) -> 0 | J7: Открыть карточку товара | K7: 0.014 | L7: =B7*H7 -> 0 | M7: 0 | N7: 0 | O7: =H8*K8 -> 0 | R7: колонка 1 | S7: =SUM(L5:L97) -> 0
A8: МАСКА ТКАНЕВАЯ МНОГОРАЗОВАЯ ДВУХСЛОЙНАЯ НЕМЕДИЦИНСКАЯ ХАКИ Внешний слой масок изготавливается из смесовых тканей с примесью хлопка, плотность 260 г./кв.м., внутренний слой из 100% гипоаллергенного хлопка, плотность 125-140 г./кв.м., регулируемые мягкие резинки, каждая маска пропаривается перед упаковкой, индивидуальная вакуумная упаковка, плотное прилегание к лицу, приятно лицу, гигиенично, многоразовое использование. | B8: 70 | C8: 66 | D8: 64 | I8: =IF($S$9>12000,D8*H8,IF(AND($S$7>4000,$S$8<12000),C8*H8,B8*H8)) -> 0 | J8: Открыть карточку товара | K8: 0.015 | L8: 0 | M8: 0 | N8: 0 | O8: 0 | R8: колонка 2 | S8: =SUM(M4:M132) -> 0
A9: МАСКИ ДЕТСКИЕ МНОГОРАЗОВЫЕ ДВУХСЛОЙНЫЕ НЕМЕДИЦИНСКИЕ В АССОРТИМЕНТЕ Внешний слой масок изготавливается из специальных детских хлопковых тканей, плотность 147 г./кв.м., внутренний слой из 100% гипоаллергенного хлопка, плотность 125-140 г./кв.м., регулируемые мягкие резинки, каждая маска пропаривается перед упаковкой, индивидуальная вакуумная упаковка, плотное прилегание к лицу, приятно лицу, гигиенично, многоразовое использование, яркие детские расцветки. | B9: 70 | C9: 66 | D9: 64 | I9: 0 | J9: Открыть карточку товара | K9: 0.011 | L9: 0 | M9: 0 | N9: 0 | O9: 0 | R9: колонка 3 | S9: =SUM(N4:N132) -> 0
L10: 0 | M10: 0 | N10: 0 | O10: 0 | R10: Сумма веса заказа | S10: =SUM(O4:O132) -> 0 | T10: t8
L11: 0 | M11: 0 | N11: 0 | O11: 0
L12: 0 | M12: 0 | N12: 0 | O12: 0
L13: 0 | M13: 0 | N13: 0 | O13: 0
L14: 0 | M14: 0 | N14: 0 | O14: 0
L15: 0 | M15: 0 | N15: 0 | O15: 0
L16: 0 | M16: 0 | N16: 0 | O16: 0
L17: 0 | M17: 0 | N17: 0 | O17: 0
L18: 0 | M18: 0 | N18: 0 | O18: 0
L19: 0 | M19: 0 | N19: 0 | O19: 0
L20: 0 | M20: 0 | N20: 0 | O20: 0
L21: 0 | M21: 0 | N21: 0 | O21: 0
L22: 0
M99: =C64*H64 -> 0 | N99: =D64*H64 -> 0 | O99: =K64*H64 -> 0
I100: =IF($S$11>10000,D100*H100,IF(AND($S$9>5000,$S$10<10000),C100*H100,B100*H100)) -> 0 | L100: =B100*H100 -> 0 | M100: 0 | N100: 0 | O100: 0
I101: 0 | L101: 0 | M101: 0 | N101: 0 | O101: 0
I102: 0 | L102: 0 | M102: 0 | N102: 0 | O102: 0
I103: 0 | L103: 0 | M103: 0 | N103: 0 | O103: 0
I104: 0 | L104: 0 | M104: 0 | N104: 0 | O104: 0
I105: 0 | L105: 0 | M105: 0 | N105: 0 | O105: 0 | Q105: 1,4/1,35
I106: 0 | L106: 0 | M106: 0 | N106: 0 | O106: 0
I107: 0 | L107: 0 | M107: 0 | N107: 0 | O107: 0
I108: 0 | L108: 0 | M108: 0 | N108: 0 | O108: 0
I109: 0 | L109: 0 | M109: 0 | N109: 0 | O109: 0
I110: 0 | L110: 0 | M110: 0 | N110: 0 | O110: 0
I111: 0 | L111: 0 | M111: 0 | N111: 0 | O111: 0
I112: 0 | L112: 0 | M112: 0 | N112: 0 | O112: 0 | Q112: 1,4/1,35
I113: 0 | L113: 0 | M113: 0 | N113: 0 | O113: 0
I114: 0 | L114: 0 | M114: 0 | N114: 0 | O114: 0
I115: 0 | M115: 0 | N115: 0 | O115: 0
M116: 0 | N116: 0 | O116: 0
M117: 0 | N117: 0 | O117: 0
M118: 0 | N118: 0 | O118: 0
Q119: 1,40/1,35
M120: =C85*H85 -> 0 | N120: =D85*H85 -> 0 | O120: =K85*H85 -> 0
M121: 0 | N121: 0 | O121: 0
M122: 0 | N122: 0 | O122: 0
M123: 0 | N123: 0 | O123: 0
M124: 0 | N124: 0 | O124: 0
M125: 0 | N125: 0 | O125: 0 | Q125: 1,4/1,35
M126: 0 | N126: 0 | O126: 0 | AJ126: https://greenberi.ru/product/mochalka-lnjanaja-s-organicheskim-mylom-kedrovaja/
M127: 0 | N127: 0 | O127: 0 | AJ127: https://greenberi.ru/product/mochalka-lnjanaja-s-organicheskim-mylom-medovaja/
M128: 0 | N128: 0 | O128: 0 | AJ128: https://greenberi.ru/product/mochalka-lnjanaja-s-organicheskim-mylom-mozhzhevelovaja/
M129: 0 | N129: 0 | O129: 0 | AJ129: https://greenberi.ru/product/mochalka-lnjanaja-s-organicheskim-mylom-oblepihovaja/
M130: 0 | N130: 0 | O130: 0 | AJ130: https://greenberi.ru/product/mochalka-lnjanaja-s-organicheskim-mylom-pihtovaja/
Q131: 1,5/1,45 | AJ131: https://greenberi.ru/product/mochalka-lnjanaja-s-organicheskim-mylom-s-goluboj-glinoj/
AJ132: https://greenberi.ru/product/mochalka-lnjanaja-s-organicheskim-mylom-s-kamennym-maslom/
AJ133: https://greenberi.ru/product/mochalka-lnjanaja-s-organicheskim-mylom-s-mumijo/
AJ134: https://greenberi.ru/product/mylo-kedrovoe/
AJ137: https://greenberi.ru/product/napitok-chajnyj-iz-dikorastushhih-trav-batyr-dlja-zdorovja-muzhchin/
AJ138: https://greenberi.ru/product/napitok-chajnyj-iz-dikorastushhih-trav-gornye-reki-serdechno-sosudistyj/
AJ139: https://greenberi.ru/product/napitok-chajnyj-iz-dikorastushhih-trav-gracija-dlja-pohudenija/
AJ140: https://greenberi.ru/product/napitok-chajnyj-iz-dikorastushhih-trav-dobroe-utro-immunnyj/
AJ141: https://greenberi.ru/product/chajnyj-napitok-dushevnyj-vecher-uspokaivajushhij-100gr-list-maliny-labaznik-kurilskij-chaj-zizifora-mjata-lavanda-cvet-cheremuhi/
AJ142: https://greenberi.ru/product/napitok-chajnyj-iz-dikorastushhih-trav-zolotaja-luna-dlja-zdorovja-zhenshhin/
AJ143: https://greenberi.ru/product/napitok-chajnyj-iz-dikorastushhih-trav-letnjaja-noch-obshheukrepljajushhij/
AJ144: https://greenberi.ru/product/napitok-chajnyj-iz-dikorastushhih-trav-rodnikovyj-dlja-pochek/
AJ145: https://greenberi.ru/product/napitok-chajnyj-iz-dikorastushhih-trav-svobodnoe-dyhanie-protivoprostudnyj/
AJ146: https://greenberi.ru/product/napitok-chajnyj-iz-dikorastushhih-trav-snezhnye-vershiny-zheludochno-kishechnyj/
AJ147: https://greenberi.ru/product/napitok-chajnyj-iz-dikorastushhih-trav-solnechnyj-dlja-pecheni/
AJ148: https://greenberi.ru/product/chajnyj-napitok-jagodka-vitaminnyj-100gr-badan-kurilskij-chaj-chabrec-list-maliny-list-smorodiny-jagoda-shipovnika-jagoda-maliny/

Sheet ЗАКАЗ
A1: ДОСТАВКА И ОПЛАТА
A2: Транспортная компания
A4: Адрес отправки:
A6: Данные получателя: | D6: Наименование организации/ФИО
A8: Серия номер паспорта
A9: ИНН
A10: (если на ИП или ООО отправка)
A11: КПП
A12: (если отправка на ООО)
A13: Контактное лицо
A14: Телефон
A15: Доставку оплачивает
A16: Защита груза
A17: Оплата товара
B19: =IF(F21>1,"СПАСИБО ЗА ВАШ ЗАКАЗ!","") -> СПАСИБО ЗА ВАШ ЗАКАЗ!
B20: =CONCATENATE(IF(#REF!>1,"","Обратите внимание на наши АКЦИОННЫЕ ТОВАРЫ"),CHAR(10),IF(OR(#REF!>1,#REF!>1),"","Обратите внимание на наши НОВИНКИ")) ->  | E20: Всего наименований: | F20: =COUNT(G25:G349) -> 1900-01-02
E21: Общая сумма заказа: | F21: =SUM(G25:G349) -> 3771
E22: Общий вес заказа: | F22: =CONCATENATE(#REF!," кг.") -> 
B24: № | C24: Наименование | D24: Производитель | E24: Кол-во | F24: Цена | G24: Сумма
A25: =IFERROR(IF(AND(B25>0,B25/1),INDEX(Номенклатура!$B$6:$X$3651,MATCH(B25,Номенклатура!$X$6:$X$3651,0),1),""),"") -> БАТЫР (мужской сбор) | B25: 1 | C25: БАТЫР (мужской сбор) | D25: Алтын БАЙ | E25: =IFERROR(IF(AND(B25>0,B25/1),INDEX(Номенклатура!$B$1:$Z$3651,MATCH(B25,Номенклатура!$X$1:$X$3651,0),8),""),"") -> 2 | F25: 1257 | G25: =IFERROR(IF(AND(B25>0,B25/1),INDEX(Номенклатура!$B$1:$Z$3651,MATCH(B25,Номенклатура!$X$1:$X$3651,0),9),""),"") -> 2514
A26: =IFERROR(IF(AND(B26>0,B26/1),INDEX(Номенклатура!$B$6:$Z$3651,MATCH(B26,Номенклатура!$X$6:$X$3651,0),1),""),"") -> ДОБРОЕ УТРО (иммунный) | B26: =IFERROR(IF(B25>0,SMALL(Номенклатура!$X$1:$X$3651,1+B25),""),"") -> 2 | C26: ДОБРОЕ УТРО (иммунный) | D26: Алтын БАЙ | E26: 1 | F26: 1257 | G26: 1257
A27: =IFERROR(IF(AND(B27>0,B27/1),INDEX(Номенклатура!$B$6:$Z$3651,MATCH(B27,Номенклатура!$X$6:$X$3651,0),1),""),"") ->  | B27: =IFERROR(IF(#REF!>0,SMALL(Номенклатура!$X$1:$X$3651,1+#REF!),""),"") ->  | C27: =IFERROR(IF(AND(B27>0,B27/1),INDEX(#REF!,MATCH(B27,#REF!,0),3),""),"") ->  | D27: =IFERROR(IF(AND(B27>0,B27/1),INDEX(#REF!,MATCH(B27,#REF!,0),9),""),"") ->  | E27: =IFERROR(IF(AND(B27>0,B27/1),INDEX(#REF!,MATCH(B27,#REF!,0),5),""),"") ->  | F27: =IFERROR(IF(AND(B27>0,B27/1),INDEX(#REF!,MATCH(B27,#REF!,0),13)/INDEX(#REF!,MATCH(B27,#REF!,0),5),""),"") ->  | G27: =IFERROR(IF(AND(B27>0,B27/1),INDEX(#REF!,MATCH(B27,#REF!,0),13),""),"") -> 
A28: =IFERROR(IF(AND(B28>0,B28/1),INDEX(Номенклатура!$B$6:$Z$3651,MATCH(B28,Номенклатура!$X$6:$X$3651,0),1),""),"") ->  | B28: =IFERROR(IF(B27>0,SMALL(Номенклатура!$X$1:$X$3651,1+B27),""),"") ->  | C28: =IFERROR(IF(AND(B28>0,B28/1),INDEX(#REF!,MATCH(B28,#REF!,0),3),""),"") ->  | D28: =IFERROR(IF(AND(B28>0,B28/1),INDEX(#REF!,MATCH(B28,#REF!,0),9),""),"") ->  | E28: =IFERROR(IF(AND(B28>0,B28/1),INDEX(#REF!,MATCH(B28,#REF!,0),5),""),"") ->  | F28: =IFERROR(IF(AND(B28>0,B28/1),INDEX(#REF!,MATCH(B28,#REF!,0),13)/INDEX(#REF!,MATCH(B28,#REF!,0),5),""),"") ->  | G28: =IFERROR(IF(AND(B28>0,B28/1),INDEX(#REF!,MATCH(B28,#REF!,0),13),""),"") -> 
A29: =IFERROR(IF(AND(B29>0,B29/1),INDEX(Номенклатура!$B$6:$Z$3651,MATCH(B29,Номенклатура!$X$6:$X$3651,0),1),""),"") ->  | B29: =IFERROR(IF(B28>0,SMALL(Номенклатура!$X$1:$X$3651,1+B28),""),"") ->  | C29: =IFERROR(IF(AND(B29>0,B29/1),INDEX(#REF!,MATCH(B29,#REF!,0),3),""),"") ->  | D29: =IFERROR(IF(AND(B29>0,B29/1),INDEX(#REF!,MATCH(B29,#REF!,0),9),""),"") ->  | E29: =IFERROR(IF(AND(B29>0,B29/1),INDEX(#REF!,MATCH(B29,#REF!,0),5),""),"") ->  | F29: =IFERROR(IF(AND(B29>0,B29/1),INDEX(#REF!,MATCH(B29,#REF!,0),13)/INDEX(#REF!,MATCH(B29,#REF!,0),5),""),"") ->  | G29: =IFERROR(IF(AND(B29>0,B29/1),INDEX(#REF!,MATCH(B29,#REF!,0),13),""),"") -> 
A30: =IFERROR(IF(AND(B30>0,B30/1),INDEX(Номенклатура!$B$6:$Z$3651,MATCH(B30,Номенклатура!$X$6:$X$3651,0),1),""),"") ->  | B30: =IFERROR(IF(B29>0,SMALL(Номенклатура!$X$1:$X$3651,1+B29),""),"") ->  | C30: =IFERROR(IF(AND(B30>0,B30/1),INDEX(#REF!,MATCH(B30,#REF!,0),3),""),"") ->  | D30: =IFERROR(IF(AND(B30>0,B30/1),INDEX(#REF!,MATCH(B30,#REF!,0),9),""),"") ->  | E30: =IFERROR(IF(AND(B30>0,B30/1),INDEX(#REF!,MATCH(B30,#REF!,0),5),""),"") ->  | F30: =IFERROR(IF(AND(B30>0,B30/1),INDEX(#REF!,MATCH(B30,#REF!,0),13)/INDEX(#REF!,MATCH(B30,#REF!,0),5),""),"") ->  | G30: =IFERROR(IF(AND(B30>0,B30/1),INDEX(#REF!,MATCH(B30,#REF!,0),13),""),"") -> 
A31: =IFERROR(IF(AND(B31>0,B31/1),INDEX(Номенклатура!$B$6:$Z$3651,MATCH(B31,Номенклатура!$X$6:$X$3651,0),1),""),"") ->  | B31: =IFERROR(IF(B30>0,SMALL(Номенклатура!$X$1:$X$3651,1+B30),""),"") ->  | C31: =IFERROR(IF(AND(B31>0,B31/1),INDEX(#REF!,MATCH(B31,#REF!,0),3),""),"") ->  | D31: =IFERROR(IF(AND(B31>0,B31/1),INDEX(#REF!,MATCH(B31,#REF!,0),9),""),"") ->  | E31: =IFERROR(IF(AND(B31>0,B31/1),INDEX(#REF!,MATCH(B31,#REF!,0),5),""),"") ->  | F31: =IFERROR(IF(AND(B31>0,B31/1),INDEX(#REF!,MATCH(B31,#REF!,0),13)/INDEX(#REF!,MATCH(B31,#REF!,0),5),""),"") ->  | G31: =IFERROR(IF(AND(B31>0,B31/1),INDEX(#REF!,MATCH(B31,#REF!,0),13),""),"") -> 
A32: =IFERROR(IF(AND(B32>0,B32/1),INDEX(Номенклатура!$B$6:$Z$3651,MATCH(B32,Номенклатура!$X$6:$X$3651,0),1),""),"") ->  | B32: =IFERROR(IF(B31>0,SMALL(Номенклатура!$X$1:$X$3651,1+B31),""),"") ->  | C32: =IFERROR(IF(AND(B32>0,B32/1),INDEX(#REF!,MATCH(B32,#REF!,0),3),""),"") ->  | D32: =IFERROR(IF(AND(B32>0,B32/1),INDEX(#REF!,MATCH(B32,#REF!,0),9),""),"") ->  | E32: =IFERROR(IF(AND(B32>0,B32/1),INDEX(#REF!,MATCH(B32,#REF!,0),5),""),"") ->  | F32: =IFERROR(IF(AND(B32>0,B32/1),INDEX(#REF!,MATCH(B32,#REF!,0),13)/INDEX(#REF!,MATCH(B32,#REF!,0),5),""),"") ->  | G32: =IFERROR(IF(AND(B32>0,B32/1),INDEX(#REF!,MATCH(B32,#REF!,0),13),""),"") -> 
A33: =IFERROR(IF(AND(B33>0,B33/1),INDEX(Номенклатура!$B$6:$Z$3651,MATCH(B33,Номенклатура!$X$6:$X$3651,0),1),""),"") ->  | B33: =IFERROR(IF(B32>0,SMALL(Номенклатура!$X$1:$X$3651,1+B32),""),"") ->  | C33: =IFERROR(IF(AND(B33>0,B33/1),INDEX(#REF!,MATCH(B33,#REF!,0),3),""),"") ->  | D33: =IFERROR(IF(AND(B33>0,B33/1),INDEX(#REF!,MATCH(B33,#REF!,0),9),""),"") ->  | E33: =IFERROR(IF(AND(B33>0,B33/1),INDEX(#REF!,MATCH(B33,#REF!,0),5),""),"") ->  | F33: =IFERROR(IF(AND(B33>0,B33/1),INDEX(#REF!,MATCH(B33,#REF!,0),13)/INDEX(#REF!,MATCH(B33,#REF!,0),5),""),"") ->  | G33: =IFERROR(IF(AND(B33>0,B33/1),INDEX(#REF!,MATCH(B33,#REF!,0),13),""),"") -> 
A34: =IFERROR(IF(AND(B34>0,B34/1),INDEX(Номенклатура!$B$6:$Z$3651,MATCH(B34,Номенклатура!$X$6:$X$3651,0),1),""),"") ->  | B34: =IFERROR(IF(B33>0,SMALL(Номенклатура!$X$1:$X$3651,1+B33),""),"") ->  | C34: =IFERROR(IF(AND(B34>0,B34/1),INDEX(#REF!,MATCH(B34,#REF!,0),3),""),"") ->  | D34: =IFERROR(IF(AND(B34>0,B34/1),INDEX(#REF!,MATCH(B34,#REF!,0),9),""),"") ->  | E34: =IFERROR(IF(AND(B34>0,B34/1),INDEX(#REF!,MATCH(B34,#REF!,0),5),""),"") ->  | F34: =IFERROR(IF(AND(B34>0,B34/1),INDEX(#REF!,MATCH(B34,#REF!,0),13)/INDEX(#REF!,MATCH(B34,#REF!,0),5),""),"") ->  | G34: =IFERROR(IF(AND(B34>0,B34/1),INDEX(#REF!,MATCH(B34,#REF!,0),13),""),"") -> 
A35: =IFERROR(IF(AND(B35>0,B35/1),INDEX(Номенклатура!$B$6:$Z$3651,MATCH(B35,Номенклатура!$X$6:$X$3651,0),1),""),"") ->  | B35: =IFERROR(IF(B34>0,SMALL(Номенклатура!$X$1:$X$3651,1+B34),""),"") ->  | C35: =IFERROR(IF(AND(B35>0,B35/1),INDEX(#REF!,MATCH(B35,#REF!,0),3),""),"") ->  | D35: =IFERROR(IF(AND(B35>0,B35/1),INDEX(#REF!,MATCH(B35,#REF!,0),9),""),"") ->  | E35: =IFERROR(IF(AND(B35>0,B35/1),INDEX(#REF!,MATCH(B35,#REF!,0),5),""),"") ->  | F35: =IFERROR(IF(AND(B35>0,B35/1),INDEX(#REF!,MATCH(B35,#REF!,0),13)/INDEX(#REF!,MATCH(B35,#REF!,0),5),""),"") ->  | G35: =IFERROR(IF(AND(B35>0,B35/1),INDEX(#REF!,MATCH(B35,#REF!,0),13),""),"") -> 
A36: =IFERROR(IF(AND(B36>0,B36/1),INDEX(Номенклатура!$B$6:$Z$3651,MATCH(B36,Номенклатура!$X$6:$X$3651,0),1),""),"") ->  | B36: =IFERROR(IF(B35>0,SMALL(Номенклатура!$X$1:$X$3651,1+B35),""),"") ->  | C36: =IFERROR(IF(AND(B36>0,B36/1),INDEX(#REF!,MATCH(B36,#REF!,0),3),""),"") ->  | D36: =IFERROR(IF(AND(B36>0,B36/1),INDEX(#REF!,MATCH(B36,#REF!,0),9),""),"") ->  | E36: =IFERROR(IF(AND(B36>0,B36/1),INDEX(#REF!,MATCH(B36,#REF!,0),5),""),"") ->  | F36: =IFERROR(IF(AND(B36>0,B36/1),INDEX(#REF!,MATCH(B36,#REF!,0),13)/INDEX(#REF!,MATCH(B36,#REF!,0),5),""),"") ->  | G36: =IFERROR(IF(AND(B36>0,B36/1),INDEX(#REF!,MATCH(B36,#REF!,0),13),""),"") -> 
A37: =IFERROR(IF(AND(B37>0,B37/1),INDEX(Номенклатура!$B$6:$Z$3651,MATCH(B37,Номенклатура!$X$6:$X$3651,0),1),""),"") ->  | B37: =IFERROR(IF(B36>0,SMALL(Номенклатура!$X$1:$X$3651,1+B36),""),"") ->  | C37: =IFERROR(IF(AND(B37>0,B37/1),INDEX(#REF!,MATCH(B37,#REF!,0),3),""),"") ->  | D37: =IFERROR(IF(AND(B37>0,B37/1),INDEX(#REF!,MATCH(B37,#REF!,0),9),""),"") ->  | E37: =IFERROR(IF(AND(B37>0,B37/1),INDEX(#REF!,MATCH(B37,#REF!,0),5),""),"") ->  | F37: =IFERROR(IF(AND(B37>0,B37/1),INDEX(#REF!,MATCH(B37,#REF!,0),13)/INDEX(#REF!,MATCH(B37,#REF!,0),5),""),"") ->  | G37: =IFERROR(IF(AND(B37>0,B37/1),INDEX(#REF!,MATCH(B37,#REF!,0),13),""),"") -> 
A38: =IFERROR(IF(AND(B38>0,B38/1),INDEX(Номенклатура!$B$6:$Z$3651,MATCH(B38,Номенклатура!$X$6:$X$3651,0),1),""),"") ->  | B38: =IFERROR(IF(B37>0,SMALL(Номенклатура!$X$1:$X$3651,1+B37),""),"") ->  | C38: =IFERROR(IF(AND(B38>0,B38/1),INDEX(#REF!,MATCH(B38,#REF!,0),3),""),"") ->  | D38: =IFERROR(IF(AND(B38>0,B38/1),INDEX(#REF!,MATCH(B38,#REF!,0),9),""),"") ->  | E38: =IFERROR(IF(AND(B38>0,B38/1),INDEX(#REF!,MATCH(B38,#REF!,0),5),""),"") ->  | F38: =IFERROR(IF(AND(B38>0,B38/1),INDEX(#REF!,MATCH(B38,#REF!,0),13)/INDEX(#REF!,MATCH(B38,#REF!,0),5),""),"") ->  | G38: =IFERROR(IF(AND(B38>0,B38/1),INDEX(#REF!,MATCH(B38,#REF!,0),13),""),"") -> 
A39: =IFERROR(IF(AND(B39>0,B39/1),INDEX(Номенклатура!$B$6:$Z$3651,MATCH(B39,Номенклатура!$X$6:$X$3651,0),1),""),"") ->  | B39: =IFERROR(IF(B38>0,SMALL(Номенклатура!$X$1:$X$3651,1+B38),""),"") ->  | C39: =IFERROR(IF(AND(B39>0,B39/1),INDEX(#REF!,MATCH(B39,#REF!,0),3),""),"") ->  | D39: =IFERROR(IF(AND(B39>0,B39/1),INDEX(#REF!,MATCH(B39,#REF!,0),9),""),"") ->  | E39: =IFERROR(IF(AND(B39>0,B39/1),INDEX(#REF!,MATCH(B39,#REF!,0),5),""),"") ->  | F39: =IFERROR(IF(AND(B39>0,B39/1),INDEX(#REF!,MATCH(B39,#REF!,0),13)/INDEX(#REF!,MATCH(B39,#REF!,0),5),""),"") ->  | G39: =IFERROR(IF(AND(B39>0,B39/1),INDEX(#REF!,MATCH(B39,#REF!,0),13),""),"") -> 
A40: =IFERROR(IF(AND(B40>0,B40/1),INDEX(Номенклатура!$B$6:$Z$3651,MATCH(B40,Номенклатура!$X$6:$X$3651,0),1),""),"") ->  | B40: =IFERROR(IF(B39>0,SMALL(Номенклатура!$X$1:$X$3651,1+B39),""),"") ->  | C40: =IFERROR(IF(AND(B40>0,B40/1),INDEX(#REF!,MATCH(B40,#REF!,0),3),""),"") ->  | D40: =IFERROR(IF(AND(B40>0,B40/1),INDEX(#REF!,MATCH(B40,#REF!,0),9),""),"") ->  | E40: =IFERROR(IF(AND(B40>0,B40/1),INDEX(#REF!,MATCH(B40,#REF!,0),5),""),"") ->  | F40: =IFERROR(IF(AND(B40>0,B40/1),INDEX(#REF!,MATCH(B40,#REF!,0),13)/INDEX(#REF!,MATCH(B40,#REF!,0),5),""),"") ->  | G40: =IFERROR(IF(AND(B40>0,B40/1),INDEX(#REF!,MATCH(B40,#REF!,0),13),""),"") -> 
A41: =IFERROR(IF(AND(B41>0,B41/1),INDEX(Номенклатура!$B$6:$Z$3651,MATCH(B41,Номенклатура!$X$6:$X$3651,0),1),""),"") ->  | B41: =IFERROR(IF(B40>0,SMALL(Номенклатура!$X$1:$X$3651,1+B40),""),"") ->  | C41: =IFERROR(IF(AND(B41>0,B41/1),INDEX(#REF!,MATCH(B41,#REF!,0),3),""),"") ->  | D41: =IFERROR(IF(AND(B41>0,B41/1),INDEX(#REF!,MATCH(B41,#REF!,0),9),""),"") ->  | E41: =IFERROR(IF(AND(B41>0,B41/1),INDEX(#REF!,MATCH(B41,#REF!,0),5),""),"") ->  | F41: =IFERROR(IF(AND(B41>0,B41/1),INDEX(#REF!,MATCH(B41,#REF!,0),13)/INDEX(#REF!,MATCH(B41,#REF!,0),5),""),"") ->  | G41: =IFERROR(IF(AND(B41>0,B41/1),INDEX(#REF!,MATCH(B41,#REF!,0),13),""),"") -> 
A42: =IFERROR(IF(AND(B42>0,B42/1),INDEX(Номенклатура!$B$6:$Z$3651,MATCH(B42,Номенклатура!$X$6:$X$3651,0),1),""),"") ->  | B42: =IFERROR(IF(B41>0,SMALL(Номенклатура!$X$1:$X$3651,1+B41),""),"") ->  | C42: =IFERROR(IF(AND(B42>0,B42/1),INDEX(#REF!,MATCH(B42,#REF!,0),3),""),"") ->  | D42: =IFERROR(IF(AND(B42>0,B42/1),INDEX(#REF!,MATCH(B42,#REF!,0),9),""),"") ->  | E42: =IFERROR(IF(AND(B42>0,B42/1),INDEX(#REF!,MATCH(B42,#REF!,0),5),""),"") ->  | F42: =IFERROR(IF(AND(B42>0,B42/1),INDEX(#REF!,MATCH(B42,#REF!,0),13)/INDEX(#REF!,MATCH(B42,#REF!,0),5),""),"") ->  | G42: =IFERROR(IF(AND(B42>0,B42/1),INDEX(#REF!,MATCH(B42,#REF!,0),13),""),"") -> 
A43: =IFERROR(IF(AND(B43>0,B43/1),INDEX(Номенклатура!$B$6:$Z$3651,MATCH(B43,Номенклатура!$X$6:$X$3651,0),1),""),"") ->  | B43: =IFERROR(IF(B42>0,SMALL(Номенклатура!$X$1:$X$3651,1+B42),""),"") ->  | C43: =IFERROR(IF(AND(B43>0,B43/1),INDEX(#REF!,MATCH(B43,#REF!,0),3),""),"") ->  | D43: =IFERROR(IF(AND(B43>0,B43/1),INDEX(#REF!,MATCH(B43,#REF!,0),9),""),"") ->  | E43: =IFERROR(IF(AND(B43>0,B43/1),INDEX(#REF!,MATCH(B43,#REF!,0),5),""),"") ->  | F43: =IFERROR(IF(AND(B43>0,B43/1),INDEX(#REF!,MATCH(B43,#REF!,0),13)/INDEX(#REF!,MATCH(B43,#REF!,0),5),""),"") ->  | G43: =IFERROR(IF(AND(B43>0,B43/1),INDEX(#REF!,MATCH(B43,#REF!,0),13),""),"") -> 
A44: =IFERROR(IF(AND(B44>0,B44/1),INDEX(Номенклатура!$B$6:$Z$3651,MATCH(B44,Номенклатура!$X$6:$X$3651,0),1),""),"") ->  | B44: =IFERROR(IF(B43>0,SMALL(Номенклатура!$X$1:$X$3651,1+B43),""),"") ->  | C44: =IFERROR(IF(AND(B44>0,B44/1),INDEX(#REF!,MATCH(B44,#REF!,0),3),""),"") ->  | D44: =IFERROR(IF(AND(B44>0,B44/1),INDEX(#REF!,MATCH(B44,#REF!,0),9),""),"") ->  | E44: =IFERROR(IF(AND(B44>0,B44/1),INDEX(#REF!,MATCH(B44,#REF!,0),5),""),"") ->  | F44: =IFERROR(IF(AND(B44>0,B44/1),INDEX(#REF!,MATCH(B44,#REF!,0),13)/INDEX(#REF!,MATCH(B44,#REF!,0),5),""),"") ->  | G44: =IFERROR(IF(AND(B44>0,B44/1),INDEX(#REF!,MATCH(B44,#REF!,0),13),""),"") -> 
A45: =IFERROR(IF(AND(B45>0,B45/1),INDEX(Номенклатура!$B$6:$Z$3651,MATCH(B45,Номенклатура!$X$6:$X$3651,0),1),""),"") ->  | B45: =IFERROR(IF(B44>0,SMALL(Номенклатура!$X$1:$X$3651,1+B44),""),"") ->  | C45: =IFERROR(IF(AND(B45>0,B45/1),INDEX(#REF!,MATCH(B45,#REF!,0),3),""),"") ->  | D45: =IFERROR(IF(AND(B45>0,B45/1),INDEX(#REF!,MATCH(B45,#REF!,0),9),""),"") ->  | E45: =IFERROR(IF(AND(B45>0,B45/1),INDEX(#REF!,MATCH(B45,#REF!,0),5),""),"") ->  | F45: =IFERROR(IF(AND(B45>0,B45/1),INDEX(#REF!,MATCH(B45,#REF!,0),13)/INDEX(#REF!,MATCH(B45,#REF!,0),5),""),"") ->  | G45: =IFERROR(IF(AND(B45>0,B45/1),INDEX(#REF!,MATCH(B45,#REF!,0),13),""),"") -> 
A46: =IFERROR(IF(AND(B46>0,B46/1),INDEX(Номенклатура!$B$6:$Z$3651,MATCH(B46,Номенклатура!$X$6:$X$3651,0),1),""),"") ->  | B46: =IFERROR(IF(B45>0,SMALL(Номенклатура!$X$1:$X$3651,1+B45),""),"") ->  | C46: =IFERROR(IF(AND(B46>0,B46/1),INDEX(#REF!,MATCH(B46,#REF!,0),3),""),"") ->  | D46: =IFERROR(IF(AND(B46>0,B46/1),INDEX(#REF!,MATCH(B46,#REF!,0),9),""),"") ->  | E46: =IFERROR(IF(AND(B46>0,B46/1),INDEX(#REF!,MATCH(B46,#REF!,0),5),""),"") ->  | F46: =IFERROR(IF(AND(B46>0,B46/1),INDEX(#REF!,MATCH(B46,#REF!,0),13)/INDEX(#REF!,MATCH(B46,#REF!,0),5),""),"") ->  | G46: =IFERROR(IF(AND(B46>0,B46/1),INDEX(#REF!,MATCH(B46,#REF!,0),13),""),"") -> 
A47: =IFERROR(IF(AND(B47>0,B47/1),INDEX(Номенклатура!$B$6:$Z$3651,MATCH(B47,Номенклатура!$X$6:$X$3651,0),1),""),"") ->  | B47: =IFERROR(IF(B46>0,SMALL(Номенклатура!$X$1:$X$3651,1+B46),""),"") ->  | C47: =IFERROR(IF(AND(B47>0,B47/1),INDEX(#REF!,MATCH(B47,#REF!,0),3),""),"") ->  | D47: =IFERROR(IF(AND(B47>0,B47/1),INDEX(#REF!,MATCH(B47,#REF!,0),9),""),"") ->  | E47: =IFERROR(IF(AND(B47>0,B47/1),INDEX(#REF!,MATCH(B47,#REF!,0),5),""),"") ->  | F47: =IFERROR(IF(AND(B47>0,B47/1),INDEX(#REF!,MATCH(B47,#REF!,0),13)/INDEX(#REF!,MATCH(B47,#REF!,0),5),""),"") ->  | G47: =IFERROR(IF(AND(B47>0,B47/1),INDEX(#REF!,MATCH(B47,#REF!,0),13),""),"") -> 
A48: =IFERROR(IF(AND(B48>0,B48/1),INDEX(Номенклатура!$B$6:$Z$3651,MATCH(B48,Номенклатура!$X$6:$X$3651,0),1),""),"") ->  | B48: =IFERROR(IF(B47>0,SMALL(Номенклатура!$X$1:$X$3651,1+B47),""),"") ->  | C48: =IFERROR(IF(AND(B48>0,B48/1),INDEX(#REF!,MATCH(B48,#REF!,0),3),""),"") ->  | D48: =IFERROR(IF(AND(B48>0,B48/1),INDEX(#REF!,MATCH(B48,#REF!,0),9),""),"") ->  | E48: =IFERROR(IF(AND(B48>0,B48/1),INDEX(#REF!,MATCH(B48,#REF!,0),5),""),"") ->  | F48: =IFERROR(IF(AND(B48>0,B48/1),INDEX(#REF!,MATCH(B48,#REF!,0),13)/INDEX(#REF!,MATCH(B48,#REF!,0),5),""),"") ->  | G48: =IFERROR(IF(AND(B48>0,B48/1),INDEX(#REF!,MATCH(B48,#REF!,0),13),""),"") -> 
A49: =IFERROR(IF(AND(B49>0,B49/1),INDEX(Номенклатура!$B$6:$Z$3651,MATCH(B49,Номенклатура!$X$6:$X$3651,0),1),""),"") ->  | B49: =IFERROR(IF(B48>0,SMALL(Номенклатура!$X$1:$X$3651,1+B48),""),"") ->  | C49: =IFERROR(IF(AND(B49>0,B49/1),INDEX(#REF!,MATCH(B49,#REF!,0),3),""),"") ->  | D49: =IFERROR(IF(AND(B49>0,B49/1),INDEX(#REF!,MATCH(B49,#REF!,0),9),""),"") ->  | E49: =IFERROR(IF(AND(B49>0,B49/1),INDEX(#REF!,MATCH(B49,#REF!,0),5),""),"") ->  | F49: =IFERROR(IF(AND(B49>0,B49/1),INDEX(#REF!,MATCH(B49,#REF!,0),13)/INDEX(#REF!,MATCH(B49,#REF!,0),5),""),"") ->  | G49: =IFERROR(IF(AND(B49>0,B49/1),INDEX(#REF!,MATCH(B49,#REF!,0),13),""),"") -> 
A50: =IFERROR(IF(AND(B50>0,B50/1),INDEX(Номенклатура!$B$6:$Z$3651,MATCH(B50,Номенклатура!$X$6:$X$3651,0),1),""),"") ->  | B50: =IFERROR(IF(B49>0,SMALL(Номенклатура!$X$1:$X$3651,1+B49),""),"") ->  | C50: =IFERROR(IF(AND(B50>0,B50/1),INDEX(#REF!,MATCH(B50,#REF!,0),3),""),"") ->  | D50: =IFERROR(IF(AND(B50>0,B50/1),INDEX(#REF!,MATCH(B50,#REF!,0),9),""),"") ->  | E50: =IFERROR(IF(AND(B50>0,B50/1),INDEX(#REF!,MATCH(B50,#REF!,0),5),""),"") ->  | F50: =IFERROR(IF(AND(B50>0,B50/1),INDEX(#REF!,MATCH(B50,#REF!,0),13)/INDEX(#REF!,MATCH(B50,#REF!,0),5),""),"") ->  | G50: =IFERROR(IF(AND(B50>0,B50/1),INDEX(#REF!,MATCH(B50,#REF!,0),13),""),"") -> 
A51: =IFERROR(IF(AND(B51>0,B51/1),INDEX(Номенклатура!$B$6:$Z$3651,MATCH(B51,Номенклатура!$X$6:$X$3651,0),1),""),"") ->  | B51: =IFERROR(IF(B50>0,SMALL(Номенклатура!$X$1:$X$3651,1+B50),""),"") ->  | C51: =IFERROR(IF(AND(B51>0,B51/1),INDEX(#REF!,MATCH(B51,#REF!,0),3),""),"") ->  | D51: =IFERROR(IF(AND(B51>0,B51/1),INDEX(#REF!,MATCH(B51,#REF!,0),9),""),"") ->  | E51: =IFERROR(IF(AND(B51>0,B51/1),INDEX(#REF!,MATCH(B51,#REF!,0),5),""),"") ->  | F51: =IFERROR(IF(AND(B51>0,B51/1),INDEX(#REF!,MATCH(B51,#REF!,0),13)/INDEX(#REF!,MATCH(B51,#REF!,0),5),""),"") ->  | G51: =IFERROR(IF(AND(B51>0,B51/1),INDEX(#REF!,MATCH(B51,#REF!,0),13),""),"") -> 
A52: =IFERROR(IF(AND(B52>0,B52/1),INDEX(Номенклатура!$B$6:$Z$3651,MATCH(B52,Номенклатура!$X$6:$X$3651,0),1),""),"") ->  | B52: =IFERROR(IF(B51>0,SMALL(Номенклатура!$X$1:$X$3651,1+B51),""),"") ->  | C52: =IFERROR(IF(AND(B52>0,B52/1),INDEX(#REF!,MATCH(B52,#REF!,0),3),""),"") ->  | D52: =IFERROR(IF(AND(B52>0,B52/1),INDEX(#REF!,MATCH(B52,#REF!,0),9),""),"") ->  | E52: =IFERROR(IF(AND(B52>0,B52/1),INDEX(#REF!,MATCH(B52,#REF!,0),5),""),"") ->  | F52: =IFERROR(IF(AND(B52>0,B52/1),INDEX(#REF!,MATCH(B52,#REF!,0),13)/INDEX(#REF!,MATCH(B52,#REF!,0),5),""),"") ->  | G52: =IFERROR(IF(AND(B52>0,B52/1),INDEX(#REF!,MATCH(B52,#REF!,0),13),""),"") -> 
A53: =IFERROR(IF(AND(B53>0,B53/1),INDEX(Номенклатура!$B$6:$Z$3651,MATCH(B53,Номенклатура!$X$6:$X$3651,0),1),""),"") ->  | B53: =IFERROR(IF(B52>0,SMALL(Номенклатура!$X$1:$X$3651,1+B52),""),"") ->  | C53: =IFERROR(IF(AND(B53>0,B53/1),INDEX(#REF!,MATCH(B53,#REF!,0),3),""),"") ->  | D53: =IFERROR(IF(AND(B53>0,B53/1),INDEX(#REF!,MATCH(B53,#REF!,0),9),""),"") ->  | E53: =IFERROR(IF(AND(B53>0,B53/1),INDEX(#REF!,MATCH(B53,#REF!,0),5),""),"") ->  | F53: =IFERROR(IF(AND(B53>0,B53/1),INDEX(#REF!,MATCH(B53,#REF!,0),13)/INDEX(#REF!,MATCH(B53,#REF!,0),5),""),"") ->  | G53: =IFERROR(IF(AND(B53>0,B53/1),INDEX(#REF!,MATCH(B53,#REF!,0),13),""),"") -> 
A54: =IFERROR(IF(AND(B54>0,B54/1),INDEX(Номенклатура!$B$6:$Z$3651,MATCH(B54,Номенклатура!$X$6:$X$3651,0),1),""),"") ->  | B54: =IFERROR(IF(B53>0,SMALL(Номенклатура!$X$1:$X$3651,1+B53),""),"") ->  | C54: =IFERROR(IF(AND(B54>0,B54/1),INDEX(#REF!,MATCH(B54,#REF!,0),3),""),"") ->  | D54: =IFERROR(IF(AND(B54>0,B54/1),INDEX(#REF!,MATCH(B54,#REF!,0),9),""),"") ->  | E54: =IFERROR(IF(AND(B54>0,B54/1),INDEX(#REF!,MATCH(B54,#REF!,0),5),""),"") ->  | F54: =IFERROR(IF(AND(B54>0,B54/1),INDEX(#REF!,MATCH(B54,#REF!,0),13)/INDEX(#REF!,MATCH(B54,#REF!,0),5),""),"") ->  | G54: =IFERROR(IF(AND(B54>0,B54/1),INDEX(#REF!,MATCH(B54,#REF!,0),13),""),"") -> 
A55: =IFERROR(IF(AND(B55>0,B55/1),INDEX(Номенклатура!$B$6:$Z$3651,MATCH(B55,Номенклатура!$X$6:$X$3651,0),1),""),"") ->  | B55: =IFERROR(IF(B54>0,SMALL(Номенклатура!$X$1:$X$3651,1+B54),""),"") ->  | C55: =IFERROR(IF(AND(B55>0,B55/1),INDEX(#REF!,MATCH(B55,#REF!,0),3),""),"") ->  | D55: =IFERROR(IF(AND(B55>0,B55/1),INDEX(#REF!,MATCH(B55,#REF!,0),9),""),"") ->  | E55: =IFERROR(IF(AND(B55>0,B55/1),INDEX(#REF!,MATCH(B55,#REF!,0),5),""),"") ->  | F55: =IFERROR(IF(AND(B55>0,B55/1),INDEX(#REF!,MATCH(B55,#REF!,0),13)/INDEX(#REF!,MATCH(B55,#REF!,0),5),""),"") ->  | G55: =IFERROR(IF(AND(B55>0,B55/1),INDEX(#REF!,MATCH(B55,#REF!,0),13),""),"") -> 
A56: =IFERROR(IF(AND(B56>0,B56/1),INDEX(Номенклатура!$B$6:$Z$3651,MATCH(B56,Номенклатура!$X$6:$X$3651,0),1),""),"") ->  | B56: =IFERROR(IF(B55>0,SMALL(Номенклатура!$X$1:$X$3651,1+B55),""),"") ->  | C56: =IFERROR(IF(AND(B56>0,B56/1),INDEX(#REF!,MATCH(B56,#REF!,0),3),""),"") ->  | D56: =IFERROR(IF(AND(B56>0,B56/1),INDEX(#REF!,MATCH(B56,#REF!,0),9),""),"") ->  | E56: =IFERROR(IF(AND(B56>0,B56/1),INDEX(#REF!,MATCH(B56,#REF!,0),5),""),"") ->  | F56: =IFERROR(IF(AND(B56>0,B56/1),INDEX(#REF!,MATCH(B56,#REF!,0),13)/INDEX(#REF!,MATCH(B56,#REF!,0),5),""),"") ->  | G56: =IFERROR(IF(AND(B56>0,B56/1),INDEX(#REF!,MATCH(B56,#REF!,0),13),""),"") -> 
A57: =IFERROR(IF(AND(B57>0,B57/1),INDEX(Номенклатура!$B$6:$Z$3651,MATCH(B57,Номенклатура!$X$6:$X$3651,0),1),""),"") ->  | B57: =IFERROR(IF(B56>0,SMALL(Номенклатура!$X$1:$X$3651,1+B56),""),"") ->  | C57: =IFERROR(IF(AND(B57>0,B57/1),INDEX(#REF!,MATCH(B57,#REF!,0),3),""),"") ->  | D57: =IFERROR(IF(AND(B57>0,B57/1),INDEX(#REF!,MATCH(B57,#REF!,0),9),""),"") ->  | E57: =IFERROR(IF(AND(B57>0,B57/1),INDEX(#REF!,MATCH(B57,#REF!,0),5),""),"") ->  | F57: =IFERROR(IF(AND(B57>0,B57/1),INDEX(#REF!,MATCH(B57,#REF!,0),13)/INDEX(#REF!,MATCH(B57,#REF!,0),5),""),"") ->  | G57: =IFERROR(IF(AND(B57>0,B57/1),INDEX(#REF!,MATCH(B57,#REF!,0),13),""),"") -> 
A58: =IFERROR(IF(AND(B58>0,B58/1),INDEX(Номенклатура!$B$6:$Z$3651,MATCH(B58,Номенклатура!$X$6:$X$3651,0),1),""),"") ->  | B58: =IFERROR(IF(B57>0,SMALL(Номенклатура!$X$1:$X$3651,1+B57),""),"") ->  | C58: =IFERROR(IF(AND(B58>0,B58/1),INDEX(#REF!,MATCH(B58,#REF!,0),3),""),"") ->  | D58: =IFERROR(IF(AND(B58>0,B58/1),INDEX(#REF!,MATCH(B58,#REF!,0),9),""),"") ->  | E58: =IFERROR(IF(AND(B58>0,B58/1),INDEX(#REF!,MATCH(B58,#REF!,0),5),""),"") ->  | F58: =IFERROR(IF(AND(B58>0,B58/1),INDEX(#REF!,MATCH(B58,#REF!,0),13)/INDEX(#REF!,MATCH(B58,#REF!,0),5),""),"") ->  | G58: =IFERROR(IF(AND(B58>0,B58/1),INDEX(#REF!,MATCH(B58,#REF!,0),13),""),"") -> 
A59: =IFERROR(IF(AND(B59>0,B59/1),INDEX(Номенклатура!$B$6:$Z$3651,MATCH(B59,Номенклатура!$X$6:$X$3651,0),1),""),"") ->  | B59: =IFERROR(IF(B58>0,SMALL(Номенклатура!$X$1:$X$3651,1+B58),""),"") ->  | C59: =IFERROR(IF(AND(B59>0,B59/1),INDEX(#REF!,MATCH(B59,#REF!,0),3),""),"") ->  | D59: =IFERROR(IF(AND(B59>0,B59/1),INDEX(#REF!,MATCH(B59,#REF!,0),9),""),"") ->  | E59: =IFERROR(IF(AND(B59>0,B59/1),INDEX(#REF!,MATCH(B59,#REF!,0),5),""),"") ->  | F59: =IFERROR(IF(AND(B59>0,B59/1),INDEX(#REF!,MATCH(B59,#REF!,0),13)/INDEX(#REF!,MATCH(B59,#REF!,0),5),""),"") ->  | G59: =IFERROR(IF(AND(B59>0,B59/1),INDEX(#REF!,MATCH(B59,#REF!,0),13),""),"") -> 
A60: =IFERROR(IF(AND(B60>0,B60/1),INDEX(Номенклатура!$B$6:$Z$3651,MATCH(B60,Номенклатура!$X$6:$X$3651,0),1),""),"") ->  | B60: =IFERROR(IF(B59>0,SMALL(Номенклатура!$X$1:$X$3651,1+B59),""),"") ->  | C60: =IFERROR(IF(AND(B60>0,B60/1),INDEX(#REF!,MATCH(B60,#REF!,0),3),""),"") ->  | D60: =IFERROR(IF(AND(B60>0,B60/1),INDEX(#REF!,MATCH(B60,#REF!,0),9),""),"") ->  | E60: =IFERROR(IF(AND(B60>0,B60/1),INDEX(#REF!,MATCH(B60,#REF!,0),5),""),"") ->  | F60: =IFERROR(IF(AND(B60>0,B60/1),INDEX(#REF!,MATCH(B60,#REF!,0),13)/INDEX(#REF!,MATCH(B60,#REF!,0),5),""),"") ->  | G60: =IFERROR(IF(AND(B60>0,B60/1),INDEX(#REF!,MATCH(B60,#REF!,0),13),""),"") -> 
A61: =IFERROR(IF(AND(B61>0,B61/1),INDEX(Номенклатура!$B$6:$Z$3651,MATCH(B61,Номенклатура!$X$6:$X$3651,0),1),""),"") ->  | B61: =IFERROR(IF(B60>0,SMALL(Номенклатура!$X$1:$X$3651,1+B60),""),"") ->  | C61: =IFERROR(IF(AND(B61>0,B61/1),INDEX(#REF!,MATCH(B61,#REF!,0),3),""),"") ->  | D61: =IFERROR(IF(AND(B61>0,B61/1),INDEX(#REF!,MATCH(B61,#REF!,0),9),""),"") ->  | E61: =IFERROR(IF(AND(B61>0,B61/1),INDEX(#REF!,MATCH(B61,#REF!,0),5),""),"") ->  | F61: =IFERROR(IF(AND(B61>0,B61/1),INDEX(#REF!,MATCH(B61,#REF!,0),13)/INDEX(#REF!,MATCH(B61,#REF!,0),5),""),"") ->  | G61: =IFERROR(IF(AND(B61>0,B61/1),INDEX(#REF!,MATCH(B61,#REF!,0),13),""),"") -> 
A62: =IFERROR(IF(AND(B62>0,B62/1),INDEX(Номенклатура!$B$6:$Z$3651,MATCH(B62,Номенклатура!$X$6:$X$3651,0),1),""),"") ->  | B62: =IFERROR(IF(B61>0,SMALL(Номенклатура!$X$1:$X$3651,1+B61),""),"") ->  | C62: =IFERROR(IF(AND(B62>0,B62/1),INDEX(#REF!,MATCH(B62,#REF!,0),3),""),"") ->  | D62: =IFERROR(IF(AND(B62>0,B62/1),INDEX(#REF!,MATCH(B62,#REF!,0),9),""),"") ->  | E62: =IFERROR(IF(AND(B62>0,B62/1),INDEX(#REF!,MATCH(B62,#REF!,0),5),""),"") ->  | F62: =IFERROR(IF(AND(B62>0,B62/1),INDEX(#REF!,MATCH(B62,#REF!,0),13)/INDEX(#REF!,MATCH(B62,#REF!,0),5),""),"") ->  | G62: =IFERROR(IF(AND(B62>0,B62/1),INDEX(#REF!,MATCH(B62,#REF!,0),13),""),"") -> 
A63: =IFERROR(IF(AND(B63>0,B63/1),INDEX(Номенклатура!$B$6:$Z$3651,MATCH(B63,Номенклатура!$X$6:$X$3651,0),1),""),"") ->  | B63: =IFERROR(IF(B62>0,SMALL(Номенклатура!$X$1:$X$3651,1+B62),""),"") ->  | C63: =IFERROR(IF(AND(B63>0,B63/1),INDEX(#REF!,MATCH(B63,#REF!,0),3),""),"") ->  | D63: =IFERROR(IF(AND(B63>0,B63/1),INDEX(#REF!,MATCH(B63,#REF!,0),9),""),"") ->  | E63: =IFERROR(IF(AND(B63>0,B63/1),INDEX(#REF!,MATCH(B63,#REF!,0),5),""),"") ->  | F63: =IFERROR(IF(AND(B63>0,B63/1),INDEX(#REF!,MATCH(B63,#REF!,0),13)/INDEX(#REF!,MATCH(B63,#REF!,0),5),""),"") ->  | G63: =IFERROR(IF(AND(B63>0,B63/1),INDEX(#REF!,MATCH(B63,#REF!,0),13),""),"") -> 
A64: =IFERROR(IF(AND(B64>0,B64/1),INDEX(Номенклатура!$B$6:$Z$3651,MATCH(B64,Номенклатура!$X$6:$X$3651,0),1),""),"") ->  | B64: =IFERROR(IF(B63>0,SMALL(Номенклатура!$X$1:$X$3651,1+B63),""),"") ->  | C64: =IFERROR(IF(AND(B64>0,B64/1),INDEX(#REF!,MATCH(B64,#REF!,0),3),""),"") ->  | D64: =IFERROR(IF(AND(B64>0,B64/1),INDEX(#REF!,MATCH(B64,#REF!,0),9),""),"") ->  | E64: =IFERROR(IF(AND(B64>0,B64/1),INDEX(#REF!,MATCH(B64,#REF!,0),5),""),"") ->  | F64: =IFERROR(IF(AND(B64>0,B64/1),INDEX(#REF!,MATCH(B64,#REF!,0),13)/INDEX(#REF!,MATCH(B64,#REF!,0),5),""),"") ->  | G64: =IFERROR(IF(AND(B64>0,B64/1),INDEX(#REF!,MATCH(B64,#REF!,0),13),""),"") -> 
A65: =IFERROR(IF(AND(B65>0,B65/1),INDEX(Номенклатура!$B$6:$Z$3651,MATCH(B65,Номенклатура!$X$6:$X$3651,0),1),""),"") ->  | B65: =IFERROR(IF(B64>0,SMALL(Номенклатура!$X$1:$X$3651,1+B64),""),"") ->  | C65: =IFERROR(IF(AND(B65>0,B65/1),INDEX(#REF!,MATCH(B65,#REF!,0),3),""),"") ->  | D65: =IFERROR(IF(AND(B65>0,B65/1),INDEX(#REF!,MATCH(B65,#REF!,0),9),""),"") ->  | E65: =IFERROR(IF(AND(B65>0,B65/1),INDEX(#REF!,MATCH(B65,#REF!,0),5),""),"") ->  | F65: =IFERROR(IF(AND(B65>0,B65/1),INDEX(#REF!,MATCH(B65,#REF!,0),13)/INDEX(#REF!,MATCH(B65,#REF!,0),5),""),"") ->  | G65: =IFERROR(IF(AND(B65>0,B65/1),INDEX(#REF!,MATCH(B65,#REF!,0),13),""),"") -> 
A66: =IFERROR(IF(AND(B66>0,B66/1),INDEX(Номенклатура!$B$6:$Z$3651,MATCH(B66,Номенклатура!$X$6:$X$3651,0),1),""),"") ->  | B66: =IFERROR(IF(B65>0,SMALL(Номенклатура!$X$1:$X$3651,1+B65),""),"") ->  | C66: =IFERROR(IF(AND(B66>0,B66/1),INDEX(#REF!,MATCH(B66,#REF!,0),3),""),"") ->  | D66: =IFERROR(IF(AND(B66>0,B66/1),INDEX(#REF!,MATCH(B66,#REF!,0),9),""),"") ->  | E66: =IFERROR(IF(AND(B66>0,B66/1),INDEX(#REF!,MATCH(B66,#REF!,0),5),""),"") ->  | F66: =IFERROR(IF(AND(B66>0,B66/1),INDEX(#REF!,MATCH(B66,#REF!,0),13)/INDEX(#REF!,MATCH(B66,#REF!,0),5),""),"") ->  | G66: =IFERROR(IF(AND(B66>0,B66/1),INDEX(#REF!,MATCH(B66,#REF!,0),13),""),"") -> 
A67: =IFERROR(IF(AND(B67>0,B67/1),INDEX(Номенклатура!$B$6:$Z$3651,MATCH(B67,Номенклатура!$X$6:$X$3651,0),1),""),"") ->  | B67: =IFERROR(IF(B66>0,SMALL(Номенклатура!$X$1:$X$3651,1+B66),""),"") ->  | C67: =IFERROR(IF(AND(B67>0,B67/1),INDEX(#REF!,MATCH(B67,#REF!,0),3),""),"") ->  | D67: =IFERROR(IF(AND(B67>0,B67/1),INDEX(#REF!,MATCH(B67,#REF!,0),9),""),"") ->  | E67: =IFERROR(IF(AND(B67>0,B67/1),INDEX(#REF!,MATCH(B67,#REF!,0),5),""),"") ->  | F67: =IFERROR(IF(AND(B67>0,B67/1),INDEX(#REF!,MATCH(B67,#REF!,0),13)/INDEX(#REF!,MATCH(B67,#REF!,0),5),""),"") ->  | G67: =IFERROR(IF(AND(B67>0,B67/1),INDEX(#REF!,MATCH(B67,#REF!,0),13),""),"") -> 
A68: =IFERROR(IF(AND(B68>0,B68/1),INDEX(Номенклатура!$B$6:$Z$3651,MATCH(B68,Номенклатура!$X$6:$X$3651,0),1),""),"") ->  | B68: =IFERROR(IF(B67>0,SMALL(Номенклатура!$X$1:$X$3651,1+B67),""),"") ->  | C68: =IFERROR(IF(AND(B68>0,B68/1),INDEX(#REF!,MATCH(B68,#REF!,0),3),""),"") ->  | D68: =IFERROR(IF(AND(B68>0,B68/1),INDEX(#REF!,MATCH(B68,#REF!,0),9),""),"") ->  | E68: =IFERROR(IF(AND(B68>0,B68/1),INDEX(#REF!,MATCH(B68,#REF!,0),5),""),"") ->  | F68: =IFERROR(IF(AND(B68>0,B68/1),INDEX(#REF!,MATCH(B68,#REF!,0),13)/INDEX(#REF!,MATCH(B68,#REF!,0),5),""),"") ->  | G68: =IFERROR(IF(AND(B68>0,B68/1),INDEX(#REF!,MATCH(B68,#REF!,0),13),""),"") -> 
A69: =IFERROR(IF(AND(B69>0,B69/1),INDEX(Номенклатура!$B$6:$Z$3651,MATCH(B69,Номенклатура!$X$6:$X$3651,0),1),""),"") ->  | B69: =IFERROR(IF(B68>0,SMALL(Номенклатура!$X$1:$X$3651,1+B68),""),"") ->  | C69: =IFERROR(IF(AND(B69>0,B69/1),INDEX(#REF!,MATCH(B69,#REF!,0),3),""),"") ->  | D69: =IFERROR(IF(AND(B69>0,B69/1),INDEX(#REF!,MATCH(B69,#REF!,0),9),""),"") ->  | E69: =IFERROR(IF(AND(B69>0,B69/1),INDEX(#REF!,MATCH(B69,#REF!,0),5),""),"") ->  | F69: =IFERROR(IF(AND(B69>0,B69/1),INDEX(#REF!,MATCH(B69,#REF!,0),13)/INDEX(#REF!,MATCH(B69,#REF!,0),5),""),"") ->  | G69: =IFERROR(IF(AND(B69>0,B69/1),INDEX(#REF!,MATCH(B69,#REF!,0),13),""),"") -> 
A70: =IFERROR(IF(AND(B70>0,B70/1),INDEX(Номенклатура!$B$6:$Z$3651,MATCH(B70,Номенклатура!$X$6:$X$3651,0),1),""),"") ->  | B70: =IFERROR(IF(B69>0,SMALL(Номенклатура!$X$1:$X$3651,1+B69),""),"") ->  | C70: =IFERROR(IF(AND(B70>0,B70/1),INDEX(#REF!,MATCH(B70,#REF!,0),3),""),"") ->  | D70: =IFERROR(IF(AND(B70>0,B70/1),INDEX(#REF!,MATCH(B70,#REF!,0),9),""),"") ->  | E70: =IFERROR(IF(AND(B70>0,B70/1),INDEX(#REF!,MATCH(B70,#REF!,0),5),""),"") ->  | F70: =IFERROR(IF(AND(B70>0,B70/1),INDEX(#REF!,MATCH(B70,#REF!,0),13)/INDEX(#REF!,MATCH(B70,#REF!,0),5),""),"") ->  | G70: =IFERROR(IF(AND(B70>0,B70/1),INDEX(#REF!,MATCH(B70,#REF!,0),13),""),"") -> 
A71: =IFERROR(IF(AND(B71>0,B71/1),INDEX(Номенклатура!$B$6:$Z$3651,MATCH(B71,Номенклатура!$X$6:$X$3651,0),1),""),"") ->  | B71: =IFERROR(IF(B70>0,SMALL(Номенклатура!$X$1:$X$3651,1+B70),""),"") ->  | C71: =IFERROR(IF(AND(B71>0,B71/1),INDEX(#REF!,MATCH(B71,#REF!,0),3),""),"") ->  | D71: =IFERROR(IF(AND(B71>0,B71/1),INDEX(#REF!,MATCH(B71,#REF!,0),9),""),"") ->  | E71: =IFERROR(IF(AND(B71>0,B71/1),INDEX(#REF!,MATCH(B71,#REF!,0),5),""),"") ->  | F71: =IFERROR(IF(AND(B71>0,B71/1),INDEX(#REF!,MATCH(B71,#REF!,0),13)/INDEX(#REF!,MATCH(B71,#REF!,0),5),""),"") ->  | G71: =IFERROR(IF(AND(B71>0,B71/1),INDEX(#REF!,MATCH(B71,#REF!,0),13),""),"") -> 
A72: =IFERROR(IF(AND(B72>0,B72/1),INDEX(Номенклатура!$B$6:$Z$3651,MATCH(B72,Номенклатура!$X$6:$X$3651,0),1),""),"") ->  | B72: =IFERROR(IF(B71>0,SMALL(Номенклатура!$X$1:$X$3651,1+B71),""),"") ->  | C72: =IFERROR(IF(AND(B72>0,B72/1),INDEX(#REF!,MATCH(B72,#REF!,0),3),""),"") ->  | D72: =IFERROR(IF(AND(B72>0,B72/1),INDEX(#REF!,MATCH(B72,#REF!,0),9),""),"") ->  | E72: =IFERROR(IF(AND(B72>0,B72/1),INDEX(#REF!,MATCH(B72,#REF!,0),5),""),"") ->  | F72: =IFERROR(IF(AND(B72>0,B72/1),INDEX(#REF!,MATCH(B72,#REF!,0),13)/INDEX(#REF!,MATCH(B72,#REF!,0),5),""),"") ->  | G72: =IFERROR(IF(AND(B72>0,B72/1),INDEX(#REF!,MATCH(B72,#REF!,0),13),""),"") -> 
A73: =IFERROR(IF(AND(B73>0,B73/1),INDEX(Номенклатура!$B$6:$Z$3651,MATCH(B73,Номенклатура!$X$6:$X$3651,0),1),""),"") ->  | B73: =IFERROR(IF(B72>0,SMALL(Номенклатура!$X$1:$X$3651,1+B72),""),"") ->  | C73: =IFERROR(IF(AND(B73>0,B73/1),INDEX(#REF!,MATCH(B73,#REF!,0),3),""),"") ->  | D73: =IFERROR(IF(AND(B73>0,B73/1),INDEX(#REF!,MATCH(B73,#REF!,0),9),""),"") ->  | E73: =IFERROR(IF(AND(B73>0,B73/1),INDEX(#REF!,MATCH(B73,#REF!,0),5),""),"") ->  | F73: =IFERROR(IF(AND(B73>0,B73/1),INDEX(#REF!,MATCH(B73,#REF!,0),13)/INDEX(#REF!,MATCH(B73,#REF!,0),5),""),"") ->  | G73: =IFERROR(IF(AND(B73>0,B73/1),INDEX(#REF!,MATCH(B73,#REF!,0),13),""),"") -> 
A74: =IFERROR(IF(AND(B74>0,B74/1),INDEX(Номенклатура!$B$6:$Z$3651,MATCH(B74,Номенклатура!$X$6:$X$3651,0),1),""),"") ->  | B74: =IFERROR(IF(B73>0,SMALL(Номенклатура!$X$1:$X$3651,1+B73),""),"") ->  | C74: =IFERROR(IF(AND(B74>0,B74/1),INDEX(#REF!,MATCH(B74,#REF!,0),3),""),"") ->  | D74: =IFERROR(IF(AND(B74>0,B74/1),INDEX(#REF!,MATCH(B74,#REF!,0),9),""),"") ->  | E74: =IFERROR(IF(AND(B74>0,B74/1),INDEX(#REF!,MATCH(B74,#REF!,0),5),""),"") ->  | F74: =IFERROR(IF(AND(B74>0,B74/1),INDEX(#REF!,MATCH(B74,#REF!,0),13)/INDEX(#REF!,MATCH(B74,#REF!,0),5),""),"") ->  | G74: =IFERROR(IF(AND(B74>0,B74/1),INDEX(#REF!,MATCH(B74,#REF!,0),13),""),"") -> 
A75: =IFERROR(IF(AND(B75>0,B75/1),INDEX(Номенклатура!$B$6:$Z$3651,MATCH(B75,Номенклатура!$X$6:$X$3651,0),1),""),"") ->  | B75: =IFERROR(IF(B74>0,SMALL(Номенклатура!$X$1:$X$3651,1+B74),""),"") ->  | C75: =IFERROR(IF(AND(B75>0,B75/1),INDEX(#REF!,MATCH(B75,#REF!,0),3),""),"") ->  | D75: =IFERROR(IF(AND(B75>0,B75/1),INDEX(#REF!,MATCH(B75,#REF!,0),9),""),"") ->  | E75: =IFERROR(IF(AND(B75>0,B75/1),INDEX(#REF!,MATCH(B75,#REF!,0),5),""),"") ->  | F75: =IFERROR(IF(AND(B75>0,B75/1),INDEX(#REF!,MATCH(B75,#REF!,0),13)/INDEX(#REF!,MATCH(B75,#REF!,0),5),""),"") ->  | G75: =IFERROR(IF(AND(B75>0,B75/1),INDEX(#REF!,MATCH(B75,#REF!,0),13),""),"") -> 
A76: =IFERROR(IF(AND(B76>0,B76/1),INDEX(Номенклатура!$B$6:$Z$3651,MATCH(B76,Номенклатура!$X$6:$X$3651,0),1),""),"") ->  | B76: =IFERROR(IF(B75>0,SMALL(Номенклатура!$X$1:$X$3651,1+B75),""),"") ->  | C76: =IFERROR(IF(AND(B76>0,B76/1),INDEX(#REF!,MATCH(B76,#REF!,0),3),""),"") ->  | D76: =IFERROR(IF(AND(B76>0,B76/1),INDEX(#REF!,MATCH(B76,#REF!,0),9),""),"") ->  | E76: =IFERROR(IF(AND(B76>0,B76/1),INDEX(#REF!,MATCH(B76,#REF!,0),5),""),"") ->  | F76: =IFERROR(IF(AND(B76>0,B76/1),INDEX(#REF!,MATCH(B76,#REF!,0),13)/INDEX(#REF!,MATCH(B76,#REF!,0),5),""),"") ->  | G76: =IFERROR(IF(AND(B76>0,B76/1),INDEX(#REF!,MATCH(B76,#REF!,0),13),""),"") -> 
A77: =IFERROR(IF(AND(B77>0,B77/1),INDEX(Номенклатура!$B$6:$Z$3651,MATCH(B77,Номенклатура!$X$6:$X$3651,0),1),""),"") ->  | B77: =IFERROR(IF(B76>0,SMALL(Номенклатура!$X$1:$X$3651,1+B76),""),"") ->  | C77: =IFERROR(IF(AND(B77>0,B77/1),INDEX(#REF!,MATCH(B77,#REF!,0),3),""),"") ->  | D77: =IFERROR(IF(AND(B77>0,B77/1),INDEX(#REF!,MATCH(B77,#REF!,0),9),""),"") ->  | E77: =IFERROR(IF(AND(B77>0,B77/1),INDEX(#REF!,MATCH(B77,#REF!,0),5),""),"") ->  | F77: =IFERROR(IF(AND(B77>0,B77/1),INDEX(#REF!,MATCH(B77,#REF!,0),13)/INDEX(#REF!,MATCH(B77,#REF!,0),5),""),"") ->  | G77: =IFERROR(IF(AND(B77>0,B77/1),INDEX(#REF!,MATCH(B77,#REF!,0),13),""),"") -> 
A78: =IFERROR(IF(AND(B78>0,B78/1),INDEX(Номенклатура!$B$6:$Z$3651,MATCH(B78,Номенклатура!$X$6:$X$3651,0),1),""),"") ->  | B78: =IFERROR(IF(B77>0,SMALL(Номенклатура!$X$1:$X$3651,1+B77),""),"") ->  | C78: =IFERROR(IF(AND(B78>0,B78/1),INDEX(#REF!,MATCH(B78,#REF!,0),3),""),"") ->  | D78: =IFERROR(IF(AND(B78>0,B78/1),INDEX(#REF!,MATCH(B78,#REF!,0),9),""),"") ->  | E78: =IFERROR(IF(AND(B78>0,B78/1),INDEX(#REF!,MATCH(B78,#REF!,0),5),""),"") ->  | F78: =IFERROR(IF(AND(B78>0,B78/1),INDEX(#REF!,MATCH(B78,#REF!,0),13)/INDEX(#REF!,MATCH(B78,#REF!,0),5),""),"") ->  | G78: =IFERROR(IF(AND(B78>0,B78/1),INDEX(#REF!,MATCH(B78,#REF!,0),13),""),"") -> 
A79: =IFERROR(IF(AND(B79>0,B79/1),INDEX(Номенклатура!$B$6:$Z$3651,MATCH(B79,Номенклатура!$X$6:$X$3651,0),1),""),"") ->  | B79: =IFERROR(IF(B78>0,SMALL(Номенклатура!$X$1:$X$3651,1+B78),""),"") ->  | C79: =IFERROR(IF(AND(B79>0,B79/1),INDEX(#REF!,MATCH(B79,#REF!,0),3),""),"") ->  | D79: =IFERROR(IF(AND(B79>0,B79/1),INDEX(#REF!,MATCH(B79,#REF!,0),9),""),"") ->  | E79: =IFERROR(IF(AND(B79>0,B79/1),INDEX(#REF!,MATCH(B79,#REF!,0),5),""),"") ->  | F79: =IFERROR(IF(AND(B79>0,B79/1),INDEX(#REF!,MATCH(B79,#REF!,0),13)/INDEX(#REF!,MATCH(B79,#REF!,0),5),""),"") ->  | G79: =IFERROR(IF(AND(B79>0,B79/1),INDEX(#REF!,MATCH(B79,#REF!,0),13),""),"") -> 
A80: =IFERROR(IF(AND(B80>0,B80/1),INDEX(Номенклатура!$B$6:$Z$3651,MATCH(B80,Номенклатура!$X$6:$X$3651,0),1),""),"") ->  | B80: =IFERROR(IF(B79>0,SMALL(Номенклатура!$X$1:$X$3651,1+B79),""),"") ->  | C80: =IFERROR(IF(AND(B80>0,B80/1),INDEX(#REF!,MATCH(B80,#REF!,0),3),""),"") ->  | D80: =IFERROR(IF(AND(B80>0,B80/1),INDEX(#REF!,MATCH(B80,#REF!,0),9),""),"") ->  | E80: =IFERROR(IF(AND(B80>0,B80/1),INDEX(#REF!,MATCH(B80,#REF!,0),5),""),"") ->  | F80: =IFERROR(IF(AND(B80>0,B80/1),INDEX(#REF!,MATCH(B80,#REF!,0),13)/INDEX(#REF!,MATCH(B80,#REF!,0),5),""),"") ->  | G80: =IFERROR(IF(AND(B80>0,B80/1),INDEX(#REF!,MATCH(B80,#REF!,0),13),""),"") -> 
A81: =IFERROR(IF(AND(B81>0,B81/1),INDEX(Номенклатура!$B$6:$Z$3651,MATCH(B81,Номенклатура!$X$6:$X$3651,0),1),""),"") ->  | B81: =IFERROR(IF(B80>0,SMALL(Номенклатура!$X$1:$X$3651,1+B80),""),"") ->  | C81: =IFERROR(IF(AND(B81>0,B81/1),INDEX(#REF!,MATCH(B81,#REF!,0),3),""),"") ->  | D81: =IFERROR(IF(AND(B81>0,B81/1),INDEX(#REF!,MATCH(B81,#REF!,0),9),""),"") ->  | E81: =IFERROR(IF(AND(B81>0,B81/1),INDEX(#REF!,MATCH(B81,#REF!,0),5),""),"") ->  | F81: =IFERROR(IF(AND(B81>0,B81/1),INDEX(#REF!,MATCH(B81,#REF!,0),13)/INDEX(#REF!,MATCH(B81,#REF!,0),5),""),"") ->  | G81: =IFERROR(IF(AND(B81>0,B81/1),INDEX(#REF!,MATCH(B81,#REF!,0),13),""),"") -> 
A82: =IFERROR(IF(AND(B82>0,B82/1),INDEX(Номенклатура!$B$6:$Z$3651,MATCH(B82,Номенклатура!$X$6:$X$3651,0),1),""),"") ->  | B82: =IFERROR(IF(B81>0,SMALL(Номенклатура!$X$1:$X$3651,1+B81),""),"") ->  | C82: =IFERROR(IF(AND(B82>0,B82/1),INDEX(#REF!,MATCH(B82,#REF!,0),3),""),"") ->  | D82: =IFERROR(IF(AND(B82>0,B82/1),INDEX(#REF!,MATCH(B82,#REF!,0),9),""),"") ->  | E82: =IFERROR(IF(AND(B82>0,B82/1),INDEX(#REF!,MATCH(B82,#REF!,0),5),""),"") ->  | F82: =IFERROR(IF(AND(B82>0,B82/1),INDEX(#REF!,MATCH(B82,#REF!,0),13)/INDEX(#REF!,MATCH(B82,#REF!,0),5),""),"") ->  | G82: =IFERROR(IF(AND(B82>0,B82/1),INDEX(#REF!,MATCH(B82,#REF!,0),13),""),"") -> 
A83: =IFERROR(IF(AND(B83>0,B83/1),INDEX(Номенклатура!$B$6:$Z$3651,MATCH(B83,Номенклатура!$X$6:$X$3651,0),1),""),"") ->  | B83: =IFERROR(IF(B82>0,SMALL(Номенклатура!$X$1:$X$3651,1+B82),""),"") ->  | C83: =IFERROR(IF(AND(B83>0,B83/1),INDEX(#REF!,MATCH(B83,#REF!,0),3),""),"") ->  | D83: =IFERROR(IF(AND(B83>0,B83/1),INDEX(#REF!,MATCH(B83,#REF!,0),9),""),"") ->  | E83: =IFERROR(IF(AND(B83>0,B83/1),INDEX(#REF!,MATCH(B83,#REF!,0),5),""),"") ->  | F83: =IFERROR(IF(AND(B83>0,B83/1),INDEX(#REF!,MATCH(B83,#REF!,0),13)/INDEX(#REF!,MATCH(B83,#REF!,0),5),""),"") ->  | G83: =IFERROR(IF(AND(B83>0,B83/1),INDEX(#REF!,MATCH(B83,#REF!,0),13),""),"") -> 
A84: =IFERROR(IF(AND(B84>0,B84/1),INDEX(Номенклатура!$B$6:$Z$3651,MATCH(B84,Номенклатура!$X$6:$X$3651,0),1),""),"") ->  | B84: =IFERROR(IF(B83>0,SMALL(Номенклатура!$X$1:$X$3651,1+B83),""),"") ->  | C84: =IFERROR(IF(AND(B84>0,B84/1),INDEX(#REF!,MATCH(B84,#REF!,0),3),""),"") ->  | D84: =IFERROR(IF(AND(B84>0,B84/1),INDEX(#REF!,MATCH(B84,#REF!,0),9),""),"") ->  | E84: =IFERROR(IF(AND(B84>0,B84/1),INDEX(#REF!,MATCH(B84,#REF!,0),5),""),"") ->  | F84: =IFERROR(IF(AND(B84>0,B84/1),INDEX(#REF!,MATCH(B84,#REF!,0),13)/INDEX(#REF!,MATCH(B84,#REF!,0),5),""),"") ->  | G84: =IFERROR(IF(AND(B84>0,B84/1),INDEX(#REF!,MATCH(B84,#REF!,0),13),""),"") -> 
A85: =IFERROR(IF(AND(B85>0,B85/1),INDEX(Номенклатура!$B$6:$Z$3651,MATCH(B85,Номенклатура!$X$6:$X$3651,0),1),""),"") ->  | B85: =IFERROR(IF(B84>0,SMALL(Номенклатура!$X$1:$X$3651,1+B84),""),"") ->  | C85: =IFERROR(IF(AND(B85>0,B85/1),INDEX(#REF!,MATCH(B85,#REF!,0),3),""),"") ->  | D85: =IFERROR(IF(AND(B85>0,B85/1),INDEX(#REF!,MATCH(B85,#REF!,0),9),""),"") ->  | E85: =IFERROR(IF(AND(B85>0,B85/1),INDEX(#REF!,MATCH(B85,#REF!,0),5),""),"") ->  | F85: =IFERROR(IF(AND(B85>0,B85/1),INDEX(#REF!,MATCH(B85,#REF!,0),13)/INDEX(#REF!,MATCH(B85,#REF!,0),5),""),"") ->  | G85: =IFERROR(IF(AND(B85>0,B85/1),INDEX(#REF!,MATCH(B85,#REF!,0),13),""),"") -> 
A86: =IFERROR(IF(AND(B86>0,B86/1),INDEX(Номенклатура!$B$6:$Z$3651,MATCH(B86,Номенклатура!$X$6:$X$3651,0),1),""),"") ->  | B86: =IFERROR(IF(B85>0,SMALL(Номенклатура!$X$1:$X$3651,1+B85),""),"") ->  | C86: =IFERROR(IF(AND(B86>0,B86/1),INDEX(#REF!,MATCH(B86,#REF!,0),3),""),"") ->  | D86: =IFERROR(IF(AND(B86>0,B86/1),INDEX(#REF!,MATCH(B86,#REF!,0),9),""),"") ->  | E86: =IFERROR(IF(AND(B86>0,B86/1),INDEX(#REF!,MATCH(B86,#REF!,0),5),""),"") ->  | F86: =IFERROR(IF(AND(B86>0,B86/1),INDEX(#REF!,MATCH(B86,#REF!,0),13)/INDEX(#REF!,MATCH(B86,#REF!,0),5),""),"") ->  | G86: =IFERROR(IF(AND(B86>0,B86/1),INDEX(#REF!,MATCH(B86,#REF!,0),13),""),"") -> 
A87: =IFERROR(IF(AND(B87>0,B87/1),INDEX(Номенклатура!$B$6:$Z$3651,MATCH(B87,Номенклатура!$X$6:$X$3651,0),1),""),"") ->  | B87: =IFERROR(IF(B86>0,SMALL(Номенклатура!$X$1:$X$3651,1+B86),""),"") ->  | C87: =IFERROR(IF(AND(B87>0,B87/1),INDEX(#REF!,MATCH(B87,#REF!,0),3),""),"") ->  | D87: =IFERROR(IF(AND(B87>0,B87/1),INDEX(#REF!,MATCH(B87,#REF!,0),9),""),"") ->  | E87: =IFERROR(IF(AND(B87>0,B87/1),INDEX(#REF!,MATCH(B87,#REF!,0),5),""),"") ->  | F87: =IFERROR(IF(AND(B87>0,B87/1),INDEX(#REF!,MATCH(B87,#REF!,0),13)/INDEX(#REF!,MATCH(B87,#REF!,0),5),""),"") ->  | G87: =IFERROR(IF(AND(B87>0,B87/1),INDEX(#REF!,MATCH(B87,#REF!,0),13),""),"") -> 
A88: =IFERROR(IF(AND(B88>0,B88/1),INDEX(Номенклатура!$B$6:$Z$3651,MATCH(B88,Номенклатура!$X$6:$X$3651,0),1),""),"") ->  | B88: =IFERROR(IF(B87>0,SMALL(Номенклатура!$X$1:$X$3651,1+B87),""),"") ->  | C88: =IFERROR(IF(AND(B88>0,B88/1),INDEX(#REF!,MATCH(B88,#REF!,0),3),""),"") ->  | D88: =IFERROR(IF(AND(B88>0,B88/1),INDEX(#REF!,MATCH(B88,#REF!,0),9),""),"") ->  | E88: =IFERROR(IF(AND(B88>0,B88/1),INDEX(#REF!,MATCH(B88,#REF!,0),5),""),"") ->  | F88: =IFERROR(IF(AND(B88>0,B88/1),INDEX(#REF!,MATCH(B88,#REF!,0),13)/INDEX(#REF!,MATCH(B88,#REF!,0),5),""),"") ->  | G88: =IFERROR(IF(AND(B88>0,B88/1),INDEX(#REF!,MATCH(B88,#REF!,0),13),""),"") -> 
A89: =IFERROR(IF(AND(B89>0,B89/1),INDEX(Номенклатура!$B$6:$Z$3651,MATCH(B89,Номенклатура!$X$6:$X$3651,0),1),""),"") ->  | B89: =IFERROR(IF(B88>0,SMALL(Номенклатура!$X$1:$X$3651,1+B88),""),"") ->  | C89: =IFERROR(IF(AND(B89>0,B89/1),INDEX(#REF!,MATCH(B89,#REF!,0),3),""),"") ->  | D89: =IFERROR(IF(AND(B89>0,B89/1),INDEX(#REF!,MATCH(B89,#REF!,0),9),""),"") ->  | E89: =IFERROR(IF(AND(B89>0,B89/1),INDEX(#REF!,MATCH(B89,#REF!,0),5),""),"") ->  | F89: =IFERROR(IF(AND(B89>0,B89/1),INDEX(#REF!,MATCH(B89,#REF!,0),13)/INDEX(#REF!,MATCH(B89,#REF!,0),5),""),"") ->  | G89: =IFERROR(IF(AND(B89>0,B89/1),INDEX(#REF!,MATCH(B89,#REF!,0),13),""),"") -> 
A90: =IFERROR(IF(AND(B90>0,B90/1),INDEX(Номенклатура!$B$6:$Z$3651,MATCH(B90,Номенклатура!$X$6:$X$3651,0),1),""),"") ->  | B90: =IFERROR(IF(B89>0,SMALL(Номенклатура!$X$1:$X$3651,1+B89),""),"") ->  | C90: =IFERROR(IF(AND(B90>0,B90/1),INDEX(#REF!,MATCH(B90,#REF!,0),3),""),"") ->  | D90: =IFERROR(IF(AND(B90>0,B90/1),INDEX(#REF!,MATCH(B90,#REF!,0),9),""),"") ->  | E90: =IFERROR(IF(AND(B90>0,B90/1),INDEX(#REF!,MATCH(B90,#REF!,0),5),""),"") ->  | F90: =IFERROR(IF(AND(B90>0,B90/1),INDEX(#REF!,MATCH(B90,#REF!,0),13)/INDEX(#REF!,MATCH(B90,#REF!,0),5),""),"") ->  | G90: =IFERROR(IF(AND(B90>0,B90/1),INDEX(#REF!,MATCH(B90,#REF!,0),13),""),"") -> 
A91: =IFERROR(IF(AND(B91>0,B91/1),INDEX(Номенклатура!$B$6:$Z$3651,MATCH(B91,Номенклатура!$X$6:$X$3651,0),1),""),"") ->  | B91: =IFERROR(IF(B90>0,SMALL(Номенклатура!$X$1:$X$3651,1+B90),""),"") ->  | C91: =IFERROR(IF(AND(B91>0,B91/1),INDEX(#REF!,MATCH(B91,#REF!,0),3),""),"") ->  | D91: =IFERROR(IF(AND(B91>0,B91/1),INDEX(#REF!,MATCH(B91,#REF!,0),9),""),"") ->  | E91: =IFERROR(IF(AND(B91>0,B91/1),INDEX(#REF!,MATCH(B91,#REF!,0),5),""),"") ->  | F91: =IFERROR(IF(AND(B91>0,B91/1),INDEX(#REF!,MATCH(B91,#REF!,0),13)/INDEX(#REF!,MATCH(B91,#REF!,0),5),""),"") ->  | G91: =IFERROR(IF(AND(B91>0,B91/1),INDEX(#REF!,MATCH(B91,#REF!,0),13),""),"") -> 
A92: =IFERROR(IF(AND(B92>0,B92/1),INDEX(Номенклатура!$B$6:$Z$3651,MATCH(B92,Номенклатура!$X$6:$X$3651,0),1),""),"") ->  | B92: =IFERROR(IF(B91>0,SMALL(Номенклатура!$X$1:$X$3651,1+B91),""),"") ->  | C92: =IFERROR(IF(AND(B92>0,B92/1),INDEX(#REF!,MATCH(B92,#REF!,0),3),""),"") ->  | D92: =IFERROR(IF(AND(B92>0,B92/1),INDEX(#REF!,MATCH(B92,#REF!,0),9),""),"") ->  | E92: =IFERROR(IF(AND(B92>0,B92/1),INDEX(#REF!,MATCH(B92,#REF!,0),5),""),"") ->  | F92: =IFERROR(IF(AND(B92>0,B92/1),INDEX(#REF!,MATCH(B92,#REF!,0),13)/INDEX(#REF!,MATCH(B92,#REF!,0),5),""),"") ->  | G92: =IFERROR(IF(AND(B92>0,B92/1),INDEX(#REF!,MATCH(B92,#REF!,0),13),""),"") -> 
A93: =IFERROR(IF(AND(B93>0,B93/1),INDEX(Номенклатура!$B$6:$Z$3651,MATCH(B93,Номенклатура!$X$6:$X$3651,0),1),""),"") ->  | B93: =IFERROR(IF(B92>0,SMALL(Номенклатура!$X$1:$X$3651,1+B92),""),"") ->  | C93: =IFERROR(IF(AND(B93>0,B93/1),INDEX(#REF!,MATCH(B93,#REF!,0),3),""),"") ->  | D93: =IFERROR(IF(AND(B93>0,B93/1),INDEX(#REF!,MATCH(B93,#REF!,0),9),""),"") ->  | E93: =IFERROR(IF(AND(B93>0,B93/1),INDEX(#REF!,MATCH(B93,#REF!,0),5),""),"") ->  | F93: =IFERROR(IF(AND(B93>0,B93/1),INDEX(#REF!,MATCH(B93,#REF!,0),13)/INDEX(#REF!,MATCH(B93,#REF!,0),5),""),"") ->  | G93: =IFERROR(IF(AND(B93>0,B93/1),INDEX(#REF!,MATCH(B93,#REF!,0),13),""),"") -> 
A94: =IFERROR(IF(AND(B94>0,B94/1),INDEX(Номенклатура!$B$6:$Z$3651,MATCH(B94,Номенклатура!$X$6:$X$3651,0),1),""),"") ->  | B94: =IFERROR(IF(B93>0,SMALL(Номенклатура!$X$1:$X$3651,1+B93),""),"") ->  | C94: =IFERROR(IF(AND(B94>0,B94/1),INDEX(#REF!,MATCH(B94,#REF!,0),3),""),"") ->  | D94: =IFERROR(IF(AND(B94>0,B94/1),INDEX(#REF!,MATCH(B94,#REF!,0),9),""),"") ->  | E94: =IFERROR(IF(AND(B94>0,B94/1),INDEX(#REF!,MATCH(B94,#REF!,0),5),""),"") ->  | F94: =IFERROR(IF(AND(B94>0,B94/1),INDEX(#REF!,MATCH(B94,#REF!,0),13)/INDEX(#REF!,MATCH(B94,#REF!,0),5),""),"") ->  | G94: =IFERROR(IF(AND(B94>0,B94/1),INDEX(#REF!,MATCH(B94,#REF!,0),13),""),"") -> 
A95: =IFERROR(IF(AND(B95>0,B95/1),INDEX(Номенклатура!$B$6:$Z$3651,MATCH(B95,Номенклатура!$X$6:$X$3651,0),1),""),"") ->  | B95: =IFERROR(IF(B94>0,SMALL(Номенклатура!$X$1:$X$3651,1+B94),""),"") ->  | C95: =IFERROR(IF(AND(B95>0,B95/1),INDEX(#REF!,MATCH(B95,#REF!,0),3),""),"") ->  | D95: =IFERROR(IF(AND(B95>0,B95/1),INDEX(#REF!,MATCH(B95,#REF!,0),9),""),"") ->  | E95: =IFERROR(IF(AND(B95>0,B95/1),INDEX(#REF!,MATCH(B95,#REF!,0),5),""),"") ->  | F95: =IFERROR(IF(AND(B95>0,B95/1),INDEX(#REF!,MATCH(B95,#REF!,0),13)/INDEX(#REF!,MATCH(B95,#REF!,0),5),""),"") ->  | G95: =IFERROR(IF(AND(B95>0,B95/1),INDEX(#REF!,MATCH(B95,#REF!,0),13),""),"") -> 
A96: =IFERROR(IF(AND(B96>0,B96/1),INDEX(Номенклатура!$B$6:$Z$3651,MATCH(B96,Номенклатура!$X$6:$X$3651,0),1),""),"") ->  | B96: =IFERROR(IF(B95>0,SMALL(Номенклатура!$X$1:$X$3651,1+B95),""),"") ->  | C96: =IFERROR(IF(AND(B96>0,B96/1),INDEX(#REF!,MATCH(B96,#REF!,0),3),""),"") ->  | D96: =IFERROR(IF(AND(B96>0,B96/1),INDEX(#REF!,MATCH(B96,#REF!,0),9),""),"") ->  | E96: =IFERROR(IF(AND(B96>0,B96/1),INDEX(#REF!,MATCH(B96,#REF!,0),5),""),"") ->  | F96: =IFERROR(IF(AND(B96>0,B96/1),INDEX(#REF!,MATCH(B96,#REF!,0),13)/INDEX(#REF!,MATCH(B96,#REF!,0),5),""),"") ->  | G96: =IFERROR(IF(AND(B96>0,B96/1),INDEX(#REF!,MATCH(B96,#REF!,0),13),""),"") -> 
A97: =IFERROR(IF(AND(B97>0,B97/1),INDEX(Номенклатура!$B$6:$Z$3651,MATCH(B97,Номенклатура!$X$6:$X$3651,0),1),""),"") ->  | B97: =IFERROR(IF(B96>0,SMALL(Номенклатура!$X$1:$X$3651,1+B96),""),"") ->  | C97: =IFERROR(IF(AND(B97>0,B97/1),INDEX(#REF!,MATCH(B97,#REF!,0),3),""),"") ->  | D97: =IFERROR(IF(AND(B97>0,B97/1),INDEX(#REF!,MATCH(B97,#REF!,0),9),""),"") ->  | E97: =IFERROR(IF(AND(B97>0,B97/1),INDEX(#REF!,MATCH(B97,#REF!,0),5),""),"") ->  | F97: =IFERROR(IF(AND(B97>0,B97/1),INDEX(#REF!,MATCH(B97,#REF!,0),13)/INDEX(#REF!,MATCH(B97,#REF!,0),5),""),"") ->  | G97: =IFERROR(IF(AND(B97>0,B97/1),INDEX(#REF!,MATCH(B97,#REF!,0),13),""),"") -> 
A98: =IFERROR(IF(AND(B98>0,B98/1),INDEX(Номенклатура!$B$6:$Z$3651,MATCH(B98,Номенклатура!$X$6:$X$3651,0),1),""),"") ->  | B98: =IFERROR(IF(B97>0,SMALL(Номенклатура!$X$1:$X$3651,1+B97),""),"") ->  | C98: =IFERROR(IF(AND(B98>0,B98/1),INDEX(#REF!,MATCH(B98,#REF!,0),3),""),"") ->  | D98: =IFERROR(IF(AND(B98>0,B98/1),INDEX(#REF!,MATCH(B98,#REF!,0),9),""),"") ->  | E98: =IFERROR(IF(AND(B98>0,B98/1),INDEX(#REF!,MATCH(B98,#REF!,0),5),""),"") ->  | F98: =IFERROR(IF(AND(B98>0,B98/1),INDEX(#REF!,MATCH(B98,#REF!,0),13)/INDEX(#REF!,MATCH(B98,#REF!,0),5),""),"") ->  | G98: =IFERROR(IF(AND(B98>0,B98/1),INDEX(#REF!,MATCH(B98,#REF!,0),13),""),"") -> 
A99: =IFERROR(IF(AND(B99>0,B99/1),INDEX(Номенклатура!$B$6:$Z$3651,MATCH(B99,Номенклатура!$X$6:$X$3651,0),1),""),"") ->  | B99: =IFERROR(IF(B98>0,SMALL(Номенклатура!$X$1:$X$3651,1+B98),""),"") ->  | C99: =IFERROR(IF(AND(B99>0,B99/1),INDEX(#REF!,MATCH(B99,#REF!,0),3),""),"") ->  | D99: =IFERROR(IF(AND(B99>0,B99/1),INDEX(#REF!,MATCH(B99,#REF!,0),9),""),"") ->  | E99: =IFERROR(IF(AND(B99>0,B99/1),INDEX(#REF!,MATCH(B99,#REF!,0),5),""),"") ->  | F99: =IFERROR(IF(AND(B99>0,B99/1),INDEX(#REF!,MATCH(B99,#REF!,0),13)/INDEX(#REF!,MATCH(B99,#REF!,0),5),""),"") ->  | G99: =IFERROR(IF(AND(B99>0,B99/1),INDEX(#REF!,MATCH(B99,#REF!,0),13),""),"") -> 
A100: =IFERROR(IF(AND(B100>0,B100/1),INDEX(Номенклатура!$B$6:$Z$3651,MATCH(B100,Номенклатура!$X$6:$X$3651,0),1),""),"") ->  | B100: =IFERROR(IF(B99>0,SMALL(Номенклатура!$X$1:$X$3651,1+B99),""),"") ->  | C100: =IFERROR(IF(AND(B100>0,B100/1),INDEX(#REF!,MATCH(B100,#REF!,0),3),""),"") ->  | D100: =IFERROR(IF(AND(B100>0,B100/1),INDEX(#REF!,MATCH(B100,#REF!,0),9),""),"") ->  | E100: =IFERROR(IF(AND(B100>0,B100/1),INDEX(#REF!,MATCH(B100,#REF!,0),5),""),"") ->  | F100: =IFERROR(IF(AND(B100>0,B100/1),INDEX(#REF!,MATCH(B100,#REF!,0),13)/INDEX(#REF!,MATCH(B100,#REF!,0),5),""),"") ->  | G100: =IFERROR(IF(AND(B100>0,B100/1),INDEX(#REF!,MATCH(B100,#REF!,0),13),""),"") -> 
A101: =IFERROR(IF(AND(B101>0,B101/1),INDEX(Номенклатура!$B$6:$Z$3651,MATCH(B101,Номенклатура!$X$6:$X$3651,0),1),""),"") ->  | B101: =IFERROR(IF(B100>0,SMALL(Номенклатура!$X$1:$X$3651,1+B100),""),"") ->  | C101: =IFERROR(IF(AND(B101>0,B101/1),INDEX(#REF!,MATCH(B101,#REF!,0),3),""),"") ->  | D101: =IFERROR(IF(AND(B101>0,B101/1),INDEX(#REF!,MATCH(B101,#REF!,0),9),""),"") ->  | E101: =IFERROR(IF(AND(B101>0,B101/1),INDEX(#REF!,MATCH(B101,#REF!,0),5),""),"") ->  | F101: =IFERROR(IF(AND(B101>0,B101/1),INDEX(#REF!,MATCH(B101,#REF!,0),13)/INDEX(#REF!,MATCH(B101,#REF!,0),5),""),"") ->  | G101: =IFERROR(IF(AND(B101>0,B101/1),INDEX(#REF!,MATCH(B101,#REF!,0),13),""),"") -> 
A102: =IFERROR(IF(AND(B102>0,B102/1),INDEX(Номенклатура!$B$6:$Z$3651,MATCH(B102,Номенклатура!$X$6:$X$3651,0),1),""),"") ->  | B102: =IFERROR(IF(B101>0,SMALL(Номенклатура!$X$1:$X$3651,1+B101),""),"") ->  | C102: =IFERROR(IF(AND(B102>0,B102/1),INDEX(#REF!,MATCH(B102,#REF!,0),3),""),"") ->  | D102: =IFERROR(IF(AND(B102>0,B102/1),INDEX(#REF!,MATCH(B102,#REF!,0),9),""),"") ->  | E102: =IFERROR(IF(AND(B102>0,B102/1),INDEX(#REF!,MATCH(B102,#REF!,0),5),""),"") ->  | F102: =IFERROR(IF(AND(B102>0,B102/1),INDEX(#REF!,MATCH(B102,#REF!,0),13)/INDEX(#REF!,MATCH(B102,#REF!,0),5),""),"") ->  | G102: =IFERROR(IF(AND(B102>0,B102/1),INDEX(#REF!,MATCH(B102,#REF!,0),13),""),"") -> 
A103: =IFERROR(IF(AND(B103>0,B103/1),INDEX(Номенклатура!$B$6:$Z$3651,MATCH(B103,Номенклатура!$X$6:$X$3651,0),1),""),"") ->  | B103: =IFERROR(IF(B102>0,SMALL(Номенклатура!$X$1:$X$3651,1+B102),""),"") ->  | C103: =IFERROR(IF(AND(B103>0,B103/1),INDEX(#REF!,MATCH(B103,#REF!,0),3),""),"") ->  | D103: =IFERROR(IF(AND(B103>0,B103/1),INDEX(#REF!,MATCH(B103,#REF!,0),9),""),"") ->  | E103: =IFERROR(IF(AND(B103>0,B103/1),INDEX(#REF!,MATCH(B103,#REF!,0),5),""),"") ->  | F103: =IFERROR(IF(AND(B103>0,B103/1),INDEX(#REF!,MATCH(B103,#REF!,0),13)/INDEX(#REF!,MATCH(B103,#REF!,0),5),""),"") ->  | G103: =IFERROR(IF(AND(B103>0,B103/1),INDEX(#REF!,MATCH(B103,#REF!,0),13),""),"") -> 
A104: =IFERROR(IF(AND(B104>0,B104/1),INDEX(Номенклатура!$B$6:$Z$3651,MATCH(B104,Номенклатура!$X$6:$X$3651,0),1),""),"") ->  | B104: =IFERROR(IF(B103>0,SMALL(Номенклатура!$X$1:$X$3651,1+B103),""),"") ->  | C104: =IFERROR(IF(AND(B104>0,B104/1),INDEX(#REF!,MATCH(B104,#REF!,0),3),""),"") ->  | D104: =IFERROR(IF(AND(B104>0,B104/1),INDEX(#REF!,MATCH(B104,#REF!,0),9),""),"") ->  | E104: =IFERROR(IF(AND(B104>0,B104/1),INDEX(#REF!,MATCH(B104,#REF!,0),5),""),"") ->  | F104: =IFERROR(IF(AND(B104>0,B104/1),INDEX(#REF!,MATCH(B104,#REF!,0),13)/INDEX(#REF!,MATCH(B104,#REF!,0),5),""),"") ->  | G104: =IFERROR(IF(AND(B104>0,B104/1),INDEX(#REF!,MATCH(B104,#REF!,0),13),""),"") -> 
A105: =IFERROR(IF(AND(B105>0,B105/1),INDEX(Номенклатура!$B$6:$Z$3651,MATCH(B105,Номенклатура!$X$6:$X$3651,0),1),""),"") ->  | B105: =IFERROR(IF(B104>0,SMALL(Номенклатура!$X$1:$X$3651,1+B104),""),"") ->  | C105: =IFERROR(IF(AND(B105>0,B105/1),INDEX(#REF!,MATCH(B105,#REF!,0),3),""),"") ->  | D105: =IFERROR(IF(AND(B105>0,B105/1),INDEX(#REF!,MATCH(B105,#REF!,0),9),""),"") ->  | E105: =IFERROR(IF(AND(B105>0,B105/1),INDEX(#REF!,MATCH(B105,#REF!,0),5),""),"") ->  | F105: =IFERROR(IF(AND(B105>0,B105/1),INDEX(#REF!,MATCH(B105,#REF!,0),13)/INDEX(#REF!,MATCH(B105,#REF!,0),5),""),"") ->  | G105: =IFERROR(IF(AND(B105>0,B105/1),INDEX(#REF!,MATCH(B105,#REF!,0),13),""),"") -> 
A106: =IFERROR(IF(AND(B106>0,B106/1),INDEX(Номенклатура!$B$6:$Z$3651,MATCH(B106,Номенклатура!$X$6:$X$3651,0),1),""),"") ->  | B106: =IFERROR(IF(B105>0,SMALL(Номенклатура!$X$1:$X$3651,1+B105),""),"") ->  | C106: =IFERROR(IF(AND(B106>0,B106/1),INDEX(#REF!,MATCH(B106,#REF!,0),3),""),"") ->  | D106: =IFERROR(IF(AND(B106>0,B106/1),INDEX(#REF!,MATCH(B106,#REF!,0),9),""),"") ->  | E106: =IFERROR(IF(AND(B106>0,B106/1),INDEX(#REF!,MATCH(B106,#REF!,0),5),""),"") ->  | F106: =IFERROR(IF(AND(B106>0,B106/1),INDEX(#REF!,MATCH(B106,#REF!,0),13)/INDEX(#REF!,MATCH(B106,#REF!,0),5),""),"") ->  | G106: =IFERROR(IF(AND(B106>0,B106/1),INDEX(#REF!,MATCH(B106,#REF!,0),13),""),"") -> 
A107: =IFERROR(IF(AND(B107>0,B107/1),INDEX(Номенклатура!$B$6:$Z$3651,MATCH(B107,Номенклатура!$X$6:$X$3651,0),1),""),"") ->  | B107: =IFERROR(IF(B106>0,SMALL(Номенклатура!$X$1:$X$3651,1+B106),""),"") ->  | C107: =IFERROR(IF(AND(B107>0,B107/1),INDEX(#REF!,MATCH(B107,#REF!,0),3),""),"") ->  | D107: =IFERROR(IF(AND(B107>0,B107/1),INDEX(#REF!,MATCH(B107,#REF!,0),9),""),"") ->  | E107: =IFERROR(IF(AND(B107>0,B107/1),INDEX(#REF!,MATCH(B107,#REF!,0),5),""),"") ->  | F107: =IFERROR(IF(AND(B107>0,B107/1),INDEX(#REF!,MATCH(B107,#REF!,0),13)/INDEX(#REF!,MATCH(B107,#REF!,0),5),""),"") ->  | G107: =IFERROR(IF(AND(B107>0,B107/1),INDEX(#REF!,MATCH(B107,#REF!,0),13),""),"") -> 
A108: =IFERROR(IF(AND(B108>0,B108/1),INDEX(Номенклатура!$B$6:$Z$3651,MATCH(B108,Номенклатура!$X$6:$X$3651,0),1),""),"") ->  | B108: =IFERROR(IF(B107>0,SMALL(Номенклатура!$X$1:$X$3651,1+B107),""),"") ->  | C108: =IFERROR(IF(AND(B108>0,B108/1),INDEX(#REF!,MATCH(B108,#REF!,0),3),""),"") ->  | D108: =IFERROR(IF(AND(B108>0,B108/1),INDEX(#REF!,MATCH(B108,#REF!,0),9),""),"") ->  | E108: =IFERROR(IF(AND(B108>0,B108/1),INDEX(#REF!,MATCH(B108,#REF!,0),5),""),"") ->  | F108: =IFERROR(IF(AND(B108>0,B108/1),INDEX(#REF!,MATCH(B108,#REF!,0),13)/INDEX(#REF!,MATCH(B108,#REF!,0),5),""),"") ->  | G108: =IFERROR(IF(AND(B108>0,B108/1),INDEX(#REF!,MATCH(B108,#REF!,0),13),""),"") -> 
A109: =IFERROR(IF(AND(B109>0,B109/1),INDEX(Номенклатура!$B$6:$Z$3651,MATCH(B109,Номенклатура!$X$6:$X$3651,0),1),""),"") ->  | B109: =IFERROR(IF(B108>0,SMALL(Номенклатура!$X$1:$X$3651,1+B108),""),"") ->  | C109: =IFERROR(IF(AND(B109>0,B109/1),INDEX(#REF!,MATCH(B109,#REF!,0),3),""),"") ->  | D109: =IFERROR(IF(AND(B109>0,B109/1),INDEX(#REF!,MATCH(B109,#REF!,0),9),""),"") ->  | E109: =IFERROR(IF(AND(B109>0,B109/1),INDEX(#REF!,MATCH(B109,#REF!,0),5),""),"") ->  | F109: =IFERROR(IF(AND(B109>0,B109/1),INDEX(#REF!,MATCH(B109,#REF!,0),13)/INDEX(#REF!,MATCH(B109,#REF!,0),5),""),"") ->  | G109: =IFERROR(IF(AND(B109>0,B109/1),INDEX(#REF!,MATCH(B109,#REF!,0),13),""),"") -> 
A110: =IFERROR(IF(AND(B110>0,B110/1),INDEX(Номенклатура!$B$6:$Z$3651,MATCH(B110,Номенклатура!$X$6:$X$3651,0),1),""),"") ->  | B110: =IFERROR(IF(B109>0,SMALL(Номенклатура!$X$1:$X$3651,1+B109),""),"") ->  | C110: =IFERROR(IF(AND(B110>0,B110/1),INDEX(#REF!,MATCH(B110,#REF!,0),3),""),"") ->  | D110: =IFERROR(IF(AND(B110>0,B110/1),INDEX(#REF!,MATCH(B110,#REF!,0),9),""),"") ->  | E110: =IFERROR(IF(AND(B110>0,B110/1),INDEX(#REF!,MATCH(B110,#REF!,0),5),""),"") ->  | F110: =IFERROR(IF(AND(B110>0,B110/1),INDEX(#REF!,MATCH(B110,#REF!,0),13)/INDEX(#REF!,MATCH(B110,#REF!,0),5),""),"") ->  | G110: =IFERROR(IF(AND(B110>0,B110/1),INDEX(#REF!,MATCH(B110,#REF!,0),13),""),"") -> 
A111: =IFERROR(IF(AND(B111>0,B111/1),INDEX(Номенклатура!$B$6:$Z$3651,MATCH(B111,Номенклатура!$X$6:$X$3651,0),1),""),"") ->  | B111: =IFERROR(IF(B110>0,SMALL(Номенклатура!$X$1:$X$3651,1+B110),""),"") ->  | C111: =IFERROR(IF(AND(B111>0,B111/1),INDEX(#REF!,MATCH(B111,#REF!,0),3),""),"") ->  | D111: =IFERROR(IF(AND(B111>0,B111/1),INDEX(#REF!,MATCH(B111,#REF!,0),9),""),"") ->  | E111: =IFERROR(IF(AND(B111>0,B111/1),INDEX(#REF!,MATCH(B111,#REF!,0),5),""),"") ->  | F111: =IFERROR(IF(AND(B111>0,B111/1),INDEX(#REF!,MATCH(B111,#REF!,0),13)/INDEX(#REF!,MATCH(B111,#REF!,0),5),""),"") ->  | G111: =IFERROR(IF(AND(B111>0,B111/1),INDEX(#REF!,MATCH(B111,#REF!,0),13),""),"") -> 
A112: =IFERROR(IF(AND(B112>0,B112/1),INDEX(Номенклатура!$B$6:$Z$3651,MATCH(B112,Номенклатура!$X$6:$X$3651,0),1),""),"") ->  | B112: =IFERROR(IF(B111>0,SMALL(Номенклатура!$X$1:$X$3651,1+B111),""),"") ->  | C112: =IFERROR(IF(AND(B112>0,B112/1),INDEX(#REF!,MATCH(B112,#REF!,0),3),""),"") ->  | D112: =IFERROR(IF(AND(B112>0,B112/1),INDEX(#REF!,MATCH(B112,#REF!,0),9),""),"") ->  | E112: =IFERROR(IF(AND(B112>0,B112/1),INDEX(#REF!,MATCH(B112,#REF!,0),5),""),"") ->  | F112: =IFERROR(IF(AND(B112>0,B112/1),INDEX(#REF!,MATCH(B112,#REF!,0),13)/INDEX(#REF!,MATCH(B112,#REF!,0),5),""),"") ->  | G112: =IFERROR(IF(AND(B112>0,B112/1),INDEX(#REF!,MATCH(B112,#REF!,0),13),""),"") -> 
A113: =IFERROR(IF(AND(B113>0,B113/1),INDEX(Номенклатура!$B$6:$Z$3651,MATCH(B113,Номенклатура!$X$6:$X$3651,0),1),""),"") ->  | B113: =IFERROR(IF(B112>0,SMALL(Номенклатура!$X$1:$X$3651,1+B112),""),"") ->  | C113: =IFERROR(IF(AND(B113>0,B113/1),INDEX(#REF!,MATCH(B113,#REF!,0),3),""),"") ->  | D113: =IFERROR(IF(AND(B113>0,B113/1),INDEX(#REF!,MATCH(B113,#REF!,0),9),""),"") ->  | E113: =IFERROR(IF(AND(B113>0,B113/1),INDEX(#REF!,MATCH(B113,#REF!,0),5),""),"") ->  | F113: =IFERROR(IF(AND(B113>0,B113/1),INDEX(#REF!,MATCH(B113,#REF!,0),13)/INDEX(#REF!,MATCH(B113,#REF!,0),5),""),"") ->  | G113: =IFERROR(IF(AND(B113>0,B113/1),INDEX(#REF!,MATCH(B113,#REF!,0),13),""),"") -> 
A114: =IFERROR(IF(AND(B114>0,B114/1),INDEX(Номенклатура!$B$6:$Z$3651,MATCH(B114,Номенклатура!$X$6:$X$3651,0),1),""),"") ->  | B114: =IFERROR(IF(B113>0,SMALL(Номенклатура!$X$1:$X$3651,1+B113),""),"") ->  | C114: =IFERROR(IF(AND(B114>0,B114/1),INDEX(#REF!,MATCH(B114,#REF!,0),3),""),"") ->  | D114: =IFERROR(IF(AND(B114>0,B114/1),INDEX(#REF!,MATCH(B114,#REF!,0),9),""),"") ->  | E114: =IFERROR(IF(AND(B114>0,B114/1),INDEX(#REF!,MATCH(B114,#REF!,0),5),""),"") ->  | F114: =IFERROR(IF(AND(B114>0,B114/1),INDEX(#REF!,MATCH(B114,#REF!,0),13)/INDEX(#REF!,MATCH(B114,#REF!,0),5),""),"") ->  | G114: =IFERROR(IF(AND(B114>0,B114/1),INDEX(#REF!,MATCH(B114,#REF!,0),13),""),"") -> 
A115: =IFERROR(IF(AND(B115>0,B115/1),INDEX(Номенклатура!$B$6:$Z$3651,MATCH(B115,Номенклатура!$X$6:$X$3651,0),1),""),"") ->  | B115: =IFERROR(IF(B114>0,SMALL(Номенклатура!$X$1:$X$3651,1+B114),""),"") ->  | C115: =IFERROR(IF(AND(B115>0,B115/1),INDEX(#REF!,MATCH(B115,#REF!,0),3),""),"") ->  | D115: =IFERROR(IF(AND(B115>0,B115/1),INDEX(#REF!,MATCH(B115,#REF!,0),9),""),"") ->  | E115: =IFERROR(IF(AND(B115>0,B115/1),INDEX(#REF!,MATCH(B115,#REF!,0),5),""),"") ->  | F115: =IFERROR(IF(AND(B115>0,B115/1),INDEX(#REF!,MATCH(B115,#REF!,0),13)/INDEX(#REF!,MATCH(B115,#REF!,0),5),""),"") ->  | G115: =IFERROR(IF(AND(B115>0,B115/1),INDEX(#REF!,MATCH(B115,#REF!,0),13),""),"") -> 
A116: =IFERROR(IF(AND(B116>0,B116/1),INDEX(Номенклатура!$B$6:$Z$3651,MATCH(B116,Номенклатура!$X$6:$X$3651,0),1),""),"") ->  | B116: =IFERROR(IF(B115>0,SMALL(Номенклатура!$X$1:$X$3651,1+B115),""),"") ->  | C116: =IFERROR(IF(AND(B116>0,B116/1),INDEX(#REF!,MATCH(B116,#REF!,0),3),""),"") ->  | D116: =IFERROR(IF(AND(B116>0,B116/1),INDEX(#REF!,MATCH(B116,#REF!,0),9),""),"") ->  | E116: =IFERROR(IF(AND(B116>0,B116/1),INDEX(#REF!,MATCH(B116,#REF!,0),5),""),"") ->  | F116: =IFERROR(IF(AND(B116>0,B116/1),INDEX(#REF!,MATCH(B116,#REF!,0),13)/INDEX(#REF!,MATCH(B116,#REF!,0),5),""),"") ->  | G116: =IFERROR(IF(AND(B116>0,B116/1),INDEX(#REF!,MATCH(B116,#REF!,0),13),""),"") -> 
A117: =IFERROR(IF(AND(B117>0,B117/1),INDEX(Номенклатура!$B$6:$Z$3651,MATCH(B117,Номенклатура!$X$6:$X$3651,0),1),""),"") ->  | B117: =IFERROR(IF(B116>0,SMALL(Номенклатура!$X$1:$X$3651,1+B116),""),"") ->  | C117: =IFERROR(IF(AND(B117>0,B117/1),INDEX(#REF!,MATCH(B117,#REF!,0),3),""),"") ->  | D117: =IFERROR(IF(AND(B117>0,B117/1),INDEX(#REF!,MATCH(B117,#REF!,0),9),""),"") ->  | E117: =IFERROR(IF(AND(B117>0,B117/1),INDEX(#REF!,MATCH(B117,#REF!,0),5),""),"") ->  | F117: =IFERROR(IF(AND(B117>0,B117/1),INDEX(#REF!,MATCH(B117,#REF!,0),13)/INDEX(#REF!,MATCH(B117,#REF!,0),5),""),"") ->  | G117: =IFERROR(IF(AND(B117>0,B117/1),INDEX(#REF!,MATCH(B117,#REF!,0),13),""),"") -> 
A118: =IFERROR(IF(AND(B118>0,B118/1),INDEX(Номенклатура!$B$6:$Z$3651,MATCH(B118,Номенклатура!$X$6:$X$3651,0),1),""),"") ->  | B118: =IFERROR(IF(B117>0,SMALL(Номенклатура!$X$1:$X$3651,1+B117),""),"") ->  | C118: =IFERROR(IF(AND(B118>0,B118/1),INDEX(#REF!,MATCH(B118,#REF!,0),3),""),"") ->  | D118: =IFERROR(IF(AND(B118>0,B118/1),INDEX(#REF!,MATCH(B118,#REF!,0),9),""),"") ->  | E118: =IFERROR(IF(AND(B118>0,B118/1),INDEX(#REF!,MATCH(B118,#REF!,0),5),""),"") ->  | F118: =IFERROR(IF(AND(B118>0,B118/1),INDEX(#REF!,MATCH(B118,#REF!,0),13)/INDEX(#REF!,MATCH(B118,#REF!,0),5),""),"") ->  | G118: =IFERROR(IF(AND(B118>0,B118/1),INDEX(#REF!,MATCH(B118,#REF!,0),13),""),"") -> 
A119: =IFERROR(IF(AND(B119>0,B119/1),INDEX(Номенклатура!$B$6:$Z$3651,MATCH(B119,Номенклатура!$X$6:$X$3651,0),1),""),"") ->  | B119: =IFERROR(IF(B118>0,SMALL(Номенклатура!$X$1:$X$3651,1+B118),""),"") ->  | C119: =IFERROR(IF(AND(B119>0,B119/1),INDEX(#REF!,MATCH(B119,#REF!,0),3),""),"") ->  | D119: =IFERROR(IF(AND(B119>0,B119/1),INDEX(#REF!,MATCH(B119,#REF!,0),9),""),"") ->  | E119: =IFERROR(IF(AND(B119>0,B119/1),INDEX(#REF!,MATCH(B119,#REF!,0),5),""),"") ->  | F119: =IFERROR(IF(AND(B119>0,B119/1),INDEX(#REF!,MATCH(B119,#REF!,0),13)/INDEX(#REF!,MATCH(B119,#REF!,0),5),""),"") ->  | G119: =IFERROR(IF(AND(B119>0,B119/1),INDEX(#REF!,MATCH(B119,#REF!,0),13),""),"") -> 
A120: =IFERROR(IF(AND(B120>0,B120/1),INDEX(Номенклатура!$B$6:$Z$3651,MATCH(B120,Номенклатура!$X$6:$X$3651,0),1),""),"") ->  | B120: =IFERROR(IF(B119>0,SMALL(Номенклатура!$X$1:$X$3651,1+B119),""),"") ->  | C120: =IFERROR(IF(AND(B120>0,B120/1),INDEX(#REF!,MATCH(B120,#REF!,0),3),""),"") ->  | D120: =IFERROR(IF(AND(B120>0,B120/1),INDEX(#REF!,MATCH(B120,#REF!,0),9),""),"") ->  | E120: =IFERROR(IF(AND(B120>0,B120/1),INDEX(#REF!,MATCH(B120,#REF!,0),5),""),"") ->  | F120: =IFERROR(IF(AND(B120>0,B120/1),INDEX(#REF!,MATCH(B120,#REF!,0),13)/INDEX(#REF!,MATCH(B120,#REF!,0),5),""),"") ->  | G120: =IFERROR(IF(AND(B120>0,B120/1),INDEX(#REF!,MATCH(B120,#REF!,0),13),""),"") -> 
A121: =IFERROR(IF(AND(B121>0,B121/1),INDEX(Номенклатура!$B$6:$Z$3651,MATCH(B121,Номенклатура!$X$6:$X$3651,0),1),""),"") ->  | B121: =IFERROR(IF(B120>0,SMALL(Номенклатура!$X$1:$X$3651,1+B120),""),"") ->  | C121: =IFERROR(IF(AND(B121>0,B121/1),INDEX(#REF!,MATCH(B121,#REF!,0),3),""),"") ->  | D121: =IFERROR(IF(AND(B121>0,B121/1),INDEX(#REF!,MATCH(B121,#REF!,0),9),""),"") ->  | E121: =IFERROR(IF(AND(B121>0,B121/1),INDEX(#REF!,MATCH(B121,#REF!,0),5),""),"") ->  | F121: =IFERROR(IF(AND(B121>0,B121/1),INDEX(#REF!,MATCH(B121,#REF!,0),13)/INDEX(#REF!,MATCH(B121,#REF!,0),5),""),"") ->  | G121: =IFERROR(IF(AND(B121>0,B121/1),INDEX(#REF!,MATCH(B121,#REF!,0),13),""),"") -> 
A122: =IFERROR(IF(AND(B122>0,B122/1),INDEX(Номенклатура!$B$6:$Z$3651,MATCH(B122,Номенклатура!$X$6:$X$3651,0),1),""),"") ->  | B122: =IFERROR(IF(B121>0,SMALL(Номенклатура!$X$1:$X$3651,1+B121),""),"") ->  | C122: =IFERROR(IF(AND(B122>0,B122/1),INDEX(#REF!,MATCH(B122,#REF!,0),3),""),"") ->  | D122: =IFERROR(IF(AND(B122>0,B122/1),INDEX(#REF!,MATCH(B122,#REF!,0),9),""),"") ->  | E122: =IFERROR(IF(AND(B122>0,B122/1),INDEX(#REF!,MATCH(B122,#REF!,0),5),""),"") ->  | F122: =IFERROR(IF(AND(B122>0,B122/1),INDEX(#REF!,MATCH(B122,#REF!,0),13)/INDEX(#REF!,MATCH(B122,#REF!,0),5),""),"") ->  | G122: =IFERROR(IF(AND(B122>0,B122/1),INDEX(#REF!,MATCH(B122,#REF!,0),13),""),"") -> 
A123: =IFERROR(IF(AND(B123>0,B123/1),INDEX(Номенклатура!$B$6:$Z$3651,MATCH(B123,Номенклатура!$X$6:$X$3651,0),1),""),"") ->  | B123: =IFERROR(IF(B122>0,SMALL(Номенклатура!$X$1:$X$3651,1+B122),""),"") ->  | C123: =IFERROR(IF(AND(B123>0,B123/1),INDEX(#REF!,MATCH(B123,#REF!,0),3),""),"") ->  | D123: =IFERROR(IF(AND(B123>0,B123/1),INDEX(#REF!,MATCH(B123,#REF!,0),9),""),"") ->  | E123: =IFERROR(IF(AND(B123>0,B123/1),INDEX(#REF!,MATCH(B123,#REF!,0),5),""),"") ->  | F123: =IFERROR(IF(AND(B123>0,B123/1),INDEX(#REF!,MATCH(B123,#REF!,0),13)/INDEX(#REF!,MATCH(B123,#REF!,0),5),""),"") ->  | G123: =IFERROR(IF(AND(B123>0,B123/1),INDEX(#REF!,MATCH(B123,#REF!,0),13),""),"") -> 
A124: =IFERROR(IF(AND(B124>0,B124/1),INDEX(Номенклатура!$B$6:$Z$3651,MATCH(B124,Номенклатура!$X$6:$X$3651,0),1),""),"") ->  | B124: =IFERROR(IF(B123>0,SMALL(Номенклатура!$X$1:$X$3651,1+B123),""),"") ->  | C124: =IFERROR(IF(AND(B124>0,B124/1),INDEX(#REF!,MATCH(B124,#REF!,0),3),""),"") ->  | D124: =IFERROR(IF(AND(B124>0,B124/1),INDEX(#REF!,MATCH(B124,#REF!,0),9),""),"") ->  | E124: =IFERROR(IF(AND(B124>0,B124/1),INDEX(#REF!,MATCH(B124,#REF!,0),5),""),"") ->  | F124: =IFERROR(IF(AND(B124>0,B124/1),INDEX(#REF!,MATCH(B124,#REF!,0),13)/INDEX(#REF!,MATCH(B124,#REF!,0),5),""),"") ->  | G124: =IFERROR(IF(AND(B124>0,B124/1),INDEX(#REF!,MATCH(B124,#REF!,0),13),""),"") -> 
A125: =IFERROR(IF(AND(B125>0,B125/1),INDEX(Номенклатура!$B$6:$Z$3651,MATCH(B125,Номенклатура!$X$6:$X$3651,0),1),""),"") ->  | B125: =IFERROR(IF(B124>0,SMALL(Номенклатура!$X$1:$X$3651,1+B124),""),"") ->  | C125: =IFERROR(IF(AND(B125>0,B125/1),INDEX(#REF!,MATCH(B125,#REF!,0),3),""),"") ->  | D125: =IFERROR(IF(AND(B125>0,B125/1),INDEX(#REF!,MATCH(B125,#REF!,0),9),""),"") ->  | E125: =IFERROR(IF(AND(B125>0,B125/1),INDEX(#REF!,MATCH(B125,#REF!,0),5),""),"") ->  | F125: =IFERROR(IF(AND(B125>0,B125/1),INDEX(#REF!,MATCH(B125,#REF!,0),13)/INDEX(#REF!,MATCH(B125,#REF!,0),5),""),"") ->  | G125: =IFERROR(IF(AND(B125>0,B125/1),INDEX(#REF!,MATCH(B125,#REF!,0),13),""),"") -> 
A126: =IFERROR(IF(AND(B126>0,B126/1),INDEX(Номенклатура!$B$6:$Z$3651,MATCH(B126,Номенклатура!$X$6:$X$3651,0),1),""),"") ->  | B126: =IFERROR(IF(B125>0,SMALL(Номенклатура!$X$1:$X$3651,1+B125),""),"") ->  | C126: =IFERROR(IF(AND(B126>0,B126/1),INDEX(#REF!,MATCH(B126,#REF!,0),3),""),"") ->  | D126: =IFERROR(IF(AND(B126>0,B126/1),INDEX(#REF!,MATCH(B126,#REF!,0),9),""),"") ->  | E126: =IFERROR(IF(AND(B126>0,B126/1),INDEX(#REF!,MATCH(B126,#REF!,0),5),""),"") ->  | F126: =IFERROR(IF(AND(B126>0,B126/1),INDEX(#REF!,MATCH(B126,#REF!,0),13)/INDEX(#REF!,MATCH(B126,#REF!,0),5),""),"") ->  | G126: =IFERROR(IF(AND(B126>0,B126/1),INDEX(#REF!,MATCH(B126,#REF!,0),13),""),"") -> 
A127: =IFERROR(IF(AND(B127>0,B127/1),INDEX(Номенклатура!$B$6:$Z$3651,MATCH(B127,Номенклатура!$X$6:$X$3651,0),1),""),"") ->  | B127: =IFERROR(IF(B126>0,SMALL(Номенклатура!$X$1:$X$3651,1+B126),""),"") ->  | C127: =IFERROR(IF(AND(B127>0,B127/1),INDEX(#REF!,MATCH(B127,#REF!,0),3),""),"") ->  | D127: =IFERROR(IF(AND(B127>0,B127/1),INDEX(#REF!,MATCH(B127,#REF!,0),9),""),"") ->  | E127: =IFERROR(IF(AND(B127>0,B127/1),INDEX(#REF!,MATCH(B127,#REF!,0),5),""),"") ->  | F127: =IFERROR(IF(AND(B127>0,B127/1),INDEX(#REF!,MATCH(B127,#REF!,0),13)/INDEX(#REF!,MATCH(B127,#REF!,0),5),""),"") ->  | G127: =IFERROR(IF(AND(B127>0,B127/1),INDEX(#REF!,MATCH(B127,#REF!,0),13),""),"") -> 
A128: =IFERROR(IF(AND(B128>0,B128/1),INDEX(Номенклатура!$B$6:$Z$3651,MATCH(B128,Номенклатура!$X$6:$X$3651,0),1),""),"") ->  | B128: =IFERROR(IF(B127>0,SMALL(Номенклатура!$X$1:$X$3651,1+B127),""),"") ->  | C128: =IFERROR(IF(AND(B128>0,B128/1),INDEX(#REF!,MATCH(B128,#REF!,0),3),""),"") ->  | D128: =IFERROR(IF(AND(B128>0,B128/1),INDEX(#REF!,MATCH(B128,#REF!,0),9),""),"") ->  | E128: =IFERROR(IF(AND(B128>0,B128/1),INDEX(#REF!,MATCH(B128,#REF!,0),5),""),"") ->  | F128: =IFERROR(IF(AND(B128>0,B128/1),INDEX(#REF!,MATCH(B128,#REF!,0),13)/INDEX(#REF!,MATCH(B128,#REF!,0),5),""),"") ->  | G128: =IFERROR(IF(AND(B128>0,B128/1),INDEX(#REF!,MATCH(B128,#REF!,0),13),""),"") -> 
A129: =IFERROR(IF(AND(B129>0,B129/1),INDEX(Номенклатура!$B$6:$Z$3651,MATCH(B129,Номенклатура!$X$6:$X$3651,0),1),""),"") ->  | B129: =IFERROR(IF(B128>0,SMALL(Номенклатура!$X$1:$X$3651,1+B128),""),"") ->  | C129: =IFERROR(IF(AND(B129>0,B129/1),INDEX(#REF!,MATCH(B129,#REF!,0),3),""),"") ->  | D129: =IFERROR(IF(AND(B129>0,B129/1),INDEX(#REF!,MATCH(B129,#REF!,0),9),""),"") ->  | E129: =IFERROR(IF(AND(B129>0,B129/1),INDEX(#REF!,MATCH(B129,#REF!,0),5),""),"") ->  | F129: =IFERROR(IF(AND(B129>0,B129/1),INDEX(#REF!,MATCH(B129,#REF!,0),13)/INDEX(#REF!,MATCH(B129,#REF!,0),5),""),"") ->  | G129: =IFERROR(IF(AND(B129>0,B129/1),INDEX(#REF!,MATCH(B129,#REF!,0),13),""),"") -> 
A130: =IFERROR(IF(AND(B130>0,B130/1),INDEX(Номенклатура!$B$6:$Z$3651,MATCH(B130,Номенклатура!$X$6:$X$3651,0),1),""),"") ->  | B130: =IFERROR(IF(B129>0,SMALL(Номенклатура!$X$1:$X$3651,1+B129),""),"") ->  | C130: =IFERROR(IF(AND(B130>0,B130/1),INDEX(#REF!,MATCH(B130,#REF!,0),3),""),"") ->  | D130: =IFERROR(IF(AND(B130>0,B130/1),INDEX(#REF!,MATCH(B130,#REF!,0),9),""),"") ->  | E130: =IFERROR(IF(AND(B130>0,B130/1),INDEX(#REF!,MATCH(B130,#REF!,0),5),""),"") ->  | F130: =IFERROR(IF(AND(B130>0,B130/1),INDEX(#REF!,MATCH(B130,#REF!,0),13)/INDEX(#REF!,MATCH(B130,#REF!,0),5),""),"") ->  | G130: =IFERROR(IF(AND(B130>0,B130/1),INDEX(#REF!,MATCH(B130,#REF!,0),13),""),"") -> 
A131: =IFERROR(IF(AND(B131>0,B131/1),INDEX(Номенклатура!$B$6:$Z$3651,MATCH(B131,Номенклатура!$X$6:$X$3651,0),1),""),"") ->  | B131: =IFERROR(IF(B130>0,SMALL(Номенклатура!$X$1:$X$3651,1+B130),""),"") ->  | C131: =IFERROR(IF(AND(B131>0,B131/1),INDEX(#REF!,MATCH(B131,#REF!,0),3),""),"") ->  | D131: =IFERROR(IF(AND(B131>0,B131/1),INDEX(#REF!,MATCH(B131,#REF!,0),9),""),"") ->  | E131: =IFERROR(IF(AND(B131>0,B131/1),INDEX(#REF!,MATCH(B131,#REF!,0),5),""),"") ->  | F131: =IFERROR(IF(AND(B131>0,B131/1),INDEX(#REF!,MATCH(B131,#REF!,0),13)/INDEX(#REF!,MATCH(B131,#REF!,0),5),""),"") ->  | G131: =IFERROR(IF(AND(B131>0,B131/1),INDEX(#REF!,MATCH(B131,#REF!,0),13),""),"") -> 
A132: =IFERROR(IF(AND(B132>0,B132/1),INDEX(Номенклатура!$B$6:$Z$3651,MATCH(B132,Номенклатура!$X$6:$X$3651,0),1),""),"") ->  | B132: =IFERROR(IF(B131>0,SMALL(Номенклатура!$X$1:$X$3651,1+B131),""),"") ->  | C132: =IFERROR(IF(AND(B132>0,B132/1),INDEX(#REF!,MATCH(B132,#REF!,0),3),""),"") ->  | D132: =IFERROR(IF(AND(B132>0,B132/1),INDEX(#REF!,MATCH(B132,#REF!,0),9),""),"") ->  | E132: =IFERROR(IF(AND(B132>0,B132/1),INDEX(#REF!,MATCH(B132,#REF!,0),5),""),"") ->  | F132: =IFERROR(IF(AND(B132>0,B132/1),INDEX(#REF!,MATCH(B132,#REF!,0),13)/INDEX(#REF!,MATCH(B132,#REF!,0),5),""),"") ->  | G132: =IFERROR(IF(AND(B132>0,B132/1),INDEX(#REF!,MATCH(B132,#REF!,0),13),""),"") -> 
A133: =IFERROR(IF(AND(B133>0,B133/1),INDEX(Номенклатура!$B$6:$Z$3651,MATCH(B133,Номенклатура!$X$6:$X$3651,0),1),""),"") ->  | B133: =IFERROR(IF(B132>0,SMALL(Номенклатура!$X$1:$X$3651,1+B132),""),"") ->  | C133: =IFERROR(IF(AND(B133>0,B133/1),INDEX(#REF!,MATCH(B133,#REF!,0),3),""),"") ->  | D133: =IFERROR(IF(AND(B133>0,B133/1),INDEX(#REF!,MATCH(B133,#REF!,0),9),""),"") ->  | E133: =IFERROR(IF(AND(B133>0,B133/1),INDEX(#REF!,MATCH(B133,#REF!,0),5),""),"") ->  | F133: =IFERROR(IF(AND(B133>0,B133/1),INDEX(#REF!,MATCH(B133,#REF!,0),13)/INDEX(#REF!,MATCH(B133,#REF!,0),5),""),"") ->  | G133: =IFERROR(IF(AND(B133>0,B133/1),INDEX(#REF!,MATCH(B133,#REF!,0),13),""),"") -> 
A134: =IFERROR(IF(AND(B134>0,B134/1),INDEX(Номенклатура!$B$6:$Z$3651,MATCH(B134,Номенклатура!$X$6:$X$3651,0),1),""),"") ->  | B134: =IFERROR(IF(B133>0,SMALL(Номенклатура!$X$1:$X$3651,1+B133),""),"") ->  | C134: =IFERROR(IF(AND(B134>0,B134/1),INDEX(#REF!,MATCH(B134,#REF!,0),3),""),"") ->  | D134: =IFERROR(IF(AND(B134>0,B134/1),INDEX(#REF!,MATCH(B134,#REF!,0),9),""),"") ->  | E134: =IFERROR(IF(AND(B134>0,B134/1),INDEX(#REF!,MATCH(B134,#REF!,0),5),""),"") ->  | F134: =IFERROR(IF(AND(B134>0,B134/1),INDEX(#REF!,MATCH(B134,#REF!,0),13)/INDEX(#REF!,MATCH(B134,#REF!,0),5),""),"") ->  | G134: =IFERROR(IF(AND(B134>0,B134/1),INDEX(#REF!,MATCH(B134,#REF!,0),13),""),"") -> 
A135: =IFERROR(IF(AND(B135>0,B135/1),INDEX(Номенклатура!$B$6:$Z$3651,MATCH(B135,Номенклатура!$X$6:$X$3651,0),1),""),"") ->  | B135: =IFERROR(IF(B134>0,SMALL(Номенклатура!$X$1:$X$3651,1+B134),""),"") ->  | C135: =IFERROR(IF(AND(B135>0,B135/1),INDEX(#REF!,MATCH(B135,#REF!,0),3),""),"") ->  | D135: =IFERROR(IF(AND(B135>0,B135/1),INDEX(#REF!,MATCH(B135,#REF!,0),9),""),"") ->  | E135: =IFERROR(IF(AND(B135>0,B135/1),INDEX(#REF!,MATCH(B135,#REF!,0),5),""),"") ->  | F135: =IFERROR(IF(AND(B135>0,B135/1),INDEX(#REF!,MATCH(B135,#REF!,0),13)/INDEX(#REF!,MATCH(B135,#REF!,0),5),""),"") ->  | G135: =IFERROR(IF(AND(B135>0,B135/1),INDEX(#REF!,MATCH(B135,#REF!,0),13),""),"") -> 
A136: =IFERROR(IF(AND(B136>0,B136/1),INDEX(Номенклатура!$B$6:$Z$3651,MATCH(B136,Номенклатура!$X$6:$X$3651,0),1),""),"") ->  | B136: =IFERROR(IF(B135>0,SMALL(Номенклатура!$X$1:$X$3651,1+B135),""),"") ->  | C136: =IFERROR(IF(AND(B136>0,B136/1),INDEX(#REF!,MATCH(B136,#REF!,0),3),""),"") ->  | D136: =IFERROR(IF(AND(B136>0,B136/1),INDEX(#REF!,MATCH(B136,#REF!,0),9),""),"") ->  | E136: =IFERROR(IF(AND(B136>0,B136/1),INDEX(#REF!,MATCH(B136,#REF!,0),5),""),"") ->  | F136: =IFERROR(IF(AND(B136>0,B136/1),INDEX(#REF!,MATCH(B136,#REF!,0),13)/INDEX(#REF!,MATCH(B136,#REF!,0),5),""),"") ->  | G136: =IFERROR(IF(AND(B136>0,B136/1),INDEX(#REF!,MATCH(B136,#REF!,0),13),""),"") -> 
A137: =IFERROR(IF(AND(B137>0,B137/1),INDEX(Номенклатура!$B$6:$Z$3651,MATCH(B137,Номенклатура!$X$6:$X$3651,0),1),""),"") ->  | B137: =IFERROR(IF(B136>0,SMALL(Номенклатура!$X$1:$X$3651,1+B136),""),"") ->  | C137: =IFERROR(IF(AND(B137>0,B137/1),INDEX(#REF!,MATCH(B137,#REF!,0),3),""),"") ->  | D137: =IFERROR(IF(AND(B137>0,B137/1),INDEX(#REF!,MATCH(B137,#REF!,0),9),""),"") ->  | E137: =IFERROR(IF(AND(B137>0,B137/1),INDEX(#REF!,MATCH(B137,#REF!,0),5),""),"") ->  | F137: =IFERROR(IF(AND(B137>0,B137/1),INDEX(#REF!,MATCH(B137,#REF!,0),13)/INDEX(#REF!,MATCH(B137,#REF!,0),5),""),"") ->  | G137: =IFERROR(IF(AND(B137>0,B137/1),INDEX(#REF!,MATCH(B137,#REF!,0),13),""),"") -> 
A138: =IFERROR(IF(AND(B138>0,B138/1),INDEX(Номенклатура!$B$6:$Z$3651,MATCH(B138,Номенклатура!$X$6:$X$3651,0),1),""),"") ->  | B138: =IFERROR(IF(B137>0,SMALL(Номенклатура!$X$1:$X$3651,1+B137),""),"") ->  | C138: =IFERROR(IF(AND(B138>0,B138/1),INDEX(#REF!,MATCH(B138,#REF!,0),3),""),"") ->  | D138: =IFERROR(IF(AND(B138>0,B138/1),INDEX(#REF!,MATCH(B138,#REF!,0),9),""),"") ->  | E138: =IFERROR(IF(AND(B138>0,B138/1),INDEX(#REF!,MATCH(B138,#REF!,0),5),""),"") ->  | F138: =IFERROR(IF(AND(B138>0,B138/1),INDEX(#REF!,MATCH(B138,#REF!,0),13)/INDEX(#REF!,MATCH(B138,#REF!,0),5),""),"") ->  | G138: =IFERROR(IF(AND(B138>0,B138/1),INDEX(#REF!,MATCH(B138,#REF!,0),13),""),"") -> 
A139: =IFERROR(IF(AND(B139>0,B139/1),INDEX(Номенклатура!$B$6:$Z$3651,MATCH(B139,Номенклатура!$X$6:$X$3651,0),1),""),"") ->  | B139: =IFERROR(IF(B138>0,SMALL(Номенклатура!$X$1:$X$3651,1+B138),""),"") ->  | C139: =IFERROR(IF(AND(B139>0,B139/1),INDEX(#REF!,MATCH(B139,#REF!,0),3),""),"") ->  | D139: =IFERROR(IF(AND(B139>0,B139/1),INDEX(#REF!,MATCH(B139,#REF!,0),9),""),"") ->  | E139: =IFERROR(IF(AND(B139>0,B139/1),INDEX(#REF!,MATCH(B139,#REF!,0),5),""),"") ->  | F139: =IFERROR(IF(AND(B139>0,B139/1),INDEX(#REF!,MATCH(B139,#REF!,0),13)/INDEX(#REF!,MATCH(B139,#REF!,0),5),""),"") ->  | G139: =IFERROR(IF(AND(B139>0,B139/1),INDEX(#REF!,MATCH(B139,#REF!,0),13),""),"") -> 
A140: =IFERROR(IF(AND(B140>0,B140/1),INDEX(Номенклатура!$B$6:$Z$3651,MATCH(B140,Номенклатура!$X$6:$X$3651,0),1),""),"") ->  | B140: =IFERROR(IF(B139>0,SMALL(Номенклатура!$X$1:$X$3651,1+B139),""),"") ->  | C140: =IFERROR(IF(AND(B140>0,B140/1),INDEX(#REF!,MATCH(B140,#REF!,0),3),""),"") ->  | D140: =IFERROR(IF(AND(B140>0,B140/1),INDEX(#REF!,MATCH(B140,#REF!,0),9),""),"") ->  | E140: =IFERROR(IF(AND(B140>0,B140/1),INDEX(#REF!,MATCH(B140,#REF!,0),5),""),"") ->  | F140: =IFERROR(IF(AND(B140>0,B140/1),INDEX(#REF!,MATCH(B140,#REF!,0),13)/INDEX(#REF!,MATCH(B140,#REF!,0),5),""),"") ->  | G140: =IFERROR(IF(AND(B140>0,B140/1),INDEX(#REF!,MATCH(B140,#REF!,0),13),""),"") -> 
A141: =IFERROR(IF(AND(B141>0,B141/1),INDEX(Номенклатура!$B$6:$Z$3651,MATCH(B141,Номенклатура!$X$6:$X$3651,0),1),""),"") ->  | B141: =IFERROR(IF(B140>0,SMALL(Номенклатура!$X$1:$X$3651,1+B140),""),"") ->  | C141: =IFERROR(IF(AND(B141>0,B141/1),INDEX(#REF!,MATCH(B141,#REF!,0),3),""),"") ->  | D141: =IFERROR(IF(AND(B141>0,B141/1),INDEX(#REF!,MATCH(B141,#REF!,0),9),""),"") ->  | E141: =IFERROR(IF(AND(B141>0,B141/1),INDEX(#REF!,MATCH(B141,#REF!,0),5),""),"") ->  | F141: =IFERROR(IF(AND(B141>0,B141/1),INDEX(#REF!,MATCH(B141,#REF!,0),13)/INDEX(#REF!,MATCH(B141,#REF!,0),5),""),"") ->  | G141: =IFERROR(IF(AND(B141>0,B141/1),INDEX(#REF!,MATCH(B141,#REF!,0),13),""),"") -> 
A142: =IFERROR(IF(AND(B142>0,B142/1),INDEX(Номенклатура!$B$6:$Z$3651,MATCH(B142,Номенклатура!$X$6:$X$3651,0),1),""),"") ->  | B142: =IFERROR(IF(B141>0,SMALL(Номенклатура!$X$1:$X$3651,1+B141),""),"") ->  | C142: =IFERROR(IF(AND(B142>0,B142/1),INDEX(#REF!,MATCH(B142,#REF!,0),3),""),"") ->  | D142: =IFERROR(IF(AND(B142>0,B142/1),INDEX(#REF!,MATCH(B142,#REF!,0),9),""),"") ->  | E142: =IFERROR(IF(AND(B142>0,B142/1),INDEX(#REF!,MATCH(B142,#REF!,0),5),""),"") ->  | F142: =IFERROR(IF(AND(B142>0,B142/1),INDEX(#REF!,MATCH(B142,#REF!,0),13)/INDEX(#REF!,MATCH(B142,#REF!,0),5),""),"") ->  | G142: =IFERROR(IF(AND(B142>0,B142/1),INDEX(#REF!,MATCH(B142,#REF!,0),13),""),"") -> 
A143: =IFERROR(IF(AND(B143>0,B143/1),INDEX(Номенклатура!$B$6:$Z$3651,MATCH(B143,Номенклатура!$X$6:$X$3651,0),1),""),"") ->  | B143: =IFERROR(IF(B142>0,SMALL(Номенклатура!$X$1:$X$3651,1+B142),""),"") ->  | C143: =IFERROR(IF(AND(B143>0,B143/1),INDEX(#REF!,MATCH(B143,#REF!,0),3),""),"") ->  | D143: =IFERROR(IF(AND(B143>0,B143/1),INDEX(#REF!,MATCH(B143,#REF!,0),9),""),"") ->  | E143: =IFERROR(IF(AND(B143>0,B143/1),INDEX(#REF!,MATCH(B143,#REF!,0),5),""),"") ->  | F143: =IFERROR(IF(AND(B143>0,B143/1),INDEX(#REF!,MATCH(B143,#REF!,0),13)/INDEX(#REF!,MATCH(B143,#REF!,0),5),""),"") ->  | G143: =IFERROR(IF(AND(B143>0,B143/1),INDEX(#REF!,MATCH(B143,#REF!,0),13),""),"") -> 
A144: =IFERROR(IF(AND(B144>0,B144/1),INDEX(Номенклатура!$B$6:$Z$3651,MATCH(B144,Номенклатура!$X$6:$X$3651,0),1),""),"") ->  | B144: =IFERROR(IF(B143>0,SMALL(Номенклатура!$X$1:$X$3651,1+B143),""),"") ->  | C144: =IFERROR(IF(AND(B144>0,B144/1),INDEX(#REF!,MATCH(B144,#REF!,0),3),""),"") ->  | D144: =IFERROR(IF(AND(B144>0,B144/1),INDEX(#REF!,MATCH(B144,#REF!,0),9),""),"") ->  | E144: =IFERROR(IF(AND(B144>0,B144/1),INDEX(#REF!,MATCH(B144,#REF!,0),5),""),"") ->  | F144: =IFERROR(IF(AND(B144>0,B144/1),INDEX(#REF!,MATCH(B144,#REF!,0),13)/INDEX(#REF!,MATCH(B144,#REF!,0),5),""),"") ->  | G144: =IFERROR(IF(AND(B144>0,B144/1),INDEX(#REF!,MATCH(B144,#REF!,0),13),""),"") -> 
A145: =IFERROR(IF(AND(B145>0,B145/1),INDEX(Номенклатура!$B$6:$Z$3651,MATCH(B145,Номенклатура!$X$6:$X$3651,0),1),""),"") ->  | B145: =IFERROR(IF(B144>0,SMALL(Номенклатура!$X$1:$X$3651,1+B144),""),"") ->  | C145: =IFERROR(IF(AND(B145>0,B145/1),INDEX(#REF!,MATCH(B145,#REF!,0),3),""),"") ->  | D145: =IFERROR(IF(AND(B145>0,B145/1),INDEX(#REF!,MATCH(B145,#REF!,0),9),""),"") ->  | E145: =IFERROR(IF(AND(B145>0,B145/1),INDEX(#REF!,MATCH(B145,#REF!,0),5),""),"") ->  | F145: =IFERROR(IF(AND(B145>0,B145/1),INDEX(#REF!,MATCH(B145,#REF!,0),13)/INDEX(#REF!,MATCH(B145,#REF!,0),5),""),"") ->  | G145: =IFERROR(IF(AND(B145>0,B145/1),INDEX(#REF!,MATCH(B145,#REF!,0),13),""),"") -> 
A146: =IFERROR(IF(AND(B146>0,B146/1),INDEX(Номенклатура!$B$6:$Z$3651,MATCH(B146,Номенклатура!$X$6:$X$3651,0),1),""),"") ->  | B146: =IFERROR(IF(B145>0,SMALL(Номенклатура!$X$1:$X$3651,1+B145),""),"") ->  | C146: =IFERROR(IF(AND(B146>0,B146/1),INDEX(#REF!,MATCH(B146,#REF!,0),3),""),"") ->  | D146: =IFERROR(IF(AND(B146>0,B146/1),INDEX(#REF!,MATCH(B146,#REF!,0),9),""),"") ->  | E146: =IFERROR(IF(AND(B146>0,B146/1),INDEX(#REF!,MATCH(B146,#REF!,0),5),""),"") ->  | F146: =IFERROR(IF(AND(B146>0,B146/1),INDEX(#REF!,MATCH(B146,#REF!,0),13)/INDEX(#REF!,MATCH(B146,#REF!,0),5),""),"") ->  | G146: =IFERROR(IF(AND(B146>0,B146/1),INDEX(#REF!,MATCH(B146,#REF!,0),13),""),"") -> 
A147: =IFERROR(IF(AND(B147>0,B147/1),INDEX(Номенклатура!$B$6:$Z$3651,MATCH(B147,Номенклатура!$X$6:$X$3651,0),1),""),"") ->  | B147: =IFERROR(IF(B146>0,SMALL(Номенклатура!$X$1:$X$3651,1+B146),""),"") ->  | C147: =IFERROR(IF(AND(B147>0,B147/1),INDEX(#REF!,MATCH(B147,#REF!,0),3),""),"") ->  | D147: =IFERROR(IF(AND(B147>0,B147/1),INDEX(#REF!,MATCH(B147,#REF!,0),9),""),"") ->  | E147: =IFERROR(IF(AND(B147>0,B147/1),INDEX(#REF!,MATCH(B147,#REF!,0),5),""),"") ->  | F147: =IFERROR(IF(AND(B147>0,B147/1),INDEX(#REF!,MATCH(B147,#REF!,0),13)/INDEX(#REF!,MATCH(B147,#REF!,0),5),""),"") ->  | G147: =IFERROR(IF(AND(B147>0,B147/1),INDEX(#REF!,MATCH(B147,#REF!,0),13),""),"") -> 
A148: =IFERROR(IF(AND(B148>0,B148/1),INDEX(Номенклатура!$B$6:$Z$3651,MATCH(B148,Номенклатура!$X$6:$X$3651,0),1),""),"") ->  | B148: =IFERROR(IF(B147>0,SMALL(Номенклатура!$X$1:$X$3651,1+B147),""),"") ->  | C148: =IFERROR(IF(AND(B148>0,B148/1),INDEX(#REF!,MATCH(B148,#REF!,0),3),""),"") ->  | D148: =IFERROR(IF(AND(B148>0,B148/1),INDEX(#REF!,MATCH(B148,#REF!,0),9),""),"") ->  | E148: =IFERROR(IF(AND(B148>0,B148/1),INDEX(#REF!,MATCH(B148,#REF!,0),5),""),"") ->  | F148: =IFERROR(IF(AND(B148>0,B148/1),INDEX(#REF!,MATCH(B148,#REF!,0),13)/INDEX(#REF!,MATCH(B148,#REF!,0),5),""),"") ->  | G148: =IFERROR(IF(AND(B148>0,B148/1),INDEX(#REF!,MATCH(B148,#REF!,0),13),""),"") -> 
A149: =IFERROR(IF(AND(B149>0,B149/1),INDEX(Номенклатура!$B$6:$Z$3651,MATCH(B149,Номенклатура!$X$6:$X$3651,0),1),""),"") ->  | B149: =IFERROR(IF(B148>0,SMALL(Номенклатура!$X$1:$X$3651,1+B148),""),"") ->  | C149: =IFERROR(IF(AND(B149>0,B149/1),INDEX(#REF!,MATCH(B149,#REF!,0),3),""),"") ->  | D149: =IFERROR(IF(AND(B149>0,B149/1),INDEX(#REF!,MATCH(B149,#REF!,0),9),""),"") ->  | E149: =IFERROR(IF(AND(B149>0,B149/1),INDEX(#REF!,MATCH(B149,#REF!,0),5),""),"") ->  | F149: =IFERROR(IF(AND(B149>0,B149/1),INDEX(#REF!,MATCH(B149,#REF!,0),13)/INDEX(#REF!,MATCH(B149,#REF!,0),5),""),"") ->  | G149: =IFERROR(IF(AND(B149>0,B149/1),INDEX(#REF!,MATCH(B149,#REF!,0),13),""),"") -> 
A150: =IFERROR(IF(AND(B150>0,B150/1),INDEX(Номенклатура!$B$6:$Z$3651,MATCH(B150,Номенклатура!$X$6:$X$3651,0),1),""),"") ->  | B150: =IFERROR(IF(B149>0,SMALL(Номенклатура!$X$1:$X$3651,1+B149),""),"") ->  | C150: =IFERROR(IF(AND(B150>0,B150/1),INDEX(#REF!,MATCH(B150,#REF!,0),3),""),"") ->  | D150: =IFERROR(IF(AND(B150>0,B150/1),INDEX(#REF!,MATCH(B150,#REF!,0),9),""),"") ->  | E150: =IFERROR(IF(AND(B150>0,B150/1),INDEX(#REF!,MATCH(B150,#REF!,0),5),""),"") ->  | F150: =IFERROR(IF(AND(B150>0,B150/1),INDEX(#REF!,MATCH(B150,#REF!,0),13)/INDEX(#REF!,MATCH(B150,#REF!,0),5),""),"") ->  | G150: =IFERROR(IF(AND(B150>0,B150/1),INDEX(#REF!,MATCH(B150,#REF!,0),13),""),"") -> 
A151: =IFERROR(IF(AND(B151>0,B151/1),INDEX(Номенклатура!$B$6:$Z$3651,MATCH(B151,Номенклатура!$X$6:$X$3651,0),1),""),"") ->  | B151: =IFERROR(IF(B150>0,SMALL(Номенклатура!$X$1:$X$3651,1+B150),""),"") ->  | C151: =IFERROR(IF(AND(B151>0,B151/1),INDEX(#REF!,MATCH(B151,#REF!,0),3),""),"") ->  | D151: =IFERROR(IF(AND(B151>0,B151/1),INDEX(#REF!,MATCH(B151,#REF!,0),9),""),"") ->  | E151: =IFERROR(IF(AND(B151>0,B151/1),INDEX(#REF!,MATCH(B151,#REF!,0),5),""),"") ->  | F151: =IFERROR(IF(AND(B151>0,B151/1),INDEX(#REF!,MATCH(B151,#REF!,0),13)/INDEX(#REF!,MATCH(B151,#REF!,0),5),""),"") ->  | G151: =IFERROR(IF(AND(B151>0,B151/1),INDEX(#REF!,MATCH(B151,#REF!,0),13),""),"") -> 
A152: =IFERROR(IF(AND(B152>0,B152/1),INDEX(Номенклатура!$B$6:$Z$3651,MATCH(B152,Номенклатура!$X$6:$X$3651,0),1),""),"") ->  | B152: =IFERROR(IF(B151>0,SMALL(Номенклатура!$X$1:$X$3651,1+B151),""),"") ->  | C152: =IFERROR(IF(AND(B152>0,B152/1),INDEX(#REF!,MATCH(B152,#REF!,0),3),""),"") ->  | D152: =IFERROR(IF(AND(B152>0,B152/1),INDEX(#REF!,MATCH(B152,#REF!,0),9),""),"") ->  | E152: =IFERROR(IF(AND(B152>0,B152/1),INDEX(#REF!,MATCH(B152,#REF!,0),5),""),"") ->  | F152: =IFERROR(IF(AND(B152>0,B152/1),INDEX(#REF!,MATCH(B152,#REF!,0),13)/INDEX(#REF!,MATCH(B152,#REF!,0),5),""),"") ->  | G152: =IFERROR(IF(AND(B152>0,B152/1),INDEX(#REF!,MATCH(B152,#REF!,0),13),""),"") -> 
A153: =IFERROR(IF(AND(B153>0,B153/1),INDEX(Номенклатура!$B$6:$Z$3651,MATCH(B153,Номенклатура!$X$6:$X$3651,0),1),""),"") ->  | B153: =IFERROR(IF(B152>0,SMALL(Номенклатура!$X$1:$X$3651,1+B152),""),"") ->  | C153: =IFERROR(IF(AND(B153>0,B153/1),INDEX(#REF!,MATCH(B153,#REF!,0),3),""),"") ->  | D153: =IFERROR(IF(AND(B153>0,B153/1),INDEX(#REF!,MATCH(B153,#REF!,0),9),""),"") ->  | E153: =IFERROR(IF(AND(B153>0,B153/1),INDEX(#REF!,MATCH(B153,#REF!,0),5),""),"") ->  | F153: =IFERROR(IF(AND(B153>0,B153/1),INDEX(#REF!,MATCH(B153,#REF!,0),13)/INDEX(#REF!,MATCH(B153,#REF!,0),5),""),"") ->  | G153: =IFERROR(IF(AND(B153>0,B153/1),INDEX(#REF!,MATCH(B153,#REF!,0),13),""),"") -> 
A154: =IFERROR(IF(AND(B154>0,B154/1),INDEX(Номенклатура!$B$6:$Z$3651,MATCH(B154,Номенклатура!$X$6:$X$3651,0),1),""),"") ->  | B154: =IFERROR(IF(B153>0,SMALL(Номенклатура!$X$1:$X$3651,1+B153),""),"") ->  | C154: =IFERROR(IF(AND(B154>0,B154/1),INDEX(#REF!,MATCH(B154,#REF!,0),3),""),"") ->  | D154: =IFERROR(IF(AND(B154>0,B154/1),INDEX(#REF!,MATCH(B154,#REF!,0),9),""),"") ->  | E154: =IFERROR(IF(AND(B154>0,B154/1),INDEX(#REF!,MATCH(B154,#REF!,0),5),""),"") ->  | F154: =IFERROR(IF(AND(B154>0,B154/1),INDEX(#REF!,MATCH(B154,#REF!,0),13)/INDEX(#REF!,MATCH(B154,#REF!,0),5),""),"") ->  | G154: =IFERROR(IF(AND(B154>0,B154/1),INDEX(#REF!,MATCH(B154,#REF!,0),13),""),"") -> 
A155: =IFERROR(IF(AND(B155>0,B155/1),INDEX(Номенклатура!$B$6:$Z$3651,MATCH(B155,Номенклатура!$X$6:$X$3651,0),1),""),"") ->  | B155: =IFERROR(IF(B154>0,SMALL(Номенклатура!$X$1:$X$3651,1+B154),""),"") ->  | C155: =IFERROR(IF(AND(B155>0,B155/1),INDEX(#REF!,MATCH(B155,#REF!,0),3),""),"") ->  | D155: =IFERROR(IF(AND(B155>0,B155/1),INDEX(#REF!,MATCH(B155,#REF!,0),9),""),"") ->  | E155: =IFERROR(IF(AND(B155>0,B155/1),INDEX(#REF!,MATCH(B155,#REF!,0),5),""),"") ->  | F155: =IFERROR(IF(AND(B155>0,B155/1),INDEX(#REF!,MATCH(B155,#REF!,0),13)/INDEX(#REF!,MATCH(B155,#REF!,0),5),""),"") ->  | G155: =IFERROR(IF(AND(B155>0,B155/1),INDEX(#REF!,MATCH(B155,#REF!,0),13),""),"") -> 
A156: =IFERROR(IF(AND(B156>0,B156/1),INDEX(Номенклатура!$B$6:$Z$3651,MATCH(B156,Номенклатура!$X$6:$X$3651,0),1),""),"") ->  | B156: =IFERROR(IF(B155>0,SMALL(Номенклатура!$X$1:$X$3651,1+B155),""),"") ->  | C156: =IFERROR(IF(AND(B156>0,B156/1),INDEX(#REF!,MATCH(B156,#REF!,0),3),""),"") ->  | D156: =IFERROR(IF(AND(B156>0,B156/1),INDEX(#REF!,MATCH(B156,#REF!,0),9),""),"") ->  | E156: =IFERROR(IF(AND(B156>0,B156/1),INDEX(#REF!,MATCH(B156,#REF!,0),5),""),"") ->  | F156: =IFERROR(IF(AND(B156>0,B156/1),INDEX(#REF!,MATCH(B156,#REF!,0),13)/INDEX(#REF!,MATCH(B156,#REF!,0),5),""),"") ->  | G156: =IFERROR(IF(AND(B156>0,B156/1),INDEX(#REF!,MATCH(B156,#REF!,0),13),""),"") -> 
A157: =IFERROR(IF(AND(B157>0,B157/1),INDEX(Номенклатура!$B$6:$Z$3651,MATCH(B157,Номенклатура!$X$6:$X$3651,0),1),""),"") ->  | B157: =IFERROR(IF(B156>0,SMALL(Номенклатура!$X$1:$X$3651,1+B156),""),"") ->  | C157: =IFERROR(IF(AND(B157>0,B157/1),INDEX(#REF!,MATCH(B157,#REF!,0),3),""),"") ->  | D157: =IFERROR(IF(AND(B157>0,B157/1),INDEX(#REF!,MATCH(B157,#REF!,0),9),""),"") ->  | E157: =IFERROR(IF(AND(B157>0,B157/1),INDEX(#REF!,MATCH(B157,#REF!,0),5),""),"") ->  | F157: =IFERROR(IF(AND(B157>0,B157/1),INDEX(#REF!,MATCH(B157,#REF!,0),13)/INDEX(#REF!,MATCH(B157,#REF!,0),5),""),"") ->  | G157: =IFERROR(IF(AND(B157>0,B157/1),INDEX(#REF!,MATCH(B157,#REF!,0),13),""),"") -> 
A158: =IFERROR(IF(AND(B158>0,B158/1),INDEX(Номенклатура!$B$6:$Z$3651,MATCH(B158,Номенклатура!$X$6:$X$3651,0),1),""),"") ->  | B158: =IFERROR(IF(B157>0,SMALL(Номенклатура!$X$1:$X$3651,1+B157),""),"") ->  | C158: =IFERROR(IF(AND(B158>0,B158/1),INDEX(#REF!,MATCH(B158,#REF!,0),3),""),"") ->  | D158: =IFERROR(IF(AND(B158>0,B158/1),INDEX(#REF!,MATCH(B158,#REF!,0),9),""),"") ->  | E158: =IFERROR(IF(AND(B158>0,B158/1),INDEX(#REF!,MATCH(B158,#REF!,0),5),""),"") ->  | F158: =IFERROR(IF(AND(B158>0,B158/1),INDEX(#REF!,MATCH(B158,#REF!,0),13)/INDEX(#REF!,MATCH(B158,#REF!,0),5),""),"") ->  | G158: =IFERROR(IF(AND(B158>0,B158/1),INDEX(#REF!,MATCH(B158,#REF!,0),13),""),"") -> 
A159: =IFERROR(IF(AND(B159>0,B159/1),INDEX(Номенклатура!$B$6:$Z$3651,MATCH(B159,Номенклатура!$X$6:$X$3651,0),1),""),"") ->  | B159: =IFERROR(IF(B158>0,SMALL(Номенклатура!$X$1:$X$3651,1+B158),""),"") ->  | C159: =IFERROR(IF(AND(B159>0,B159/1),INDEX(#REF!,MATCH(B159,#REF!,0),3),""),"") ->  | D159: =IFERROR(IF(AND(B159>0,B159/1),INDEX(#REF!,MATCH(B159,#REF!,0),9),""),"") ->  | E159: =IFERROR(IF(AND(B159>0,B159/1),INDEX(#REF!,MATCH(B159,#REF!,0),5),""),"") ->  | F159: =IFERROR(IF(AND(B159>0,B159/1),INDEX(#REF!,MATCH(B159,#REF!,0),13)/INDEX(#REF!,MATCH(B159,#REF!,0),5),""),"") ->  | G159: =IFERROR(IF(AND(B159>0,B159/1),INDEX(#REF!,MATCH(B159,#REF!,0),13),""),"") -> 
A160: =IFERROR(IF(AND(B160>0,B160/1),INDEX(Номенклатура!$B$6:$Z$3651,MATCH(B160,Номенклатура!$X$6:$X$3651,0),1),""),"") ->  | B160: =IFERROR(IF(B159>0,SMALL(Номенклатура!$X$1:$X$3651,1+B159),""),"") ->  | C160: =IFERROR(IF(AND(B160>0,B160/1),INDEX(#REF!,MATCH(B160,#REF!,0),3),""),"") ->  | D160: =IFERROR(IF(AND(B160>0,B160/1),INDEX(#REF!,MATCH(B160,#REF!,0),9),""),"") ->  | E160: =IFERROR(IF(AND(B160>0,B160/1),INDEX(#REF!,MATCH(B160,#REF!,0),5),""),"") ->  | F160: =IFERROR(IF(AND(B160>0,B160/1),INDEX(#REF!,MATCH(B160,#REF!,0),13)/INDEX(#REF!,MATCH(B160,#REF!,0),5),""),"") ->  | G160: =IFERROR(IF(AND(B160>0,B160/1),INDEX(#REF!,MATCH(B160,#REF!,0),13),""),"") -> 
A161: =IFERROR(IF(AND(B161>0,B161/1),INDEX(Номенклатура!$B$6:$Z$3651,MATCH(B161,Номенклатура!$X$6:$X$3651,0),1),""),"") ->  | B161: =IFERROR(IF(B160>0,SMALL(Номенклатура!$X$1:$X$3651,1+B160),""),"") ->  | C161: =IFERROR(IF(AND(B161>0,B161/1),INDEX(#REF!,MATCH(B161,#REF!,0),3),""),"") ->  | D161: =IFERROR(IF(AND(B161>0,B161/1),INDEX(#REF!,MATCH(B161,#REF!,0),9),""),"") ->  | E161: =IFERROR(IF(AND(B161>0,B161/1),INDEX(#REF!,MATCH(B161,#REF!,0),5),""),"") ->  | F161: =IFERROR(IF(AND(B161>0,B161/1),INDEX(#REF!,MATCH(B161,#REF!,0),13)/INDEX(#REF!,MATCH(B161,#REF!,0),5),""),"") ->  | G161: =IFERROR(IF(AND(B161>0,B161/1),INDEX(#REF!,MATCH(B161,#REF!,0),13),""),"") -> 
A162: =IFERROR(IF(AND(B162>0,B162/1),INDEX(Номенклатура!$B$6:$Z$3651,MATCH(B162,Номенклатура!$X$6:$X$3651,0),1),""),"") ->  | B162: =IFERROR(IF(B161>0,SMALL(Номенклатура!$X$1:$X$3651,1+B161),""),"") ->  | C162: =IFERROR(IF(AND(B162>0,B162/1),INDEX(#REF!,MATCH(B162,#REF!,0),3),""),"") ->  | D162: =IFERROR(IF(AND(B162>0,B162/1),INDEX(#REF!,MATCH(B162,#REF!,0),9),""),"") ->  | E162: =IFERROR(IF(AND(B162>0,B162/1),INDEX(#REF!,MATCH(B162,#REF!,0),5),""),"") ->  | F162: =IFERROR(IF(AND(B162>0,B162/1),INDEX(#REF!,MATCH(B162,#REF!,0),13)/INDEX(#REF!,MATCH(B162,#REF!,0),5),""),"") ->  | G162: =IFERROR(IF(AND(B162>0,B162/1),INDEX(#REF!,MATCH(B162,#REF!,0),13),""),"") -> 
A163: =IFERROR(IF(AND(B163>0,B163/1),INDEX(Номенклатура!$B$6:$Z$3651,MATCH(B163,Номенклатура!$X$6:$X$3651,0),1),""),"") ->  | B163: =IFERROR(IF(B162>0,SMALL(Номенклатура!$X$1:$X$3651,1+B162),""),"") ->  | C163: =IFERROR(IF(AND(B163>0,B163/1),INDEX(#REF!,MATCH(B163,#REF!,0),3),""),"") ->  | D163: =IFERROR(IF(AND(B163>0,B163/1),INDEX(#REF!,MATCH(B163,#REF!,0),9),""),"") ->  | E163: =IFERROR(IF(AND(B163>0,B163/1),INDEX(#REF!,MATCH(B163,#REF!,0),5),""),"") ->  | F163: =IFERROR(IF(AND(B163>0,B163/1),INDEX(#REF!,MATCH(B163,#REF!,0),13)/INDEX(#REF!,MATCH(B163,#REF!,0),5),""),"") ->  | G163: =IFERROR(IF(AND(B163>0,B163/1),INDEX(#REF!,MATCH(B163,#REF!,0),13),""),"") -> 
A164: =IFERROR(IF(AND(B164>0,B164/1),INDEX(Номенклатура!$B$6:$Z$3651,MATCH(B164,Номенклатура!$X$6:$X$3651,0),1),""),"") ->  | B164: =IFERROR(IF(B163>0,SMALL(Номенклатура!$X$1:$X$3651,1+B163),""),"") ->  | C164: =IFERROR(IF(AND(B164>0,B164/1),INDEX(#REF!,MATCH(B164,#REF!,0),3),""),"") ->  | D164: =IFERROR(IF(AND(B164>0,B164/1),INDEX(#REF!,MATCH(B164,#REF!,0),9),""),"") ->  | E164: =IFERROR(IF(AND(B164>0,B164/1),INDEX(#REF!,MATCH(B164,#REF!,0),5),""),"") ->  | F164: =IFERROR(IF(AND(B164>0,B164/1),INDEX(#REF!,MATCH(B164,#REF!,0),13)/INDEX(#REF!,MATCH(B164,#REF!,0),5),""),"") ->  | G164: =IFERROR(IF(AND(B164>0,B164/1),INDEX(#REF!,MATCH(B164,#REF!,0),13),""),"") -> 
A165: =IFERROR(IF(AND(B165>0,B165/1),INDEX(Номенклатура!$B$6:$Z$3651,MATCH(B165,Номенклатура!$X$6:$X$3651,0),1),""),"") ->  | B165: =IFERROR(IF(B164>0,SMALL(Номенклатура!$X$1:$X$3651,1+B164),""),"") ->  | C165: =IFERROR(IF(AND(B165>0,B165/1),INDEX(#REF!,MATCH(B165,#REF!,0),3),""),"") ->  | D165: =IFERROR(IF(AND(B165>0,B165/1),INDEX(#REF!,MATCH(B165,#REF!,0),9),""),"") ->  | E165: =IFERROR(IF(AND(B165>0,B165/1),INDEX(#REF!,MATCH(B165,#REF!,0),5),""),"") ->  | F165: =IFERROR(IF(AND(B165>0,B165/1),INDEX(#REF!,MATCH(B165,#REF!,0),13)/INDEX(#REF!,MATCH(B165,#REF!,0),5),""),"") ->  | G165: =IFERROR(IF(AND(B165>0,B165/1),INDEX(#REF!,MATCH(B165,#REF!,0),13),""),"") -> 
A166: =IFERROR(IF(AND(B166>0,B166/1),INDEX(Номенклатура!$B$6:$Z$3651,MATCH(B166,Номенклатура!$X$6:$X$3651,0),1),""),"") ->  | B166: =IFERROR(IF(B165>0,SMALL(Номенклатура!$X$1:$X$3651,1+B165),""),"") ->  | C166: =IFERROR(IF(AND(B166>0,B166/1),INDEX(#REF!,MATCH(B166,#REF!,0),3),""),"") ->  | D166: =IFERROR(IF(AND(B166>0,B166/1),INDEX(#REF!,MATCH(B166,#REF!,0),9),""),"") ->  | E166: =IFERROR(IF(AND(B166>0,B166/1),INDEX(#REF!,MATCH(B166,#REF!,0),5),""),"") ->  | F166: =IFERROR(IF(AND(B166>0,B166/1),INDEX(#REF!,MATCH(B166,#REF!,0),13)/INDEX(#REF!,MATCH(B166,#REF!,0),5),""),"") ->  | G166: =IFERROR(IF(AND(B166>0,B166/1),INDEX(#REF!,MATCH(B166,#REF!,0),13),""),"") -> 
A167: =IFERROR(IF(AND(B167>0,B167/1),INDEX(Номенклатура!$B$6:$Z$3651,MATCH(B167,Номенклатура!$X$6:$X$3651,0),1),""),"") ->  | B167: =IFERROR(IF(B166>0,SMALL(Номенклатура!$X$1:$X$3651,1+B166),""),"") ->  | C167: =IFERROR(IF(AND(B167>0,B167/1),INDEX(#REF!,MATCH(B167,#REF!,0),3),""),"") ->  | D167: =IFERROR(IF(AND(B167>0,B167/1),INDEX(#REF!,MATCH(B167,#REF!,0),9),""),"") ->  | E167: =IFERROR(IF(AND(B167>0,B167/1),INDEX(#REF!,MATCH(B167,#REF!,0),5),""),"") ->  | F167: =IFERROR(IF(AND(B167>0,B167/1),INDEX(#REF!,MATCH(B167,#REF!,0),13)/INDEX(#REF!,MATCH(B167,#REF!,0),5),""),"") ->  | G167: =IFERROR(IF(AND(B167>0,B167/1),INDEX(#REF!,MATCH(B167,#REF!,0),13),""),"") -> 
A168: =IFERROR(IF(AND(B168>0,B168/1),INDEX(Номенклатура!$B$6:$Z$3651,MATCH(B168,Номенклатура!$X$6:$X$3651,0),1),""),"") ->  | B168: =IFERROR(IF(B167>0,SMALL(Номенклатура!$X$1:$X$3651,1+B167),""),"") ->  | C168: =IFERROR(IF(AND(B168>0,B168/1),INDEX(#REF!,MATCH(B168,#REF!,0),3),""),"") ->  | D168: =IFERROR(IF(AND(B168>0,B168/1),INDEX(#REF!,MATCH(B168,#REF!,0),9),""),"") ->  | E168: =IFERROR(IF(AND(B168>0,B168/1),INDEX(#REF!,MATCH(B168,#REF!,0),5),""),"") ->  | F168: =IFERROR(IF(AND(B168>0,B168/1),INDEX(#REF!,MATCH(B168,#REF!,0),13)/INDEX(#REF!,MATCH(B168,#REF!,0),5),""),"") ->  | G168: =IFERROR(IF(AND(B168>0,B168/1),INDEX(#REF!,MATCH(B168,#REF!,0),13),""),"") -> 
A169: =IFERROR(IF(AND(B169>0,B169/1),INDEX(Номенклатура!$B$6:$Z$3651,MATCH(B169,Номенклатура!$X$6:$X$3651,0),1),""),"") ->  | B169: =IFERROR(IF(B168>0,SMALL(Номенклатура!$X$1:$X$3651,1+B168),""),"") ->  | C169: =IFERROR(IF(AND(B169>0,B169/1),INDEX(#REF!,MATCH(B169,#REF!,0),3),""),"") ->  | D169: =IFERROR(IF(AND(B169>0,B169/1),INDEX(#REF!,MATCH(B169,#REF!,0),9),""),"") ->  | E169: =IFERROR(IF(AND(B169>0,B169/1),INDEX(#REF!,MATCH(B169,#REF!,0),5),""),"") ->  | F169: =IFERROR(IF(AND(B169>0,B169/1),INDEX(#REF!,MATCH(B169,#REF!,0),13)/INDEX(#REF!,MATCH(B169,#REF!,0),5),""),"") ->  | G169: =IFERROR(IF(AND(B169>0,B169/1),INDEX(#REF!,MATCH(B169,#REF!,0),13),""),"") -> 
A170: =IFERROR(IF(AND(B170>0,B170/1),INDEX(Номенклатура!$B$6:$Z$3651,MATCH(B170,Номенклатура!$X$6:$X$3651,0),1),""),"") ->  | B170: =IFERROR(IF(B169>0,SMALL(Номенклатура!$X$1:$X$3651,1+B169),""),"") ->  | C170: =IFERROR(IF(AND(B170>0,B170/1),INDEX(#REF!,MATCH(B170,#REF!,0),3),""),"") ->  | D170: =IFERROR(IF(AND(B170>0,B170/1),INDEX(#REF!,MATCH(B170,#REF!,0),9),""),"") ->  | E170: =IFERROR(IF(AND(B170>0,B170/1),INDEX(#REF!,MATCH(B170,#REF!,0),5),""),"") ->  | F170: =IFERROR(IF(AND(B170>0,B170/1),INDEX(#REF!,MATCH(B170,#REF!,0),13)/INDEX(#REF!,MATCH(B170,#REF!,0),5),""),"") ->  | G170: =IFERROR(IF(AND(B170>0,B170/1),INDEX(#REF!,MATCH(B170,#REF!,0),13),""),"") -> 
A171: =IFERROR(IF(AND(B171>0,B171/1),INDEX(Номенклатура!$B$6:$Z$3651,MATCH(B171,Номенклатура!$X$6:$X$3651,0),1),""),"") ->  | B171: =IFERROR(IF(B170>0,SMALL(Номенклатура!$X$1:$X$3651,1+B170),""),"") ->  | C171: =IFERROR(IF(AND(B171>0,B171/1),INDEX(#REF!,MATCH(B171,#REF!,0),3),""),"") ->  | D171: =IFERROR(IF(AND(B171>0,B171/1),INDEX(#REF!,MATCH(B171,#REF!,0),9),""),"") ->  | E171: =IFERROR(IF(AND(B171>0,B171/1),INDEX(#REF!,MATCH(B171,#REF!,0),5),""),"") ->  | F171: =IFERROR(IF(AND(B171>0,B171/1),INDEX(#REF!,MATCH(B171,#REF!,0),13)/INDEX(#REF!,MATCH(B171,#REF!,0),5),""),"") ->  | G171: =IFERROR(IF(AND(B171>0,B171/1),INDEX(#REF!,MATCH(B171,#REF!,0),13),""),"") -> 
A172: =IFERROR(IF(AND(B172>0,B172/1),INDEX(Номенклатура!$B$6:$Z$3651,MATCH(B172,Номенклатура!$X$6:$X$3651,0),1),""),"") ->  | B172: =IFERROR(IF(B171>0,SMALL(Номенклатура!$X$1:$X$3651,1+B171),""),"") ->  | C172: =IFERROR(IF(AND(B172>0,B172/1),INDEX(#REF!,MATCH(B172,#REF!,0),3),""),"") ->  | D172: =IFERROR(IF(AND(B172>0,B172/1),INDEX(#REF!,MATCH(B172,#REF!,0),9),""),"") ->  | E172: =IFERROR(IF(AND(B172>0,B172/1),INDEX(#REF!,MATCH(B172,#REF!,0),5),""),"") ->  | F172: =IFERROR(IF(AND(B172>0,B172/1),INDEX(#REF!,MATCH(B172,#REF!,0),13)/INDEX(#REF!,MATCH(B172,#REF!,0),5),""),"") ->  | G172: =IFERROR(IF(AND(B172>0,B172/1),INDEX(#REF!,MATCH(B172,#REF!,0),13),""),"") -> 
A173: =IFERROR(IF(AND(B173>0,B173/1),INDEX(Номенклатура!$B$6:$Z$3651,MATCH(B173,Номенклатура!$X$6:$X$3651,0),1),""),"") ->  | B173: =IFERROR(IF(B172>0,SMALL(Номенклатура!$X$1:$X$3651,1+B172),""),"") ->  | C173: =IFERROR(IF(AND(B173>0,B173/1),INDEX(#REF!,MATCH(B173,#REF!,0),3),""),"") ->  | D173: =IFERROR(IF(AND(B173>0,B173/1),INDEX(#REF!,MATCH(B173,#REF!,0),9),""),"") ->  | E173: =IFERROR(IF(AND(B173>0,B173/1),INDEX(#REF!,MATCH(B173,#REF!,0),5),""),"") ->  | F173: =IFERROR(IF(AND(B173>0,B173/1),INDEX(#REF!,MATCH(B173,#REF!,0),13)/INDEX(#REF!,MATCH(B173,#REF!,0),5),""),"") ->  | G173: =IFERROR(IF(AND(B173>0,B173/1),INDEX(#REF!,MATCH(B173,#REF!,0),13),""),"") -> 
A174: =IFERROR(IF(AND(B174>0,B174/1),INDEX(Номенклатура!$B$6:$Z$3651,MATCH(B174,Номенклатура!$X$6:$X$3651,0),1),""),"") ->  | B174: =IFERROR(IF(B173>0,SMALL(Номенклатура!$X$1:$X$3651,1+B173),""),"") ->  | C174: =IFERROR(IF(AND(B174>0,B174/1),INDEX(#REF!,MATCH(B174,#REF!,0),3),""),"") ->  | D174: =IFERROR(IF(AND(B174>0,B174/1),INDEX(#REF!,MATCH(B174,#REF!,0),9),""),"") ->  | E174: =IFERROR(IF(AND(B174>0,B174/1),INDEX(#REF!,MATCH(B174,#REF!,0),5),""),"") ->  | F174: =IFERROR(IF(AND(B174>0,B174/1),INDEX(#REF!,MATCH(B174,#REF!,0),13)/INDEX(#REF!,MATCH(B174,#REF!,0),5),""),"") ->  | G174: =IFERROR(IF(AND(B174>0,B174/1),INDEX(#REF!,MATCH(B174,#REF!,0),13),""),"") -> 
A175: =IFERROR(IF(AND(B175>0,B175/1),INDEX(Номенклатура!$B$6:$Z$3651,MATCH(B175,Номенклатура!$X$6:$X$3651,0),1),""),"") ->  | B175: =IFERROR(IF(B174>0,SMALL(Номенклатура!$X$1:$X$3651,1+B174),""),"") ->  | C175: =IFERROR(IF(AND(B175>0,B175/1),INDEX(#REF!,MATCH(B175,#REF!,0),3),""),"") ->  | D175: =IFERROR(IF(AND(B175>0,B175/1),INDEX(#REF!,MATCH(B175,#REF!,0),9),""),"") ->  | E175: =IFERROR(IF(AND(B175>0,B175/1),INDEX(#REF!,MATCH(B175,#REF!,0),5),""),"") ->  | F175: =IFERROR(IF(AND(B175>0,B175/1),INDEX(#REF!,MATCH(B175,#REF!,0),13)/INDEX(#REF!,MATCH(B175,#REF!,0),5),""),"") ->  | G175: =IFERROR(IF(AND(B175>0,B175/1),INDEX(#REF!,MATCH(B175,#REF!,0),13),""),"") -> 
A176: =IFERROR(IF(AND(B176>0,B176/1),INDEX(Номенклатура!$B$6:$Z$3651,MATCH(B176,Номенклатура!$X$6:$X$3651,0),1),""),"") ->  | B176: =IFERROR(IF(B175>0,SMALL(Номенклатура!$X$1:$X$3651,1+B175),""),"") ->  | C176: =IFERROR(IF(AND(B176>0,B176/1),INDEX(#REF!,MATCH(B176,#REF!,0),3),""),"") ->  | D176: =IFERROR(IF(AND(B176>0,B176/1),INDEX(#REF!,MATCH(B176,#REF!,0),9),""),"") ->  | E176: =IFERROR(IF(AND(B176>0,B176/1),INDEX(#REF!,MATCH(B176,#REF!,0),5),""),"") ->  | F176: =IFERROR(IF(AND(B176>0,B176/1),INDEX(#REF!,MATCH(B176,#REF!,0),13)/INDEX(#REF!,MATCH(B176,#REF!,0),5),""),"") ->  | G176: =IFERROR(IF(AND(B176>0,B176/1),INDEX(#REF!,MATCH(B176,#REF!,0),13),""),"") -> 
A177: =IFERROR(IF(AND(B177>0,B177/1),INDEX(Номенклатура!$B$6:$Z$3651,MATCH(B177,Номенклатура!$X$6:$X$3651,0),1),""),"") ->  | B177: =IFERROR(IF(B176>0,SMALL(Номенклатура!$X$1:$X$3651,1+B176),""),"") ->  | C177: =IFERROR(IF(AND(B177>0,B177/1),INDEX(#REF!,MATCH(B177,#REF!,0),3),""),"") ->  | D177: =IFERROR(IF(AND(B177>0,B177/1),INDEX(#REF!,MATCH(B177,#REF!,0),9),""),"") ->  | E177: =IFERROR(IF(AND(B177>0,B177/1),INDEX(#REF!,MATCH(B177,#REF!,0),5),""),"") ->  | F177: =IFERROR(IF(AND(B177>0,B177/1),INDEX(#REF!,MATCH(B177,#REF!,0),13)/INDEX(#REF!,MATCH(B177,#REF!,0),5),""),"") ->  | G177: =IFERROR(IF(AND(B177>0,B177/1),INDEX(#REF!,MATCH(B177,#REF!,0),13),""),"") -> 
A178: =IFERROR(IF(AND(B178>0,B178/1),INDEX(Номенклатура!$B$6:$Z$3651,MATCH(B178,Номенклатура!$X$6:$X$3651,0),1),""),"") ->  | B178: =IFERROR(IF(B177>0,SMALL(Номенклатура!$X$1:$X$3651,1+B177),""),"") ->  | C178: =IFERROR(IF(AND(B178>0,B178/1),INDEX(#REF!,MATCH(B178,#REF!,0),3),""),"") ->  | D178: =IFERROR(IF(AND(B178>0,B178/1),INDEX(#REF!,MATCH(B178,#REF!,0),9),""),"") ->  | E178: =IFERROR(IF(AND(B178>0,B178/1),INDEX(#REF!,MATCH(B178,#REF!,0),5),""),"") ->  | F178: =IFERROR(IF(AND(B178>0,B178/1),INDEX(#REF!,MATCH(B178,#REF!,0),13)/INDEX(#REF!,MATCH(B178,#REF!,0),5),""),"") ->  | G178: =IFERROR(IF(AND(B178>0,B178/1),INDEX(#REF!,MATCH(B178,#REF!,0),13),""),"") -> 
A179: =IFERROR(IF(AND(B179>0,B179/1),INDEX(Номенклатура!$B$6:$Z$3651,MATCH(B179,Номенклатура!$X$6:$X$3651,0),1),""),"") ->  | B179: =IFERROR(IF(B178>0,SMALL(Номенклатура!$X$1:$X$3651,1+B178),""),"") ->  | C179: =IFERROR(IF(AND(B179>0,B179/1),INDEX(#REF!,MATCH(B179,#REF!,0),3),""),"") ->  | D179: =IFERROR(IF(AND(B179>0,B179/1),INDEX(#REF!,MATCH(B179,#REF!,0),9),""),"") ->  | E179: =IFERROR(IF(AND(B179>0,B179/1),INDEX(#REF!,MATCH(B179,#REF!,0),5),""),"") ->  | F179: =IFERROR(IF(AND(B179>0,B179/1),INDEX(#REF!,MATCH(B179,#REF!,0),13)/INDEX(#REF!,MATCH(B179,#REF!,0),5),""),"") ->  | G179: =IFERROR(IF(AND(B179>0,B179/1),INDEX(#REF!,MATCH(B179,#REF!,0),13),""),"") -> 
A180: =IFERROR(IF(AND(B180>0,B180/1),INDEX(Номенклатура!$B$6:$Z$3651,MATCH(B180,Номенклатура!$X$6:$X$3651,0),1),""),"") ->  | B180: =IFERROR(IF(B179>0,SMALL(Номенклатура!$X$1:$X$3651,1+B179),""),"") ->  | C180: =IFERROR(IF(AND(B180>0,B180/1),INDEX(#REF!,MATCH(B180,#REF!,0),3),""),"") ->  | D180: =IFERROR(IF(AND(B180>0,B180/1),INDEX(#REF!,MATCH(B180,#REF!,0),9),""),"") ->  | E180: =IFERROR(IF(AND(B180>0,B180/1),INDEX(#REF!,MATCH(B180,#REF!,0),5),""),"") ->  | F180: =IFERROR(IF(AND(B180>0,B180/1),INDEX(#REF!,MATCH(B180,#REF!,0),13)/INDEX(#REF!,MATCH(B180,#REF!,0),5),""),"") ->  | G180: =IFERROR(IF(AND(B180>0,B180/1),INDEX(#REF!,MATCH(B180,#REF!,0),13),""),"") -> 
A181: =IFERROR(IF(AND(B181>0,B181/1),INDEX(Номенклатура!$B$6:$Z$3651,MATCH(B181,Номенклатура!$X$6:$X$3651,0),1),""),"") ->  | B181: =IFERROR(IF(B180>0,SMALL(Номенклатура!$X$1:$X$3651,1+B180),""),"") ->  | C181: =IFERROR(IF(AND(B181>0,B181/1),INDEX(#REF!,MATCH(B181,#REF!,0),3),""),"") ->  | D181: =IFERROR(IF(AND(B181>0,B181/1),INDEX(#REF!,MATCH(B181,#REF!,0),9),""),"") ->  | E181: =IFERROR(IF(AND(B181>0,B181/1),INDEX(#REF!,MATCH(B181,#REF!,0),5),""),"") ->  | F181: =IFERROR(IF(AND(B181>0,B181/1),INDEX(#REF!,MATCH(B181,#REF!,0),13)/INDEX(#REF!,MATCH(B181,#REF!,0),5),""),"") ->  | G181: =IFERROR(IF(AND(B181>0,B181/1),INDEX(#REF!,MATCH(B181,#REF!,0),13),""),"") -> 
A182: =IFERROR(IF(AND(B182>0,B182/1),INDEX(Номенклатура!$B$6:$Z$3651,MATCH(B182,Номенклатура!$X$6:$X$3651,0),1),""),"") ->  | B182: =IFERROR(IF(B181>0,SMALL(Номенклатура!$X$1:$X$3651,1+B181),""),"") ->  | C182: =IFERROR(IF(AND(B182>0,B182/1),INDEX(#REF!,MATCH(B182,#REF!,0),3),""),"") ->  | D182: =IFERROR(IF(AND(B182>0,B182/1),INDEX(#REF!,MATCH(B182,#REF!,0),9),""),"") ->  | E182: =IFERROR(IF(AND(B182>0,B182/1),INDEX(#REF!,MATCH(B182,#REF!,0),5),""),"") ->  | F182: =IFERROR(IF(AND(B182>0,B182/1),INDEX(#REF!,MATCH(B182,#REF!,0),13)/INDEX(#REF!,MATCH(B182,#REF!,0),5),""),"") ->  | G182: =IFERROR(IF(AND(B182>0,B182/1),INDEX(#REF!,MATCH(B182,#REF!,0),13),""),"") -> 
A183: =IFERROR(IF(AND(B183>0,B183/1),INDEX(Номенклатура!$B$6:$Z$3651,MATCH(B183,Номенклатура!$X$6:$X$3651,0),1),""),"") ->  | B183: =IFERROR(IF(B182>0,SMALL(Номенклатура!$X$1:$X$3651,1+B182),""),"") ->  | C183: =IFERROR(IF(AND(B183>0,B183/1),INDEX(#REF!,MATCH(B183,#REF!,0),3),""),"") ->  | D183: =IFERROR(IF(AND(B183>0,B183/1),INDEX(#REF!,MATCH(B183,#REF!,0),9),""),"") ->  | E183: =IFERROR(IF(AND(B183>0,B183/1),INDEX(#REF!,MATCH(B183,#REF!,0),5),""),"") ->  | F183: =IFERROR(IF(AND(B183>0,B183/1),INDEX(#REF!,MATCH(B183,#REF!,0),13)/INDEX(#REF!,MATCH(B183,#REF!,0),5),""),"") ->  | G183: =IFERROR(IF(AND(B183>0,B183/1),INDEX(#REF!,MATCH(B183,#REF!,0),13),""),"") -> 
A184: =IFERROR(IF(AND(B184>0,B184/1),INDEX(Номенклатура!$B$6:$Z$3651,MATCH(B184,Номенклатура!$X$6:$X$3651,0),1),""),"") ->  | B184: =IFERROR(IF(B183>0,SMALL(Номенклатура!$X$1:$X$3651,1+B183),""),"") ->  | C184: =IFERROR(IF(AND(B184>0,B184/1),INDEX(#REF!,MATCH(B184,#REF!,0),3),""),"") ->  | D184: =IFERROR(IF(AND(B184>0,B184/1),INDEX(#REF!,MATCH(B184,#REF!,0),9),""),"") ->  | E184: =IFERROR(IF(AND(B184>0,B184/1),INDEX(#REF!,MATCH(B184,#REF!,0),5),""),"") ->  | F184: =IFERROR(IF(AND(B184>0,B184/1),INDEX(#REF!,MATCH(B184,#REF!,0),13)/INDEX(#REF!,MATCH(B184,#REF!,0),5),""),"") ->  | G184: =IFERROR(IF(AND(B184>0,B184/1),INDEX(#REF!,MATCH(B184,#REF!,0),13),""),"") -> 
A185: =IFERROR(IF(AND(B185>0,B185/1),INDEX(Номенклатура!$B$6:$Z$3651,MATCH(B185,Номенклатура!$X$6:$X$3651,0),1),""),"") ->  | B185: =IFERROR(IF(B184>0,SMALL(Номенклатура!$X$1:$X$3651,1+B184),""),"") ->  | C185: =IFERROR(IF(AND(B185>0,B185/1),INDEX(#REF!,MATCH(B185,#REF!,0),3),""),"") ->  | D185: =IFERROR(IF(AND(B185>0,B185/1),INDEX(#REF!,MATCH(B185,#REF!,0),9),""),"") ->  | E185: =IFERROR(IF(AND(B185>0,B185/1),INDEX(#REF!,MATCH(B185,#REF!,0),5),""),"") ->  | F185: =IFERROR(IF(AND(B185>0,B185/1),INDEX(#REF!,MATCH(B185,#REF!,0),13)/INDEX(#REF!,MATCH(B185,#REF!,0),5),""),"") ->  | G185: =IFERROR(IF(AND(B185>0,B185/1),INDEX(#REF!,MATCH(B185,#REF!,0),13),""),"") -> 
A186: =IFERROR(IF(AND(B186>0,B186/1),INDEX(Номенклатура!$B$6:$Z$3651,MATCH(B186,Номенклатура!$X$6:$X$3651,0),1),""),"") ->  | B186: =IFERROR(IF(B185>0,SMALL(Номенклатура!$X$1:$X$3651,1+B185),""),"") ->  | C186: =IFERROR(IF(AND(B186>0,B186/1),INDEX(#REF!,MATCH(B186,#REF!,0),3),""),"") ->  | D186: =IFERROR(IF(AND(B186>0,B186/1),INDEX(#REF!,MATCH(B186,#REF!,0),9),""),"") ->  | E186: =IFERROR(IF(AND(B186>0,B186/1),INDEX(#REF!,MATCH(B186,#REF!,0),5),""),"") ->  | F186: =IFERROR(IF(AND(B186>0,B186/1),INDEX(#REF!,MATCH(B186,#REF!,0),13)/INDEX(#REF!,MATCH(B186,#REF!,0),5),""),"") ->  | G186: =IFERROR(IF(AND(B186>0,B186/1),INDEX(#REF!,MATCH(B186,#REF!,0),13),""),"") -> 
A187: =IFERROR(IF(AND(B187>0,B187/1),INDEX(Номенклатура!$B$6:$Z$3651,MATCH(B187,Номенклатура!$X$6:$X$3651,0),1),""),"") ->  | B187: =IFERROR(IF(B186>0,SMALL(Номенклатура!$X$1:$X$3651,1+B186),""),"") ->  | C187: =IFERROR(IF(AND(B187>0,B187/1),INDEX(#REF!,MATCH(B187,#REF!,0),3),""),"") ->  | D187: =IFERROR(IF(AND(B187>0,B187/1),INDEX(#REF!,MATCH(B187,#REF!,0),9),""),"") ->  | E187: =IFERROR(IF(AND(B187>0,B187/1),INDEX(#REF!,MATCH(B187,#REF!,0),5),""),"") ->  | F187: =IFERROR(IF(AND(B187>0,B187/1),INDEX(#REF!,MATCH(B187,#REF!,0),13)/INDEX(#REF!,MATCH(B187,#REF!,0),5),""),"") ->  | G187: =IFERROR(IF(AND(B187>0,B187/1),INDEX(#REF!,MATCH(B187,#REF!,0),13),""),"") -> 
A188: =IFERROR(IF(AND(B188>0,B188/1),INDEX(Номенклатура!$B$6:$Z$3651,MATCH(B188,Номенклатура!$X$6:$X$3651,0),1),""),"") ->  | B188: =IFERROR(IF(B187>0,SMALL(Номенклатура!$X$1:$X$3651,1+B187),""),"") ->  | C188: =IFERROR(IF(AND(B188>0,B188/1),INDEX(#REF!,MATCH(B188,#REF!,0),3),""),"") ->  | D188: =IFERROR(IF(AND(B188>0,B188/1),INDEX(#REF!,MATCH(B188,#REF!,0),9),""),"") ->  | E188: =IFERROR(IF(AND(B188>0,B188/1),INDEX(#REF!,MATCH(B188,#REF!,0),5),""),"") ->  | F188: =IFERROR(IF(AND(B188>0,B188/1),INDEX(#REF!,MATCH(B188,#REF!,0),13)/INDEX(#REF!,MATCH(B188,#REF!,0),5),""),"") ->  | G188: =IFERROR(IF(AND(B188>0,B188/1),INDEX(#REF!,MATCH(B188,#REF!,0),13),""),"") -> 
A189: =IFERROR(IF(AND(B189>0,B189/1),INDEX(Номенклатура!$B$6:$Z$3651,MATCH(B189,Номенклатура!$X$6:$X$3651,0),1),""),"") ->  | B189: =IFERROR(IF(B188>0,SMALL(Номенклатура!$X$1:$X$3651,1+B188),""),"") ->  | C189: =IFERROR(IF(AND(B189>0,B189/1),INDEX(#REF!,MATCH(B189,#REF!,0),3),""),"") ->  | D189: =IFERROR(IF(AND(B189>0,B189/1),INDEX(#REF!,MATCH(B189,#REF!,0),9),""),"") ->  | E189: =IFERROR(IF(AND(B189>0,B189/1),INDEX(#REF!,MATCH(B189,#REF!,0),5),""),"") ->  | F189: =IFERROR(IF(AND(B189>0,B189/1),INDEX(#REF!,MATCH(B189,#REF!,0),13)/INDEX(#REF!,MATCH(B189,#REF!,0),5),""),"") ->  | G189: =IFERROR(IF(AND(B189>0,B189/1),INDEX(#REF!,MATCH(B189,#REF!,0),13),""),"") -> 
A190: =IFERROR(IF(AND(B190>0,B190/1),INDEX(Номенклатура!$B$6:$Z$3651,MATCH(B190,Номенклатура!$X$6:$X$3651,0),1),""),"") ->  | B190: =IFERROR(IF(B189>0,SMALL(Номенклатура!$X$1:$X$3651,1+B189),""),"") ->  | C190: =IFERROR(IF(AND(B190>0,B190/1),INDEX(#REF!,MATCH(B190,#REF!,0),3),""),"") ->  | D190: =IFERROR(IF(AND(B190>0,B190/1),INDEX(#REF!,MATCH(B190,#REF!,0),9),""),"") ->  | E190: =IFERROR(IF(AND(B190>0,B190/1),INDEX(#REF!,MATCH(B190,#REF!,0),5),""),"") ->  | F190: =IFERROR(IF(AND(B190>0,B190/1),INDEX(#REF!,MATCH(B190,#REF!,0),13)/INDEX(#REF!,MATCH(B190,#REF!,0),5),""),"") ->  | G190: =IFERROR(IF(AND(B190>0,B190/1),INDEX(#REF!,MATCH(B190,#REF!,0),13),""),"") -> 
A191: =IFERROR(IF(AND(B191>0,B191/1),INDEX(Номенклатура!$B$6:$Z$3651,MATCH(B191,Номенклатура!$X$6:$X$3651,0),1),""),"") ->  | B191: =IFERROR(IF(B190>0,SMALL(Номенклатура!$X$1:$X$3651,1+B190),""),"") ->  | C191: =IFERROR(IF(AND(B191>0,B191/1),INDEX(#REF!,MATCH(B191,#REF!,0),3),""),"") ->  | D191: =IFERROR(IF(AND(B191>0,B191/1),INDEX(#REF!,MATCH(B191,#REF!,0),9),""),"") ->  | E191: =IFERROR(IF(AND(B191>0,B191/1),INDEX(#REF!,MATCH(B191,#REF!,0),5),""),"") ->  | F191: =IFERROR(IF(AND(B191>0,B191/1),INDEX(#REF!,MATCH(B191,#REF!,0),13)/INDEX(#REF!,MATCH(B191,#REF!,0),5),""),"") ->  | G191: =IFERROR(IF(AND(B191>0,B191/1),INDEX(#REF!,MATCH(B191,#REF!,0),13),""),"") -> 
A192: =IFERROR(IF(AND(B192>0,B192/1),INDEX(Номенклатура!$B$6:$Z$3651,MATCH(B192,Номенклатура!$X$6:$X$3651,0),1),""),"") ->  | B192: =IFERROR(IF(B191>0,SMALL(Номенклатура!$X$1:$X$3651,1+B191),""),"") ->  | C192: =IFERROR(IF(AND(B192>0,B192/1),INDEX(#REF!,MATCH(B192,#REF!,0),3),""),"") ->  | D192: =IFERROR(IF(AND(B192>0,B192/1),INDEX(#REF!,MATCH(B192,#REF!,0),9),""),"") ->  | E192: =IFERROR(IF(AND(B192>0,B192/1),INDEX(#REF!,MATCH(B192,#REF!,0),5),""),"") ->  | F192: =IFERROR(IF(AND(B192>0,B192/1),INDEX(#REF!,MATCH(B192,#REF!,0),13)/INDEX(#REF!,MATCH(B192,#REF!,0),5),""),"") ->  | G192: =IFERROR(IF(AND(B192>0,B192/1),INDEX(#REF!,MATCH(B192,#REF!,0),13),""),"") -> 
A193: =IFERROR(IF(AND(B193>0,B193/1),INDEX(Номенклатура!$B$6:$Z$3651,MATCH(B193,Номенклатура!$X$6:$X$3651,0),1),""),"") ->  | B193: =IFERROR(IF(B192>0,SMALL(Номенклатура!$X$1:$X$3651,1+B192),""),"") ->  | C193: =IFERROR(IF(AND(B193>0,B193/1),INDEX(#REF!,MATCH(B193,#REF!,0),3),""),"") ->  | D193: =IFERROR(IF(AND(B193>0,B193/1),INDEX(#REF!,MATCH(B193,#REF!,0),9),""),"") ->  | E193: =IFERROR(IF(AND(B193>0,B193/1),INDEX(#REF!,MATCH(B193,#REF!,0),5),""),"") ->  | F193: =IFERROR(IF(AND(B193>0,B193/1),INDEX(#REF!,MATCH(B193,#REF!,0),13)/INDEX(#REF!,MATCH(B193,#REF!,0),5),""),"") ->  | G193: =IFERROR(IF(AND(B193>0,B193/1),INDEX(#REF!,MATCH(B193,#REF!,0),13),""),"") -> 
A194: =IFERROR(IF(AND(B194>0,B194/1),INDEX(Номенклатура!$B$6:$Z$3651,MATCH(B194,Номенклатура!$X$6:$X$3651,0),1),""),"") ->  | B194: =IFERROR(IF(B193>0,SMALL(Номенклатура!$X$1:$X$3651,1+B193),""),"") ->  | C194: =IFERROR(IF(AND(B194>0,B194/1),INDEX(#REF!,MATCH(B194,#REF!,0),3),""),"") ->  | D194: =IFERROR(IF(AND(B194>0,B194/1),INDEX(#REF!,MATCH(B194,#REF!,0),9),""),"") ->  | E194: =IFERROR(IF(AND(B194>0,B194/1),INDEX(#REF!,MATCH(B194,#REF!,0),5),""),"") ->  | F194: =IFERROR(IF(AND(B194>0,B194/1),INDEX(#REF!,MATCH(B194,#REF!,0),13)/INDEX(#REF!,MATCH(B194,#REF!,0),5),""),"") ->  | G194: =IFERROR(IF(AND(B194>0,B194/1),INDEX(#REF!,MATCH(B194,#REF!,0),13),""),"") -> 
A195: =IFERROR(IF(AND(B195>0,B195/1),INDEX(Номенклатура!$B$6:$Z$3651,MATCH(B195,Номенклатура!$X$6:$X$3651,0),1),""),"") ->  | B195: =IFERROR(IF(B194>0,SMALL(Номенклатура!$X$1:$X$3651,1+B194),""),"") ->  | C195: =IFERROR(IF(AND(B195>0,B195/1),INDEX(#REF!,MATCH(B195,#REF!,0),3),""),"") ->  | D195: =IFERROR(IF(AND(B195>0,B195/1),INDEX(#REF!,MATCH(B195,#REF!,0),9),""),"") ->  | E195: =IFERROR(IF(AND(B195>0,B195/1),INDEX(#REF!,MATCH(B195,#REF!,0),5),""),"") ->  | F195: =IFERROR(IF(AND(B195>0,B195/1),INDEX(#REF!,MATCH(B195,#REF!,0),13)/INDEX(#REF!,MATCH(B195,#REF!,0),5),""),"") ->  | G195: =IFERROR(IF(AND(B195>0,B195/1),INDEX(#REF!,MATCH(B195,#REF!,0),13),""),"") -> 
A196: =IFERROR(IF(AND(B196>0,B196/1),INDEX(Номенклатура!$B$6:$Z$3651,MATCH(B196,Номенклатура!$X$6:$X$3651,0),1),""),"") ->  | B196: =IFERROR(IF(B195>0,SMALL(Номенклатура!$X$1:$X$3651,1+B195),""),"") ->  | C196: =IFERROR(IF(AND(B196>0,B196/1),INDEX(#REF!,MATCH(B196,#REF!,0),3),""),"") ->  | D196: =IFERROR(IF(AND(B196>0,B196/1),INDEX(#REF!,MATCH(B196,#REF!,0),9),""),"") ->  | E196: =IFERROR(IF(AND(B196>0,B196/1),INDEX(#REF!,MATCH(B196,#REF!,0),5),""),"") ->  | F196: =IFERROR(IF(AND(B196>0,B196/1),INDEX(#REF!,MATCH(B196,#REF!,0),13)/INDEX(#REF!,MATCH(B196,#REF!,0),5),""),"") ->  | G196: =IFERROR(IF(AND(B196>0,B196/1),INDEX(#REF!,MATCH(B196,#REF!,0),13),""),"") -> 
A197: =IFERROR(IF(AND(B197>0,B197/1),INDEX(Номенклатура!$B$6:$Z$3651,MATCH(B197,Номенклатура!$X$6:$X$3651,0),1),""),"") ->  | B197: =IFERROR(IF(B196>0,SMALL(Номенклатура!$X$1:$X$3651,1+B196),""),"") ->  | C197: =IFERROR(IF(AND(B197>0,B197/1),INDEX(#REF!,MATCH(B197,#REF!,0),3),""),"") ->  | D197: =IFERROR(IF(AND(B197>0,B197/1),INDEX(#REF!,MATCH(B197,#REF!,0),9),""),"") ->  | E197: =IFERROR(IF(AND(B197>0,B197/1),INDEX(#REF!,MATCH(B197,#REF!,0),5),""),"") ->  | F197: =IFERROR(IF(AND(B197>0,B197/1),INDEX(#REF!,MATCH(B197,#REF!,0),13)/INDEX(#REF!,MATCH(B197,#REF!,0),5),""),"") ->  | G197: =IFERROR(IF(AND(B197>0,B197/1),INDEX(#REF!,MATCH(B197,#REF!,0),13),""),"") -> 
A198: =IFERROR(IF(AND(B198>0,B198/1),INDEX(Номенклатура!$B$6:$Z$3651,MATCH(B198,Номенклатура!$X$6:$X$3651,0),1),""),"") ->  | B198: =IFERROR(IF(B197>0,SMALL(Номенклатура!$X$1:$X$3651,1+B197),""),"") ->  | C198: =IFERROR(IF(AND(B198>0,B198/1),INDEX(#REF!,MATCH(B198,#REF!,0),3),""),"") ->  | D198: =IFERROR(IF(AND(B198>0,B198/1),INDEX(#REF!,MATCH(B198,#REF!,0),9),""),"") ->  | E198: =IFERROR(IF(AND(B198>0,B198/1),INDEX(#REF!,MATCH(B198,#REF!,0),5),""),"") ->  | F198: =IFERROR(IF(AND(B198>0,B198/1),INDEX(#REF!,MATCH(B198,#REF!,0),13)/INDEX(#REF!,MATCH(B198,#REF!,0),5),""),"") ->  | G198: =IFERROR(IF(AND(B198>0,B198/1),INDEX(#REF!,MATCH(B198,#REF!,0),13),""),"") -> 
A199: =IFERROR(IF(AND(B199>0,B199/1),INDEX(Номенклатура!$B$6:$Z$3651,MATCH(B199,Номенклатура!$X$6:$X$3651,0),1),""),"") ->  | B199: =IFERROR(IF(B198>0,SMALL(Номенклатура!$X$1:$X$3651,1+B198),""),"") ->  | C199: =IFERROR(IF(AND(B199>0,B199/1),INDEX(#REF!,MATCH(B199,#REF!,0),3),""),"") ->  | D199: =IFERROR(IF(AND(B199>0,B199/1),INDEX(#REF!,MATCH(B199,#REF!,0),9),""),"") ->  | E199: =IFERROR(IF(AND(B199>0,B199/1),INDEX(#REF!,MATCH(B199,#REF!,0),5),""),"") ->  | F199: =IFERROR(IF(AND(B199>0,B199/1),INDEX(#REF!,MATCH(B199,#REF!,0),13)/INDEX(#REF!,MATCH(B199,#REF!,0),5),""),"") ->  | G199: =IFERROR(IF(AND(B199>0,B199/1),INDEX(#REF!,MATCH(B199,#REF!,0),13),""),"") -> 
A200: =IFERROR(IF(AND(B200>0,B200/1),INDEX(Номенклатура!$B$6:$Z$3651,MATCH(B200,Номенклатура!$X$6:$X$3651,0),1),""),"") ->  | B200: =IFERROR(IF(B199>0,SMALL(Номенклатура!$X$1:$X$3651,1+B199),""),"") ->  | C200: =IFERROR(IF(AND(B200>0,B200/1),INDEX(#REF!,MATCH(B200,#REF!,0),3),""),"") ->  | D200: =IFERROR(IF(AND(B200>0,B200/1),INDEX(#REF!,MATCH(B200,#REF!,0),9),""),"") ->  | E200: =IFERROR(IF(AND(B200>0,B200/1),INDEX(#REF!,MATCH(B200,#REF!,0),5),""),"") ->  | F200: =IFERROR(IF(AND(B200>0,B200/1),INDEX(#REF!,MATCH(B200,#REF!,0),13)/INDEX(#REF!,MATCH(B200,#REF!,0),5),""),"") ->  | G200: =IFERROR(IF(AND(B200>0,B200/1),INDEX(#REF!,MATCH(B200,#REF!,0),13),""),"") -> 
A201: =IFERROR(IF(AND(B201>0,B201/1),INDEX(Номенклатура!$B$6:$Z$3651,MATCH(B201,Номенклатура!$X$6:$X$3651,0),1),""),"") ->  | B201: =IFERROR(IF(B200>0,SMALL(Номенклатура!$X$1:$X$3651,1+B200),""),"") ->  | C201: =IFERROR(IF(AND(B201>0,B201/1),INDEX(#REF!,MATCH(B201,#REF!,0),3),""),"") ->  | D201: =IFERROR(IF(AND(B201>0,B201/1),INDEX(#REF!,MATCH(B201,#REF!,0),9),""),"") ->  | E201: =IFERROR(IF(AND(B201>0,B201/1),INDEX(#REF!,MATCH(B201,#REF!,0),5),""),"") ->  | F201: =IFERROR(IF(AND(B201>0,B201/1),INDEX(#REF!,MATCH(B201,#REF!,0),13)/INDEX(#REF!,MATCH(B201,#REF!,0),5),""),"") ->  | G201: =IFERROR(IF(AND(B201>0,B201/1),INDEX(#REF!,MATCH(B201,#REF!,0),13),""),"") -> 
A202: =IFERROR(IF(AND(B202>0,B202/1),INDEX(Номенклатура!$B$6:$Z$3651,MATCH(B202,Номенклатура!$X$6:$X$3651,0),1),""),"") ->  | B202: =IFERROR(IF(B201>0,SMALL(Номенклатура!$X$1:$X$3651,1+B201),""),"") ->  | C202: =IFERROR(IF(AND(B202>0,B202/1),INDEX(#REF!,MATCH(B202,#REF!,0),3),""),"") ->  | D202: =IFERROR(IF(AND(B202>0,B202/1),INDEX(#REF!,MATCH(B202,#REF!,0),9),""),"") ->  | E202: =IFERROR(IF(AND(B202>0,B202/1),INDEX(#REF!,MATCH(B202,#REF!,0),5),""),"") ->  | F202: =IFERROR(IF(AND(B202>0,B202/1),INDEX(#REF!,MATCH(B202,#REF!,0),13)/INDEX(#REF!,MATCH(B202,#REF!,0),5),""),"") ->  | G202: =IFERROR(IF(AND(B202>0,B202/1),INDEX(#REF!,MATCH(B202,#REF!,0),13),""),"") -> 
A203: =IFERROR(IF(AND(B203>0,B203/1),INDEX(Номенклатура!$B$6:$Z$3651,MATCH(B203,Номенклатура!$X$6:$X$3651,0),1),""),"") ->  | B203: =IFERROR(IF(B202>0,SMALL(Номенклатура!$X$1:$X$3651,1+B202),""),"") ->  | C203: =IFERROR(IF(AND(B203>0,B203/1),INDEX(#REF!,MATCH(B203,#REF!,0),3),""),"") ->  | D203: =IFERROR(IF(AND(B203>0,B203/1),INDEX(#REF!,MATCH(B203,#REF!,0),9),""),"") ->  | E203: =IFERROR(IF(AND(B203>0,B203/1),INDEX(#REF!,MATCH(B203,#REF!,0),5),""),"") ->  | F203: =IFERROR(IF(AND(B203>0,B203/1),INDEX(#REF!,MATCH(B203,#REF!,0),13)/INDEX(#REF!,MATCH(B203,#REF!,0),5),""),"") ->  | G203: =IFERROR(IF(AND(B203>0,B203/1),INDEX(#REF!,MATCH(B203,#REF!,0),13),""),"") -> 
A204: =IFERROR(IF(AND(B204>0,B204/1),INDEX(Номенклатура!$B$6:$Z$3651,MATCH(B204,Номенклатура!$X$6:$X$3651,0),1),""),"") ->  | B204: =IFERROR(IF(B203>0,SMALL(Номенклатура!$X$1:$X$3651,1+B203),""),"") ->  | C204: =IFERROR(IF(AND(B204>0,B204/1),INDEX(#REF!,MATCH(B204,#REF!,0),3),""),"") ->  | D204: =IFERROR(IF(AND(B204>0,B204/1),INDEX(#REF!,MATCH(B204,#REF!,0),9),""),"") ->  | E204: =IFERROR(IF(AND(B204>0,B204/1),INDEX(#REF!,MATCH(B204,#REF!,0),5),""),"") ->  | F204: =IFERROR(IF(AND(B204>0,B204/1),INDEX(#REF!,MATCH(B204,#REF!,0),13)/INDEX(#REF!,MATCH(B204,#REF!,0),5),""),"") ->  | G204: =IFERROR(IF(AND(B204>0,B204/1),INDEX(#REF!,MATCH(B204,#REF!,0),13),""),"") -> 
A205: =IFERROR(IF(AND(B205>0,B205/1),INDEX(Номенклатура!$B$6:$Z$3651,MATCH(B205,Номенклатура!$X$6:$X$3651,0),1),""),"") ->  | B205: =IFERROR(IF(B204>0,SMALL(Номенклатура!$X$1:$X$3651,1+B204),""),"") ->  | C205: =IFERROR(IF(AND(B205>0,B205/1),INDEX(#REF!,MATCH(B205,#REF!,0),3),""),"") ->  | D205: =IFERROR(IF(AND(B205>0,B205/1),INDEX(#REF!,MATCH(B205,#REF!,0),9),""),"") ->  | E205: =IFERROR(IF(AND(B205>0,B205/1),INDEX(#REF!,MATCH(B205,#REF!,0),5),""),"") ->  | F205: =IFERROR(IF(AND(B205>0,B205/1),INDEX(#REF!,MATCH(B205,#REF!,0),13)/INDEX(#REF!,MATCH(B205,#REF!,0),5),""),"") ->  | G205: =IFERROR(IF(AND(B205>0,B205/1),INDEX(#REF!,MATCH(B205,#REF!,0),13),""),"") -> 
... 144 more rows
